{"text_format":"3","workbook":"xlsx","n_sheets":12,"sheets":["ΙΑΝ","ΦΕΒ","ΜΑΡ","ΑΠΡ","ΜΑΪΟΣ","ΙΟΥΝ","ΙΟΥΛ","ΑΥΓ","ΣΕΠ","ΟΚΤ","ΝΟΕ","ΔΕΚ"],"not_rendered":{"defined_names":40},"read":"whole","date_system":"1900"}

{"sheet":"ΙΑΝ","index":0,"n_rows":20,"n_cols":9,"rows_kept":20,"merged":[[16,2,17,2],[16,3,17,3],[17,4,19,8]]}
[null,"ΙΑΝ","ΚΥΡ",{"$f":"UPPER(TEXT(D3,\"aaa\"))","v":"ΔΕΥ"},"ΤΡΙ","ΤΕΤ","ΠΕΜ","ΠΑΡ","ΣΑΒ"]
[null,{"$f":"YEAR(TODAY())","v":2018}]
[null,null,{"$f":"ΗμέρεςΚαιΕβδομάδες+DATE(ΈτοςΗμερολογίου,1,1)-WEEKDAY(DATE(ΈτοςΗμερολογίου,1,1),(ΈναρξηΕβδομάδας=\"ΔΕΥ\")+1)+1","v":"2017-12-31"},"2018-01-01","2018-01-02","2018-01-03","2018-01-04","2018-01-05","2018-01-06"]
[null,null,{"$f":"IF(DAY(ΗμέραΗμερολογίου)=1,CONCATENATE(\"Εβδομάδα \",WEEKNUM(ΗμέραΗμερολογίου),\"/Ημέρα \",ΗμέραΗμερολογίου-DATE(YEAR(ΗμέραΗμερολογίου),1,0)),CONCATENATE(\"Ημέρα \",ΗμέραΗμερολογίου-DATE(YEAR(ΗμέραΗμερολογίου),1,0)))","v":"Ημέρα 365"},"Εβδομάδα 1/Ημέρα 1","Ημέρα 2","Ημέρα 3","Ημέρα 4","Ημέρα 5","Ημέρα 6"]
[]
[null,null,{"$f":"ΗμέρεςΚαιΕβδομάδες+DATE(ΈτοςΗμερολογίου,1,1)-WEEKDAY(DATE(ΈτοςΗμερολογίου,1,1),(ΈναρξηΕβδομάδας=\"ΔΕΥ\")+1)+8","v":"2018-01-07"},"2018-01-08","2018-01-09","2018-01-10","2018-01-11","2018-01-12","2018-01-13"]
[null,null,{"$f":"IF(WEEKDAY(ΗμέραΗμερολογίου)=ΤιμήΈναρξηςΕβδομάδας,CONCATENATE(\"Εβδομάδα \",WEEKNUM(ΗμέραΗμερολογίου),\"/Ημέρα \",ΗμέραΗμερολογίου-DATE(YEAR(ΗμέραΗμερολογίου),1,0)),CONCATENATE(\"Ημέρα \",ΗμέραΗμερολογίου-DATE(YEAR(ΗμέραΗμερολογίου),1,0)))","v":"Εβδομάδα 2/Ημέρα 7"},{"$f":"IF(WEEKDAY(ΗμέραΗμερολογίου)=ΤιμήΈναρξηςΕβδομάδας,CONCATENATE(\"Εβδομάδα \",WEEKNUM(ΗμέραΗμερολογίου),\"/Ημέρα \",ΗμέραΗμερολογίου-DATE(YEAR(ΗμέραΗμερολογίου),1,0)),CONCATENATE(\"Ημέρα \",ΗμέραΗμερολογίου-DATE(YEAR(ΗμέραΗμερολογίου),1,0)))","v":"Ημέρα 8"},{"$f":"IF(WEEKDAY(ΗμέραΗμερολογίου)=ΤιμήΈναρξηςΕβδομάδας,CONCATENATE(\"Εβδομάδα \",WEEKNUM(ΗμέραΗμερολογίου),\"/Ημέρα \",ΗμέραΗμερολογίου-DATE(YEAR(ΗμέραΗμερολογίου),1,0)),CONCATENATE(\"Ημέρα \",ΗμέραΗμερολογίου-DATE(YEAR(ΗμέραΗμερολογίου),1,0)))","v":"Ημέρα 9"},{"$f":"IF(WEEKDAY(ΗμέραΗμερολογίου)=ΤιμήΈναρξηςΕβδομάδας,CONCATENATE(\"Εβδομάδα \",WEEKNUM(ΗμέραΗμερολογίου),\"/Ημέρα \",ΗμέραΗμερολογίου-DATE(YEAR(ΗμέραΗμερολογίου),1,0)),CONCATENATE(\"Ημέρα \",ΗμέραΗμερολογίου-DATE(YEAR(ΗμέραΗμερολογίου),1,0)))","v":"Ημέρα 10"},{"$f":"IF(WEEKDAY(ΗμέραΗμερολογίου)=ΤιμήΈναρξηςΕβδομάδας,CONCATENATE(\"Εβδομάδα \",WEEKNUM(ΗμέραΗμερολογίου),\"/Ημέρα \",ΗμέραΗμερολογίου-DATE(YEAR(ΗμέραΗμερολογίου),1,0)),CONCATENATE(\"Ημέρα \",ΗμέραΗμερολογίου-DATE(YEAR(ΗμέραΗμερολογίου),1,0)))","v":"Ημέρα 11"},{"$f":"IF(WEEKDAY(ΗμέραΗμερολογίου)=ΤιμήΈναρξηςΕβδομάδας,CONCATENATE(\"Εβδομάδα \",WEEKNUM(ΗμέραΗμερολογίου),\"/Ημέρα \",ΗμέραΗμερολογίου-DATE(YEAR(ΗμέραΗμερολογίου),1,0)),CONCATENATE(\"Ημέρα \",ΗμέραΗμερολογίου-DATE(YEAR(ΗμέραΗμερολογίου),1,0)))","v":"Ημέρα 12"},{"$f":"IF(WEEKDAY(ΗμέραΗμερολογίου)=ΤιμήΈναρξηςΕβδομάδας,CONCATENATE(\"Εβδομάδα \",WEEKNUM(ΗμέραΗμερολογίου),\"/Ημέρα \",ΗμέραΗμερολογίου-DATE(YEAR(ΗμέραΗμερολογίου),1,0)),CONCATENATE(\"Ημέρα \",ΗμέραΗμερολογίου-DATE(YEAR(ΗμέραΗμερολογίου),1,0)))","v":"Ημέρα 13"}]
[]
[null,null,{"$f":"ΗμέρεςΚαιΕβδομάδες+DATE(ΈτοςΗμερολογίου,1,1)-WEEKDAY(DATE(ΈτοςΗμερολογίου,1,1),(ΈναρξηΕβδομάδας=\"ΔΕΥ\")+1)+15","v":"2018-01-14"},"2018-01-15","2018-01-16","2018-01-17","2018-01-18","2018-01-19","2018-01-20"]
[null,null,{"$f":"IF(WEEKDAY(ΗμέραΗμερολογίου)=ΤιμήΈναρξηςΕβδομάδας,CONCATENATE(\"Εβδομάδα \",WEEKNUM(ΗμέραΗμερολογίου),\"/Ημέρα \",ΗμέραΗμερολογίου-DATE(YEAR(ΗμέραΗμερολογίου),1,0)),CONCATENATE(\"Ημέρα \",ΗμέραΗμερολογίου-DATE(YEAR(ΗμέραΗμερολογίου),1,0)))","v":"Εβδομάδα 3/Ημέρα 14"},{"$f":"IF(WEEKDAY(ΗμέραΗμερολογίου)=ΤιμήΈναρξηςΕβδομάδας,CONCATENATE(\"Εβδομάδα \",WEEKNUM(ΗμέραΗμερολογίου),\"/Ημέρα \",ΗμέραΗμερολογίου-DATE(YEAR(ΗμέραΗμερολογίου),1,0)),CONCATENATE(\"Ημέρα \",ΗμέραΗμερολογίου-DATE(YEAR(ΗμέραΗμερολογίου),1,0)))","v":"Ημέρα 15"},{"$f":"IF(WEEKDAY(ΗμέραΗμερολογίου)=ΤιμήΈναρξηςΕβδομάδας,CONCATENATE(\"Εβδομάδα \",WEEKNUM(ΗμέραΗμερολογίου),\"/Ημέρα \",ΗμέραΗμερολογίου-DATE(YEAR(ΗμέραΗμερολογίου),1,0)),CONCATENATE(\"Ημέρα \",ΗμέραΗμερολογίου-DATE(YEAR(ΗμέραΗμερολογίου),1,0)))","v":"Ημέρα 16"},{"$f":"IF(WEEKDAY(ΗμέραΗμερολογίου)=ΤιμήΈναρξηςΕβδομάδας,CONCATENATE(\"Εβδομάδα \",WEEKNUM(ΗμέραΗμερολογίου),\"/Ημέρα \",ΗμέραΗμερολογίου-DATE(YEAR(ΗμέραΗμερολογίου),1,0)),CONCATENATE(\"Ημέρα \",ΗμέραΗμερολογίου-DATE(YEAR(ΗμέραΗμερολογίου),1,0)))","v":"Ημέρα 17"},{"$f":"IF(WEEKDAY(ΗμέραΗμερολογίου)=ΤιμήΈναρξηςΕβδομάδας,CONCATENATE(\"Εβδομάδα \",WEEKNUM(ΗμέραΗμερολογίου),\"/Ημέρα \",ΗμέραΗμερολογίου-DATE(YEAR(ΗμέραΗμερολογίου),1,0)),CONCATENATE(\"Ημέρα \",ΗμέραΗμερολογίου-DATE(YEAR(ΗμέραΗμερολογίου),1,0)))","v":"Ημέρα 18"},{"$f":"IF(WEEKDAY(ΗμέραΗμερολογίου)=ΤιμήΈναρξηςΕβδομάδας,CONCATENATE(\"Εβδομάδα \",WEEKNUM(ΗμέραΗμερολογίου),\"/Ημέρα \",ΗμέραΗμερολογίου-DATE(YEAR(ΗμέραΗμερολογίου),1,0)),CONCATENATE(\"Ημέρα \",ΗμέραΗμερολογίου-DATE(YEAR(ΗμέραΗμερολογίου),1,0)))","v":"Ημέρα 19"},{"$f":"IF(WEEKDAY(ΗμέραΗμερολογίου)=ΤιμήΈναρξηςΕβδομάδας,CONCATENATE(\"Εβδομάδα \",WEEKNUM(ΗμέραΗμερολογίου),\"/Ημέρα \",ΗμέραΗμερολογίου-DATE(YEAR(ΗμέραΗμερολογίου),1,0)),CONCATENATE(\"Ημέρα \",ΗμέραΗμερολογίου-DATE(YEAR(ΗμέραΗμερολογίου),1,0)))","v":"Ημέρα 20"}]
[]
[null,null,{"$f":"ΗμέρεςΚαιΕβδομάδες+DATE(ΈτοςΗμερολογίου,1,1)-WEEKDAY(DATE(ΈτοςΗμερολογίου,1,1),(ΈναρξηΕβδομάδας=\"ΔΕΥ\")+1)+22","v":"2018-01-21"},"2018-01-22","2018-01-23","2018-01-24","2018-01-25","2018-01-26","2018-01-27"]
[null,null,{"$f":"IF(WEEKDAY(ΗμέραΗμερολογίου)=ΤιμήΈναρξηςΕβδομάδας,CONCATENATE(\"Εβδομάδα \",WEEKNUM(ΗμέραΗμερολογίου),\"/Ημέρα \",ΗμέραΗμερολογίου-DATE(YEAR(ΗμέραΗμερολογίου),1,0)),CONCATENATE(\"Ημέρα \",ΗμέραΗμερολογίου-DATE(YEAR(ΗμέραΗμερολογίου),1,0)))","v":"Εβδομάδα 4/Ημέρα 21"},{"$f":"IF(WEEKDAY(ΗμέραΗμερολογίου)=ΤιμήΈναρξηςΕβδομάδας,CONCATENATE(\"Εβδομάδα \",WEEKNUM(ΗμέραΗμερολογίου),\"/Ημέρα \",ΗμέραΗμερολογίου-DATE(YEAR(ΗμέραΗμερολογίου),1,0)),CONCATENATE(\"Ημέρα \",ΗμέραΗμερολογίου-DATE(YEAR(ΗμέραΗμερολογίου),1,0)))","v":"Ημέρα 22"},{"$f":"IF(WEEKDAY(ΗμέραΗμερολογίου)=ΤιμήΈναρξηςΕβδομάδας,CONCATENATE(\"Εβδομάδα \",WEEKNUM(ΗμέραΗμερολογίου),\"/Ημέρα \",ΗμέραΗμερολογίου-DATE(YEAR(ΗμέραΗμερολογίου),1,0)),CONCATENATE(\"Ημέρα \",ΗμέραΗμερολογίου-DATE(YEAR(ΗμέραΗμερολογίου),1,0)))","v":"Ημέρα 23"},{"$f":"IF(WEEKDAY(ΗμέραΗμερολογίου)=ΤιμήΈναρξηςΕβδομάδας,CONCATENATE(\"Εβδομάδα \",WEEKNUM(ΗμέραΗμερολογίου),\"/Ημέρα \",ΗμέραΗμερολογίου-DATE(YEAR(ΗμέραΗμερολογίου),1,0)),CONCATENATE(\"Ημέρα \",ΗμέραΗμερολογίου-DATE(YEAR(ΗμέραΗμερολογίου),1,0)))","v":"Ημέρα 24"},{"$f":"IF(WEEKDAY(ΗμέραΗμερολογίου)=ΤιμήΈναρξηςΕβδομάδας,CONCATENATE(\"Εβδομάδα \",WEEKNUM(ΗμέραΗμερολογίου),\"/Ημέρα \",ΗμέραΗμερολογίου-DATE(YEAR(ΗμέραΗμερολογίου),1,0)),CONCATENATE(\"Ημέρα \",ΗμέραΗμερολογίου-DATE(YEAR(ΗμέραΗμερολογίου),1,0)))","v":"Ημέρα 25"},{"$f":"IF(WEEKDAY(ΗμέραΗμερολογίου)=ΤιμήΈναρξηςΕβδομάδας,CONCATENATE(\"Εβδομάδα \",WEEKNUM(ΗμέραΗμερολογίου),\"/Ημέρα \",ΗμέραΗμερολογίου-DATE(YEAR(ΗμέραΗμερολογίου),1,0)),CONCATENATE(\"Ημέρα \",ΗμέραΗμερολογίου-DATE(YEAR(ΗμέραΗμερολογίου),1,0)))","v":"Ημέρα 26"},{"$f":"IF(WEEKDAY(ΗμέραΗμερολογίου)=ΤιμήΈναρξηςΕβδομάδας,CONCATENATE(\"Εβδομάδα \",WEEKNUM(ΗμέραΗμερολογίου),\"/Ημέρα \",ΗμέραΗμερολογίου-DATE(YEAR(ΗμέραΗμερολογίου),1,0)),CONCATENATE(\"Ημέρα \",ΗμέραΗμερολογίου-DATE(YEAR(ΗμέραΗμερολογίου),1,0)))","v":"Ημέρα 27"}]
[]
[null,null,{"$f":"ΗμέρεςΚαιΕβδομάδες+DATE(ΈτοςΗμερολογίου,1,1)-WEEKDAY(DATE(ΈτοςΗμερολογίου,1,1),(ΈναρξηΕβδομάδας=\"ΔΕΥ\")+1)+29","v":"2018-01-28"},"2018-01-29","2018-01-30","2018-01-31","2018-02-01","2018-02-02","2018-02-03"]
[null,null,{"$f":"IF(WEEKDAY(ΗμέραΗμερολογίου)=ΤιμήΈναρξηςΕβδομάδας,CONCATENATE(\"Εβδομάδα \",WEEKNUM(ΗμέραΗμερολογίου),\"/Ημέρα \",ΗμέραΗμερολογίου-DATE(YEAR(ΗμέραΗμερολογίου),1,0)),CONCATENATE(\"Ημέρα \",ΗμέραΗμερολογίου-DATE(YEAR(ΗμέραΗμερολογίου),1,0)))","v":"Εβδομάδα 5/Ημέρα 28"},{"$f":"IF(WEEKDAY(ΗμέραΗμερολογίου)=ΤιμήΈναρξηςΕβδομάδας,CONCATENATE(\"Εβδομάδα \",WEEKNUM(ΗμέραΗμερολογίου),\"/Ημέρα \",ΗμέραΗμερολογίου-DATE(YEAR(ΗμέραΗμερολογίου),1,0)),CONCATENATE(\"Ημέρα \",ΗμέραΗμερολογίου-DATE(YEAR(ΗμέραΗμερολογίου),1,0)))","v":"Ημέρα 29"},{"$f":"IF(WEEKDAY(ΗμέραΗμερολογίου)=ΤιμήΈναρξηςΕβδομάδας,CONCATENATE(\"Εβδομάδα \",WEEKNUM(ΗμέραΗμερολογίου),\"/Ημέρα \",ΗμέραΗμερολογίου-DATE(YEAR(ΗμέραΗμερολογίου),1,0)),CONCATENATE(\"Ημέρα \",ΗμέραΗμερολογίου-DATE(YEAR(ΗμέραΗμερολογίου),1,0)))","v":"Ημέρα 30"},{"$f":"IF(WEEKDAY(ΗμέραΗμερολογίου)=ΤιμήΈναρξηςΕβδομάδας,CONCATENATE(\"Εβδομάδα \",WEEKNUM(ΗμέραΗμερολογίου),\"/Ημέρα \",ΗμέραΗμερολογίου-DATE(YEAR(ΗμέραΗμερολογίου),1,0)),CONCATENATE(\"Ημέρα \",ΗμέραΗμερολογίου-DATE(YEAR(ΗμέραΗμερολογίου),1,0)))","v":"Ημέρα 31"},{"$f":"IF(WEEKDAY(ΗμέραΗμερολογίου)=ΤιμήΈναρξηςΕβδομάδας,CONCATENATE(\"Εβδομάδα \",WEEKNUM(ΗμέραΗμερολογίου),\"/Ημέρα \",ΗμέραΗμερολογίου-DATE(YEAR(ΗμέραΗμερολογίου),1,0)),CONCATENATE(\"Ημέρα \",ΗμέραΗμερολογίου-DATE(YEAR(ΗμέραΗμερολογίου),1,0)))","v":"Ημέρα 32"},{"$f":"IF(WEEKDAY(ΗμέραΗμερολογίου)=ΤιμήΈναρξηςΕβδομάδας,CONCATENATE(\"Εβδομάδα \",WEEKNUM(ΗμέραΗμερολογίου),\"/Ημέρα \",ΗμέραΗμερολογίου-DATE(YEAR(ΗμέραΗμερολογίου),1,0)),CONCATENATE(\"Ημέρα \",ΗμέραΗμερολογίου-DATE(YEAR(ΗμέραΗμερολογίου),1,0)))","v":"Ημέρα 33"},{"$f":"IF(WEEKDAY(ΗμέραΗμερολογίου)=ΤιμήΈναρξηςΕβδομάδας,CONCATENATE(\"Εβδομάδα \",WEEKNUM(ΗμέραΗμερολογίου),\"/Ημέρα \",ΗμέραΗμερολογίου-DATE(YEAR(ΗμέραΗμερολογίου),1,0)),CONCATENATE(\"Ημέρα \",ΗμέραΗμερολογίου-DATE(YEAR(ΗμέραΗμερολογίου),1,0)))","v":"Ημέρα 34"}]
[{"$nulls":4},"ΣΗΜΕΙΩΣΕΙΣ"]
[]
[null,null,{"$f":"ΗμέρεςΚαιΕβδομάδες+DATE(ΈτοςΗμερολογίου,1,1)-WEEKDAY(DATE(ΈτοςΗμερολογίου,1,1),(ΈναρξηΕβδομάδας=\"ΔΕΥ\")+1)+36","v":"2018-02-04"},"2018-02-05"]
[null,null,{"$f":"IF(WEEKDAY(ΗμέραΗμερολογίου)=ΤιμήΈναρξηςΕβδομάδας,CONCATENATE(\"Εβδομάδα \",WEEKNUM(ΗμέραΗμερολογίου),\"/Ημέρα \",ΗμέραΗμερολογίου-DATE(YEAR(ΗμέραΗμερολογίου),1,0)),CONCATENATE(\"Ημέρα \",ΗμέραΗμερολογίου-DATE(YEAR(ΗμέραΗμερολογίου),1,0)))","v":"Εβδομάδα 6/Ημέρα 35"},{"$f":"IF(WEEKDAY(ΗμέραΗμερολογίου)=ΤιμήΈναρξηςΕβδομάδας,CONCATENATE(\"Εβδομάδα \",WEEKNUM(ΗμέραΗμερολογίου),\"/Ημέρα \",ΗμέραΗμερολογίου-DATE(YEAR(ΗμέραΗμερολογίου),1,0)),CONCATENATE(\"Ημέρα \",ΗμέραΗμερολογίου-DATE(YEAR(ΗμέραΗμερολογίου),1,0)))","v":"Ημέρα 36"}]

{"sheet":"ΦΕΒ","index":1,"n_rows":20,"n_cols":9,"rows_kept":20,"merged":[[16,2,17,2],[17,4,19,8]]}
[null,"ΦΕΒ",{"$f":"UPPER(TEXT(ΈναρξηΕβδομάδας,\"ddd\"))","v":"ΚΥΡ"},{"$f":"UPPER(TEXT(D3,\"aaa\"))","v":"ΔΕΥ"},"ΤΡΙ","ΤΕΤ","ΠΕΜ","ΠΑΡ","ΣΑΒ"]
[null,{"$f":"ΈτοςΗμερολογίου","v":2018}]
[null,null,{"$f":"ΗμέρεςΚαιΕβδομάδες+DATE(ΈτοςΗμερολογίου,2,1)-WEEKDAY(DATE(ΈτοςΗμερολογίου,2,1),(ΈναρξηΕβδομάδας=\"ΔΕΥ\")+1)+1","v":"2018-01-28"},"2018-01-29","2018-01-30","2018-01-31","2018-02-01","2018-02-02","2018-02-03"]
[null,null,{"$f":"IF(DAY(ΗμέραΗμερολογίου)=1,CONCATENATE(\"Εβδομάδα \",WEEKNUM(ΗμέραΗμερολογίου),\"/Ημέρα \",ΗμέραΗμερολογίου-DATE(YEAR(ΗμέραΗμερολογίου),1,0)),CONCATENATE(\"Ημέρα \",ΗμέραΗμερολογίου-DATE(YEAR(ΗμέραΗμερολογίου),1,0)))","v":"Ημέρα 28"},"Ημέρα 29","Ημέρα 30","Ημέρα 31","Εβδομάδα 5/Ημέρα 32","Ημέρα 33","Ημέρα 34"]
[]
[null,null,{"$f":"ΗμέρεςΚαιΕβδομάδες+DATE(ΈτοςΗμερολογίου,2,1)-WEEKDAY(DATE(ΈτοςΗμερολογίου,2,1),(ΈναρξηΕβδομάδας=\"ΔΕΥ\")+1)+8","v":"2018-02-04"},"2018-02-05","2018-02-06","2018-02-07","2018-02-08","2018-02-09","2018-02-10"]
[null,null,{"$f":"IF(WEEKDAY(ΗμέραΗμερολογίου)=ΤιμήΈναρξηςΕβδομάδας,CONCATENATE(\"Εβδομάδα \",WEEKNUM(ΗμέραΗμερολογίου),\"/Ημέρα \",ΗμέραΗμερολογίου-DATE(YEAR(ΗμέραΗμερολογίου),1,0)),CONCATENATE(\"Ημέρα \",ΗμέραΗμερολογίου-DATE(YEAR(ΗμέραΗμερολογίου),1,0)))","v":"Εβδομάδα 6/Ημέρα 35"},{"$f":"IF(WEEKDAY(ΗμέραΗμερολογίου)=ΤιμήΈναρξηςΕβδομάδας,CONCATENATE(\"Εβδομάδα \",WEEKNUM(ΗμέραΗμερολογίου),\"/Ημέρα \",ΗμέραΗμερολογίου-DATE(YEAR(ΗμέραΗμερολογίου),1,0)),CONCATENATE(\"Ημέρα \",ΗμέραΗμερολογίου-DATE(YEAR(ΗμέραΗμερολογίου),1,0)))","v":"Ημέρα 36"},{"$f":"IF(WEEKDAY(ΗμέραΗμερολογίου)=ΤιμήΈναρξηςΕβδομάδας,CONCATENATE(\"Εβδομάδα \",WEEKNUM(ΗμέραΗμερολογίου),\"/Ημέρα \",ΗμέραΗμερολογίου-DATE(YEAR(ΗμέραΗμερολογίου),1,0)),CONCATENATE(\"Ημέρα \",ΗμέραΗμερολογίου-DATE(YEAR(ΗμέραΗμερολογίου),1,0)))","v":"Ημέρα 37"},{"$f":"IF(WEEKDAY(ΗμέραΗμερολογίου)=ΤιμήΈναρξηςΕβδομάδας,CONCATENATE(\"Εβδομάδα \",WEEKNUM(ΗμέραΗμερολογίου),\"/Ημέρα \",ΗμέραΗμερολογίου-DATE(YEAR(ΗμέραΗμερολογίου),1,0)),CONCATENATE(\"Ημέρα \",ΗμέραΗμερολογίου-DATE(YEAR(ΗμέραΗμερολογίου),1,0)))","v":"Ημέρα 38"},{"$f":"IF(WEEKDAY(ΗμέραΗμερολογίου)=ΤιμήΈναρξηςΕβδομάδας,CONCATENATE(\"Εβδομάδα \",WEEKNUM(ΗμέραΗμερολογίου),\"/Ημέρα \",ΗμέραΗμερολογίου-DATE(YEAR(ΗμέραΗμερολογίου),1,0)),CONCATENATE(\"Ημέρα \",ΗμέραΗμερολογίου-DATE(YEAR(ΗμέραΗμερολογίου),1,0)))","v":"Ημέρα 39"},{"$f":"IF(WEEKDAY(ΗμέραΗμερολογίου)=ΤιμήΈναρξηςΕβδομάδας,CONCATENATE(\"Εβδομάδα \",WEEKNUM(ΗμέραΗμερολογίου),\"/Ημέρα \",ΗμέραΗμερολογίου-DATE(YEAR(ΗμέραΗμερολογίου),1,0)),CONCATENATE(\"Ημέρα \",ΗμέραΗμερολογίου-DATE(YEAR(ΗμέραΗμερολογίου),1,0)))","v":"Ημέρα 40"},{"$f":"IF(WEEKDAY(ΗμέραΗμερολογίου)=ΤιμήΈναρξηςΕβδομάδας,CONCATENATE(\"Εβδομάδα \",WEEKNUM(ΗμέραΗμερολογίου),\"/Ημέρα \",ΗμέραΗμερολογίου-DATE(YEAR(ΗμέραΗμερολογίου),1,0)),CONCATENATE(\"Ημέρα \",ΗμέραΗμερολογίου-DATE(YEAR(ΗμέραΗμερολογίου),1,0)))","v":"Ημέρα 41"}]
[]
[null,null,{"$f":"ΗμέρεςΚαιΕβδομάδες+DATE(ΈτοςΗμερολογίου,2,1)-WEEKDAY(DATE(ΈτοςΗμερολογίου,2,1),(ΈναρξηΕβδομάδας=\"ΔΕΥ\")+1)+15","v":"2018-02-11"},"2018-02-12","2018-02-13","2018-02-14","2018-02-15","2018-02-16","2018-02-17"]
[null,null,{"$f":"IF(WEEKDAY(ΗμέραΗμερολογίου)=ΤιμήΈναρξηςΕβδομάδας,CONCATENATE(\"Εβδομάδα \",WEEKNUM(ΗμέραΗμερολογίου),\"/Ημέρα \",ΗμέραΗμερολογίου-DATE(YEAR(ΗμέραΗμερολογίου),1,0)),CONCATENATE(\"Ημέρα \",ΗμέραΗμερολογίου-DATE(YEAR(ΗμέραΗμερολογίου),1,0)))","v":"Εβδομάδα 7/Ημέρα 42"},{"$f":"IF(WEEKDAY(ΗμέραΗμερολογίου)=ΤιμήΈναρξηςΕβδομάδας,CONCATENATE(\"Εβδομάδα \",WEEKNUM(ΗμέραΗμερολογίου),\"/Ημέρα \",ΗμέραΗμερολογίου-DATE(YEAR(ΗμέραΗμερολογίου),1,0)),CONCATENATE(\"Ημέρα \",ΗμέραΗμερολογίου-DATE(YEAR(ΗμέραΗμερολογίου),1,0)))","v":"Ημέρα 43"},{"$f":"IF(WEEKDAY(ΗμέραΗμερολογίου)=ΤιμήΈναρξηςΕβδομάδας,CONCATENATE(\"Εβδομάδα \",WEEKNUM(ΗμέραΗμερολογίου),\"/Ημέρα \",ΗμέραΗμερολογίου-DATE(YEAR(ΗμέραΗμερολογίου),1,0)),CONCATENATE(\"Ημέρα \",ΗμέραΗμερολογίου-DATE(YEAR(ΗμέραΗμερολογίου),1,0)))","v":"Ημέρα 44"},{"$f":"IF(WEEKDAY(ΗμέραΗμερολογίου)=ΤιμήΈναρξηςΕβδομάδας,CONCATENATE(\"Εβδομάδα \",WEEKNUM(ΗμέραΗμερολογίου),\"/Ημέρα \",ΗμέραΗμερολογίου-DATE(YEAR(ΗμέραΗμερολογίου),1,0)),CONCATENATE(\"Ημέρα \",ΗμέραΗμερολογίου-DATE(YEAR(ΗμέραΗμερολογίου),1,0)))","v":"Ημέρα 45"},{"$f":"IF(WEEKDAY(ΗμέραΗμερολογίου)=ΤιμήΈναρξηςΕβδομάδας,CONCATENATE(\"Εβδομάδα \",WEEKNUM(ΗμέραΗμερολογίου),\"/Ημέρα \",ΗμέραΗμερολογίου-DATE(YEAR(ΗμέραΗμερολογίου),1,0)),CONCATENATE(\"Ημέρα \",ΗμέραΗμερολογίου-DATE(YEAR(ΗμέραΗμερολογίου),1,0)))","v":"Ημέρα 46"},{"$f":"IF(WEEKDAY(ΗμέραΗμερολογίου)=ΤιμήΈναρξηςΕβδομάδας,CONCATENATE(\"Εβδομάδα \",WEEKNUM(ΗμέραΗμερολογίου),\"/Ημέρα \",ΗμέραΗμερολογίου-DATE(YEAR(ΗμέραΗμερολογίου),1,0)),CONCATENATE(\"Ημέρα \",ΗμέραΗμερολογίου-DATE(YEAR(ΗμέραΗμερολογίου),1,0)))","v":"Ημέρα 47"},{"$f":"IF(WEEKDAY(ΗμέραΗμερολογίου)=ΤιμήΈναρξηςΕβδομάδας,CONCATENATE(\"Εβδομάδα \",WEEKNUM(ΗμέραΗμερολογίου),\"/Ημέρα \",ΗμέραΗμερολογίου-DATE(YEAR(ΗμέραΗμερολογίου),1,0)),CONCATENATE(\"Ημέρα \",ΗμέραΗμερολογίου-DATE(YEAR(ΗμέραΗμερολογίου),1,0)))","v":"Ημέρα 48"}]
[]
[null,null,{"$f":"ΗμέρεςΚαιΕβδομάδες+DATE(ΈτοςΗμερολογίου,2,1)-WEEKDAY(DATE(ΈτοςΗμερολογίου,2,1),(ΈναρξηΕβδομάδας=\"ΔΕΥ\")+1)+22","v":"2018-02-18"},"2018-02-19","2018-02-20","2018-02-21","2018-02-22","2018-02-23","2018-02-24"]
[null,null,{"$f":"IF(WEEKDAY(ΗμέραΗμερολογίου)=ΤιμήΈναρξηςΕβδομάδας,CONCATENATE(\"Εβδομάδα \",WEEKNUM(ΗμέραΗμερολογίου),\"/Ημέρα \",ΗμέραΗμερολογίου-DATE(YEAR(ΗμέραΗμερολογίου),1,0)),CONCATENATE(\"Ημέρα \",ΗμέραΗμερολογίου-DATE(YEAR(ΗμέραΗμερολογίου),1,0)))","v":"Εβδομάδα 8/Ημέρα 49"},{"$f":"IF(WEEKDAY(ΗμέραΗμερολογίου)=ΤιμήΈναρξηςΕβδομάδας,CONCATENATE(\"Εβδομάδα \",WEEKNUM(ΗμέραΗμερολογίου),\"/Ημέρα \",ΗμέραΗμερολογίου-DATE(YEAR(ΗμέραΗμερολογίου),1,0)),CONCATENATE(\"Ημέρα \",ΗμέραΗμερολογίου-DATE(YEAR(ΗμέραΗμερολογίου),1,0)))","v":"Ημέρα 50"},{"$f":"IF(WEEKDAY(ΗμέραΗμερολογίου)=ΤιμήΈναρξηςΕβδομάδας,CONCATENATE(\"Εβδομάδα \",WEEKNUM(ΗμέραΗμερολογίου),\"/Ημέρα \",ΗμέραΗμερολογίου-DATE(YEAR(ΗμέραΗμερολογίου),1,0)),CONCATENATE(\"Ημέρα \",ΗμέραΗμερολογίου-DATE(YEAR(ΗμέραΗμερολογίου),1,0)))","v":"Ημέρα 51"},{"$f":"IF(WEEKDAY(ΗμέραΗμερολογίου)=ΤιμήΈναρξηςΕβδομάδας,CONCATENATE(\"Εβδομάδα \",WEEKNUM(ΗμέραΗμερολογίου),\"/Ημέρα \",ΗμέραΗμερολογίου-DATE(YEAR(ΗμέραΗμερολογίου),1,0)),CONCATENATE(\"Ημέρα \",ΗμέραΗμερολογίου-DATE(YEAR(ΗμέραΗμερολογίου),1,0)))","v":"Ημέρα 52"},{"$f":"IF(WEEKDAY(ΗμέραΗμερολογίου)=ΤιμήΈναρξηςΕβδομάδας,CONCATENATE(\"Εβδομάδα \",WEEKNUM(ΗμέραΗμερολογίου),\"/Ημέρα \",ΗμέραΗμερολογίου-DATE(YEAR(ΗμέραΗμερολογίου),1,0)),CONCATENATE(\"Ημέρα \",ΗμέραΗμερολογίου-DATE(YEAR(ΗμέραΗμερολογίου),1,0)))","v":"Ημέρα 53"},{"$f":"IF(WEEKDAY(ΗμέραΗμερολογίου)=ΤιμήΈναρξηςΕβδομάδας,CONCATENATE(\"Εβδομάδα \",WEEKNUM(ΗμέραΗμερολογίου),\"/Ημέρα \",ΗμέραΗμερολογίου-DATE(YEAR(ΗμέραΗμερολογίου),1,0)),CONCATENATE(\"Ημέρα \",ΗμέραΗμερολογίου-DATE(YEAR(ΗμέραΗμερολογίου),1,0)))","v":"Ημέρα 54"},{"$f":"IF(WEEKDAY(ΗμέραΗμερολογίου)=ΤιμήΈναρξηςΕβδομάδας,CONCATENATE(\"Εβδομάδα \",WEEKNUM(ΗμέραΗμερολογίου),\"/Ημέρα \",ΗμέραΗμερολογίου-DATE(YEAR(ΗμέραΗμερολογίου),1,0)),CONCATENATE(\"Ημέρα \",ΗμέραΗμερολογίου-DATE(YEAR(ΗμέραΗμερολογίου),1,0)))","v":"Ημέρα 55"}]
[]
[null,null,{"$f":"ΗμέρεςΚαιΕβδομάδες+DATE(ΈτοςΗμερολογίου,2,1)-WEEKDAY(DATE(ΈτοςΗμερολογίου,2,1),(ΈναρξηΕβδομάδας=\"ΔΕΥ\")+1)+29","v":"2018-02-25"},"2018-02-26","2018-02-27","2018-02-28","2018-03-01","2018-03-02","2018-03-03"]
[null,null,{"$f":"IF(WEEKDAY(ΗμέραΗμερολογίου)=ΤιμήΈναρξηςΕβδομάδας,CONCATENATE(\"Εβδομάδα \",WEEKNUM(ΗμέραΗμερολογίου),\"/Ημέρα \",ΗμέραΗμερολογίου-DATE(YEAR(ΗμέραΗμερολογίου),1,0)),CONCATENATE(\"Ημέρα \",ΗμέραΗμερολογίου-DATE(YEAR(ΗμέραΗμερολογίου),1,0)))","v":"Εβδομάδα 9/Ημέρα 56"},{"$f":"IF(WEEKDAY(ΗμέραΗμερολογίου)=ΤιμήΈναρξηςΕβδομάδας,CONCATENATE(\"Εβδομάδα \",WEEKNUM(ΗμέραΗμερολογίου),\"/Ημέρα \",ΗμέραΗμερολογίου-DATE(YEAR(ΗμέραΗμερολογίου),1,0)),CONCATENATE(\"Ημέρα \",ΗμέραΗμερολογίου-DATE(YEAR(ΗμέραΗμερολογίου),1,0)))","v":"Ημέρα 57"},{"$f":"IF(WEEKDAY(ΗμέραΗμερολογίου)=ΤιμήΈναρξηςΕβδομάδας,CONCATENATE(\"Εβδομάδα \",WEEKNUM(ΗμέραΗμερολογίου),\"/Ημέρα \",ΗμέραΗμερολογίου-DATE(YEAR(ΗμέραΗμερολογίου),1,0)),CONCATENATE(\"Ημέρα \",ΗμέραΗμερολογίου-DATE(YEAR(ΗμέραΗμερολογίου),1,0)))","v":"Ημέρα 58"},{"$f":"IF(WEEKDAY(ΗμέραΗμερολογίου)=ΤιμήΈναρξηςΕβδομάδας,CONCATENATE(\"Εβδομάδα \",WEEKNUM(ΗμέραΗμερολογίου),\"/Ημέρα \",ΗμέραΗμερολογίου-DATE(YEAR(ΗμέραΗμερολογίου),1,0)),CONCATENATE(\"Ημέρα \",ΗμέραΗμερολογίου-DATE(YEAR(ΗμέραΗμερολογίου),1,0)))","v":"Ημέρα 59"},{"$f":"IF(WEEKDAY(ΗμέραΗμερολογίου)=ΤιμήΈναρξηςΕβδομάδας,CONCATENATE(\"Εβδομάδα \",WEEKNUM(ΗμέραΗμερολογίου),\"/Ημέρα \",ΗμέραΗμερολογίου-DATE(YEAR(ΗμέραΗμερολογίου),1,0)),CONCATENATE(\"Ημέρα \",ΗμέραΗμερολογίου-DATE(YEAR(ΗμέραΗμερολογίου),1,0)))","v":"Ημέρα 60"},{"$f":"IF(WEEKDAY(ΗμέραΗμερολογίου)=ΤιμήΈναρξηςΕβδομάδας,CONCATENATE(\"Εβδομάδα \",WEEKNUM(ΗμέραΗμερολογίου),\"/Ημέρα \",ΗμέραΗμερολογίου-DATE(YEAR(ΗμέραΗμερολογίου),1,0)),CONCATENATE(\"Ημέρα \",ΗμέραΗμερολογίου-DATE(YEAR(ΗμέραΗμερολογίου),1,0)))","v":"Ημέρα 61"},{"$f":"IF(WEEKDAY(ΗμέραΗμερολογίου)=ΤιμήΈναρξηςΕβδομάδας,CONCATENATE(\"Εβδομάδα \",WEEKNUM(ΗμέραΗμερολογίου),\"/Ημέρα \",ΗμέραΗμερολογίου-DATE(YEAR(ΗμέραΗμερολογίου),1,0)),CONCATENATE(\"Ημέρα \",ΗμέραΗμερολογίου-DATE(YEAR(ΗμέραΗμερολογίου),1,0)))","v":"Ημέρα 62"}]
[{"$nulls":4},"ΣΗΜΕΙΩΣΕΙΣ"]
[]
[null,null,{"$f":"ΗμέρεςΚαιΕβδομάδες+DATE(ΈτοςΗμερολογίου,2,1)-WEEKDAY(DATE(ΈτοςΗμερολογίου,2,1),(ΈναρξηΕβδομάδας=\"ΔΕΥ\")+1)+36","v":"2018-03-04"},"2018-03-05"]
[null,null,{"$f":"IF(WEEKDAY(ΗμέραΗμερολογίου)=ΤιμήΈναρξηςΕβδομάδας,CONCATENATE(\"Εβδομάδα \",WEEKNUM(ΗμέραΗμερολογίου),\"/Ημέρα \",ΗμέραΗμερολογίου-DATE(YEAR(ΗμέραΗμερολογίου),1,0)),CONCATENATE(\"Ημέρα \",ΗμέραΗμερολογίου-DATE(YEAR(ΗμέραΗμερολογίου),1,0)))","v":"Εβδομάδα 10/Ημέρα 63"},{"$f":"IF(WEEKDAY(ΗμέραΗμερολογίου)=ΤιμήΈναρξηςΕβδομάδας,CONCATENATE(\"Εβδομάδα \",WEEKNUM(ΗμέραΗμερολογίου),\"/Ημέρα \",ΗμέραΗμερολογίου-DATE(YEAR(ΗμέραΗμερολογίου),1,0)),CONCATENATE(\"Ημέρα \",ΗμέραΗμερολογίου-DATE(YEAR(ΗμέραΗμερολογίου),1,0)))","v":"Ημέρα 64"}]

{"sheet":"ΜΑΡ","index":2,"n_rows":20,"n_cols":9,"rows_kept":20,"merged":[[16,2,17,2],[17,4,19,8]]}
[null,"ΜΑΡ",{"$f":"UPPER(TEXT(ΈναρξηΕβδομάδας,\"ddd\"))","v":"ΚΥΡ"},{"$f":"UPPER(TEXT(D3,\"aaa\"))","v":"ΔΕΥ"},"ΤΡΙ","ΤΕΤ","ΠΕΜ","ΠΑΡ","ΣΑΒ"]
[null,{"$f":"ΈτοςΗμερολογίου","v":2018}]
[null,null,{"$f":"ΗμέρεςΚαιΕβδομάδες+DATE(ΈτοςΗμερολογίου,3,1)-WEEKDAY(DATE(ΈτοςΗμερολογίου,3,1),(ΈναρξηΕβδομάδας=\"ΔΕΥ\")+1)+1","v":"2018-02-25"},"2018-02-26","2018-02-27","2018-02-28","2018-03-01","2018-03-02","2018-03-03"]
[null,null,{"$f":"IF(DAY(ΗμέραΗμερολογίου)=1,CONCATENATE(\"Εβδομάδα \",WEEKNUM(ΗμέραΗμερολογίου),\"/Ημέρα \",ΗμέραΗμερολογίου-DATE(YEAR(ΗμέραΗμερολογίου),1,0)),CONCATENATE(\"Ημέρα \",ΗμέραΗμερολογίου-DATE(YEAR(ΗμέραΗμερολογίου),1,0)))","v":"Ημέρα 56"},"Ημέρα 57","Ημέρα 58","Ημέρα 59","Εβδομάδα 9/Ημέρα 60","Ημέρα 61","Ημέρα 62"]
[]
[null,null,{"$f":"ΗμέρεςΚαιΕβδομάδες+DATE(ΈτοςΗμερολογίου,3,1)-WEEKDAY(DATE(ΈτοςΗμερολογίου,3,1),(ΈναρξηΕβδομάδας=\"ΔΕΥ\")+1)+8","v":"2018-03-04"},"2018-03-05","2018-03-06","2018-03-07","2018-03-08","2018-03-09","2018-03-10"]
[null,null,{"$f":"IF(WEEKDAY(ΗμέραΗμερολογίου)=ΤιμήΈναρξηςΕβδομάδας,CONCATENATE(\"Εβδομάδα \",WEEKNUM(ΗμέραΗμερολογίου),\"/Ημέρα \",ΗμέραΗμερολογίου-DATE(YEAR(ΗμέραΗμερολογίου),1,0)),CONCATENATE(\"Ημέρα \",ΗμέραΗμερολογίου-DATE(YEAR(ΗμέραΗμερολογίου),1,0)))","v":"Εβδομάδα 10/Ημέρα 63"},{"$f":"IF(WEEKDAY(ΗμέραΗμερολογίου)=ΤιμήΈναρξηςΕβδομάδας,CONCATENATE(\"Εβδομάδα \",WEEKNUM(ΗμέραΗμερολογίου),\"/Ημέρα \",ΗμέραΗμερολογίου-DATE(YEAR(ΗμέραΗμερολογίου),1,0)),CONCATENATE(\"Ημέρα \",ΗμέραΗμερολογίου-DATE(YEAR(ΗμέραΗμερολογίου),1,0)))","v":"Ημέρα 64"},{"$f":"IF(WEEKDAY(ΗμέραΗμερολογίου)=ΤιμήΈναρξηςΕβδομάδας,CONCATENATE(\"Εβδομάδα \",WEEKNUM(ΗμέραΗμερολογίου),\"/Ημέρα \",ΗμέραΗμερολογίου-DATE(YEAR(ΗμέραΗμερολογίου),1,0)),CONCATENATE(\"Ημέρα \",ΗμέραΗμερολογίου-DATE(YEAR(ΗμέραΗμερολογίου),1,0)))","v":"Ημέρα 65"},{"$f":"IF(WEEKDAY(ΗμέραΗμερολογίου)=ΤιμήΈναρξηςΕβδομάδας,CONCATENATE(\"Εβδομάδα \",WEEKNUM(ΗμέραΗμερολογίου),\"/Ημέρα \",ΗμέραΗμερολογίου-DATE(YEAR(ΗμέραΗμερολογίου),1,0)),CONCATENATE(\"Ημέρα \",ΗμέραΗμερολογίου-DATE(YEAR(ΗμέραΗμερολογίου),1,0)))","v":"Ημέρα 66"},{"$f":"IF(WEEKDAY(ΗμέραΗμερολογίου)=ΤιμήΈναρξηςΕβδομάδας,CONCATENATE(\"Εβδομάδα \",WEEKNUM(ΗμέραΗμερολογίου),\"/Ημέρα \",ΗμέραΗμερολογίου-DATE(YEAR(ΗμέραΗμερολογίου),1,0)),CONCATENATE(\"Ημέρα \",ΗμέραΗμερολογίου-DATE(YEAR(ΗμέραΗμερολογίου),1,0)))","v":"Ημέρα 67"},{"$f":"IF(WEEKDAY(ΗμέραΗμερολογίου)=ΤιμήΈναρξηςΕβδομάδας,CONCATENATE(\"Εβδομάδα \",WEEKNUM(ΗμέραΗμερολογίου),\"/Ημέρα \",ΗμέραΗμερολογίου-DATE(YEAR(ΗμέραΗμερολογίου),1,0)),CONCATENATE(\"Ημέρα \",ΗμέραΗμερολογίου-DATE(YEAR(ΗμέραΗμερολογίου),1,0)))","v":"Ημέρα 68"},{"$f":"IF(WEEKDAY(ΗμέραΗμερολογίου)=ΤιμήΈναρξηςΕβδομάδας,CONCATENATE(\"Εβδομάδα \",WEEKNUM(ΗμέραΗμερολογίου),\"/Ημέρα \",ΗμέραΗμερολογίου-DATE(YEAR(ΗμέραΗμερολογίου),1,0)),CONCATENATE(\"Ημέρα \",ΗμέραΗμερολογίου-DATE(YEAR(ΗμέραΗμερολογίου),1,0)))","v":"Ημέρα 69"}]
[]
[null,null,{"$f":"ΗμέρεςΚαιΕβδομάδες+DATE(ΈτοςΗμερολογίου,3,1)-WEEKDAY(DATE(ΈτοςΗμερολογίου,3,1),(ΈναρξηΕβδομάδας=\"ΔΕΥ\")+1)+15","v":"2018-03-11"},"2018-03-12","2018-03-13","2018-03-14","2018-03-15","2018-03-16","2018-03-17"]
[null,null,{"$f":"IF(WEEKDAY(ΗμέραΗμερολογίου)=ΤιμήΈναρξηςΕβδομάδας,CONCATENATE(\"Εβδομάδα \",WEEKNUM(ΗμέραΗμερολογίου),\"/Ημέρα \",ΗμέραΗμερολογίου-DATE(YEAR(ΗμέραΗμερολογίου),1,0)),CONCATENATE(\"Ημέρα \",ΗμέραΗμερολογίου-DATE(YEAR(ΗμέραΗμερολογίου),1,0)))","v":"Εβδομάδα 11/Ημέρα 70"},{"$f":"IF(WEEKDAY(ΗμέραΗμερολογίου)=ΤιμήΈναρξηςΕβδομάδας,CONCATENATE(\"Εβδομάδα \",WEEKNUM(ΗμέραΗμερολογίου),\"/Ημέρα \",ΗμέραΗμερολογίου-DATE(YEAR(ΗμέραΗμερολογίου),1,0)),CONCATENATE(\"Ημέρα \",ΗμέραΗμερολογίου-DATE(YEAR(ΗμέραΗμερολογίου),1,0)))","v":"Ημέρα 71"},{"$f":"IF(WEEKDAY(ΗμέραΗμερολογίου)=ΤιμήΈναρξηςΕβδομάδας,CONCATENATE(\"Εβδομάδα \",WEEKNUM(ΗμέραΗμερολογίου),\"/Ημέρα \",ΗμέραΗμερολογίου-DATE(YEAR(ΗμέραΗμερολογίου),1,0)),CONCATENATE(\"Ημέρα \",ΗμέραΗμερολογίου-DATE(YEAR(ΗμέραΗμερολογίου),1,0)))","v":"Ημέρα 72"},{"$f":"IF(WEEKDAY(ΗμέραΗμερολογίου)=ΤιμήΈναρξηςΕβδομάδας,CONCATENATE(\"Εβδομάδα \",WEEKNUM(ΗμέραΗμερολογίου),\"/Ημέρα \",ΗμέραΗμερολογίου-DATE(YEAR(ΗμέραΗμερολογίου),1,0)),CONCATENATE(\"Ημέρα \",ΗμέραΗμερολογίου-DATE(YEAR(ΗμέραΗμερολογίου),1,0)))","v":"Ημέρα 73"},{"$f":"IF(WEEKDAY(ΗμέραΗμερολογίου)=ΤιμήΈναρξηςΕβδομάδας,CONCATENATE(\"Εβδομάδα \",WEEKNUM(ΗμέραΗμερολογίου),\"/Ημέρα \",ΗμέραΗμερολογίου-DATE(YEAR(ΗμέραΗμερολογίου),1,0)),CONCATENATE(\"Ημέρα \",ΗμέραΗμερολογίου-DATE(YEAR(ΗμέραΗμερολογίου),1,0)))","v":"Ημέρα 74"},{"$f":"IF(WEEKDAY(ΗμέραΗμερολογίου)=ΤιμήΈναρξηςΕβδομάδας,CONCATENATE(\"Εβδομάδα \",WEEKNUM(ΗμέραΗμερολογίου),\"/Ημέρα \",ΗμέραΗμερολογίου-DATE(YEAR(ΗμέραΗμερολογίου),1,0)),CONCATENATE(\"Ημέρα \",ΗμέραΗμερολογίου-DATE(YEAR(ΗμέραΗμερολογίου),1,0)))","v":"Ημέρα 75"},{"$f":"IF(WEEKDAY(ΗμέραΗμερολογίου)=ΤιμήΈναρξηςΕβδομάδας,CONCATENATE(\"Εβδομάδα \",WEEKNUM(ΗμέραΗμερολογίου),\"/Ημέρα \",ΗμέραΗμερολογίου-DATE(YEAR(ΗμέραΗμερολογίου),1,0)),CONCATENATE(\"Ημέρα \",ΗμέραΗμερολογίου-DATE(YEAR(ΗμέραΗμερολογίου),1,0)))","v":"Ημέρα 76"}]
[]
[null,null,{"$f":"ΗμέρεςΚαιΕβδομάδες+DATE(ΈτοςΗμερολογίου,3,1)-WEEKDAY(DATE(ΈτοςΗμερολογίου,3,1),(ΈναρξηΕβδομάδας=\"ΔΕΥ\")+1)+22","v":"2018-03-18"},"2018-03-19","2018-03-20","2018-03-21","2018-03-22","2018-03-23","2018-03-24"]
[null,null,{"$f":"IF(WEEKDAY(ΗμέραΗμερολογίου)=ΤιμήΈναρξηςΕβδομάδας,CONCATENATE(\"Εβδομάδα \",WEEKNUM(ΗμέραΗμερολογίου),\"/Ημέρα \",ΗμέραΗμερολογίου-DATE(YEAR(ΗμέραΗμερολογίου),1,0)),CONCATENATE(\"Ημέρα \",ΗμέραΗμερολογίου-DATE(YEAR(ΗμέραΗμερολογίου),1,0)))","v":"Εβδομάδα 12/Ημέρα 77"},{"$f":"IF(WEEKDAY(ΗμέραΗμερολογίου)=ΤιμήΈναρξηςΕβδομάδας,CONCATENATE(\"Εβδομάδα \",WEEKNUM(ΗμέραΗμερολογίου),\"/Ημέρα \",ΗμέραΗμερολογίου-DATE(YEAR(ΗμέραΗμερολογίου),1,0)),CONCATENATE(\"Ημέρα \",ΗμέραΗμερολογίου-DATE(YEAR(ΗμέραΗμερολογίου),1,0)))","v":"Ημέρα 78"},{"$f":"IF(WEEKDAY(ΗμέραΗμερολογίου)=ΤιμήΈναρξηςΕβδομάδας,CONCATENATE(\"Εβδομάδα \",WEEKNUM(ΗμέραΗμερολογίου),\"/Ημέρα \",ΗμέραΗμερολογίου-DATE(YEAR(ΗμέραΗμερολογίου),1,0)),CONCATENATE(\"Ημέρα \",ΗμέραΗμερολογίου-DATE(YEAR(ΗμέραΗμερολογίου),1,0)))","v":"Ημέρα 79"},{"$f":"IF(WEEKDAY(ΗμέραΗμερολογίου)=ΤιμήΈναρξηςΕβδομάδας,CONCATENATE(\"Εβδομάδα \",WEEKNUM(ΗμέραΗμερολογίου),\"/Ημέρα \",ΗμέραΗμερολογίου-DATE(YEAR(ΗμέραΗμερολογίου),1,0)),CONCATENATE(\"Ημέρα \",ΗμέραΗμερολογίου-DATE(YEAR(ΗμέραΗμερολογίου),1,0)))","v":"Ημέρα 80"},{"$f":"IF(WEEKDAY(ΗμέραΗμερολογίου)=ΤιμήΈναρξηςΕβδομάδας,CONCATENATE(\"Εβδομάδα \",WEEKNUM(ΗμέραΗμερολογίου),\"/Ημέρα \",ΗμέραΗμερολογίου-DATE(YEAR(ΗμέραΗμερολογίου),1,0)),CONCATENATE(\"Ημέρα \",ΗμέραΗμερολογίου-DATE(YEAR(ΗμέραΗμερολογίου),1,0)))","v":"Ημέρα 81"},{"$f":"IF(WEEKDAY(ΗμέραΗμερολογίου)=ΤιμήΈναρξηςΕβδομάδας,CONCATENATE(\"Εβδομάδα \",WEEKNUM(ΗμέραΗμερολογίου),\"/Ημέρα \",ΗμέραΗμερολογίου-DATE(YEAR(ΗμέραΗμερολογίου),1,0)),CONCATENATE(\"Ημέρα \",ΗμέραΗμερολογίου-DATE(YEAR(ΗμέραΗμερολογίου),1,0)))","v":"Ημέρα 82"},{"$f":"IF(WEEKDAY(ΗμέραΗμερολογίου)=ΤιμήΈναρξηςΕβδομάδας,CONCATENATE(\"Εβδομάδα \",WEEKNUM(ΗμέραΗμερολογίου),\"/Ημέρα \",ΗμέραΗμερολογίου-DATE(YEAR(ΗμέραΗμερολογίου),1,0)),CONCATENATE(\"Ημέρα \",ΗμέραΗμερολογίου-DATE(YEAR(ΗμέραΗμερολογίου),1,0)))","v":"Ημέρα 83"}]
[]
[null,null,{"$f":"ΗμέρεςΚαιΕβδομάδες+DATE(ΈτοςΗμερολογίου,3,1)-WEEKDAY(DATE(ΈτοςΗμερολογίου,3,1),(ΈναρξηΕβδομάδας=\"ΔΕΥ\")+1)+29","v":"2018-03-25"},"2018-03-26","2018-03-27","2018-03-28","2018-03-29","2018-03-30","2018-03-31"]
[null,null,{"$f":"IF(WEEKDAY(ΗμέραΗμερολογίου)=ΤιμήΈναρξηςΕβδομάδας,CONCATENATE(\"Εβδομάδα \",WEEKNUM(ΗμέραΗμερολογίου),\"/Ημέρα \",ΗμέραΗμερολογίου-DATE(YEAR(ΗμέραΗμερολογίου),1,0)),CONCATENATE(\"Ημέρα \",ΗμέραΗμερολογίου-DATE(YEAR(ΗμέραΗμερολογίου),1,0)))","v":"Εβδομάδα 13/Ημέρα 84"},{"$f":"IF(WEEKDAY(ΗμέραΗμερολογίου)=ΤιμήΈναρξηςΕβδομάδας,CONCATENATE(\"Εβδομάδα \",WEEKNUM(ΗμέραΗμερολογίου),\"/Ημέρα \",ΗμέραΗμερολογίου-DATE(YEAR(ΗμέραΗμερολογίου),1,0)),CONCATENATE(\"Ημέρα \",ΗμέραΗμερολογίου-DATE(YEAR(ΗμέραΗμερολογίου),1,0)))","v":"Ημέρα 85"},{"$f":"IF(WEEKDAY(ΗμέραΗμερολογίου)=ΤιμήΈναρξηςΕβδομάδας,CONCATENATE(\"Εβδομάδα \",WEEKNUM(ΗμέραΗμερολογίου),\"/Ημέρα \",ΗμέραΗμερολογίου-DATE(YEAR(ΗμέραΗμερολογίου),1,0)),CONCATENATE(\"Ημέρα \",ΗμέραΗμερολογίου-DATE(YEAR(ΗμέραΗμερολογίου),1,0)))","v":"Ημέρα 86"},{"$f":"IF(WEEKDAY(ΗμέραΗμερολογίου)=ΤιμήΈναρξηςΕβδομάδας,CONCATENATE(\"Εβδομάδα \",WEEKNUM(ΗμέραΗμερολογίου),\"/Ημέρα \",ΗμέραΗμερολογίου-DATE(YEAR(ΗμέραΗμερολογίου),1,0)),CONCATENATE(\"Ημέρα \",ΗμέραΗμερολογίου-DATE(YEAR(ΗμέραΗμερολογίου),1,0)))","v":"Ημέρα 87"},{"$f":"IF(WEEKDAY(ΗμέραΗμερολογίου)=ΤιμήΈναρξηςΕβδομάδας,CONCATENATE(\"Εβδομάδα \",WEEKNUM(ΗμέραΗμερολογίου),\"/Ημέρα \",ΗμέραΗμερολογίου-DATE(YEAR(ΗμέραΗμερολογίου),1,0)),CONCATENATE(\"Ημέρα \",ΗμέραΗμερολογίου-DATE(YEAR(ΗμέραΗμερολογίου),1,0)))","v":"Ημέρα 88"},{"$f":"IF(WEEKDAY(ΗμέραΗμερολογίου)=ΤιμήΈναρξηςΕβδομάδας,CONCATENATE(\"Εβδομάδα \",WEEKNUM(ΗμέραΗμερολογίου),\"/Ημέρα \",ΗμέραΗμερολογίου-DATE(YEAR(ΗμέραΗμερολογίου),1,0)),CONCATENATE(\"Ημέρα \",ΗμέραΗμερολογίου-DATE(YEAR(ΗμέραΗμερολογίου),1,0)))","v":"Ημέρα 89"},{"$f":"IF(WEEKDAY(ΗμέραΗμερολογίου)=ΤιμήΈναρξηςΕβδομάδας,CONCATENATE(\"Εβδομάδα \",WEEKNUM(ΗμέραΗμερολογίου),\"/Ημέρα \",ΗμέραΗμερολογίου-DATE(YEAR(ΗμέραΗμερολογίου),1,0)),CONCATENATE(\"Ημέρα \",ΗμέραΗμερολογίου-DATE(YEAR(ΗμέραΗμερολογίου),1,0)))","v":"Ημέρα 90"}]
[{"$nulls":4},"ΣΗΜΕΙΩΣΕΙΣ"]
[]
[null,null,{"$f":"ΗμέρεςΚαιΕβδομάδες+DATE(ΈτοςΗμερολογίου,3,1)-WEEKDAY(DATE(ΈτοςΗμερολογίου,3,1),(ΈναρξηΕβδομάδας=\"ΔΕΥ\")+1)+36","v":"2018-04-01"},"2018-04-02"]
[null,null,{"$f":"IF(WEEKDAY(ΗμέραΗμερολογίου)=ΤιμήΈναρξηςΕβδομάδας,CONCATENATE(\"Εβδομάδα \",WEEKNUM(ΗμέραΗμερολογίου),\"/Ημέρα \",ΗμέραΗμερολογίου-DATE(YEAR(ΗμέραΗμερολογίου),1,0)),CONCATENATE(\"Ημέρα \",ΗμέραΗμερολογίου-DATE(YEAR(ΗμέραΗμερολογίου),1,0)))","v":"Εβδομάδα 14/Ημέρα 91"},{"$f":"IF(WEEKDAY(ΗμέραΗμερολογίου)=ΤιμήΈναρξηςΕβδομάδας,CONCATENATE(\"Εβδομάδα \",WEEKNUM(ΗμέραΗμερολογίου),\"/Ημέρα \",ΗμέραΗμερολογίου-DATE(YEAR(ΗμέραΗμερολογίου),1,0)),CONCATENATE(\"Ημέρα \",ΗμέραΗμερολογίου-DATE(YEAR(ΗμέραΗμερολογίου),1,0)))","v":"Ημέρα 92"}]

{"sheet":"ΑΠΡ","index":3,"n_rows":20,"n_cols":9,"rows_kept":20,"merged":[[16,2,17,2],[17,4,19,8]]}
[null,"ΑΠΡ",{"$f":"UPPER(TEXT(ΈναρξηΕβδομάδας,\"ddd\"))","v":"ΚΥΡ"},{"$f":"UPPER(TEXT(D3,\"aaa\"))","v":"ΔΕΥ"},"ΤΡΙ","ΤΕΤ","ΠΕΜ","ΠΑΡ","ΣΑΒ"]
[null,{"$f":"ΈτοςΗμερολογίου","v":2018}]
[null,null,{"$f":"ΗμέρεςΚαιΕβδομάδες+DATE(ΈτοςΗμερολογίου,4,1)-WEEKDAY(DATE(ΈτοςΗμερολογίου,4,1),(ΈναρξηΕβδομάδας=\"ΔΕΥ\")+1)+1","v":"2018-04-01"},"2018-04-02","2018-04-03","2018-04-04","2018-04-05","2018-04-06","2018-04-07"]
[null,null,{"$f":"IF(DAY(ΗμέραΗμερολογίου)=1,CONCATENATE(\"Εβδομάδα \",WEEKNUM(ΗμέραΗμερολογίου),\"/Ημέρα \",ΗμέραΗμερολογίου-DATE(YEAR(ΗμέραΗμερολογίου),1,0)),CONCATENATE(\"Ημέρα \",ΗμέραΗμερολογίου-DATE(YEAR(ΗμέραΗμερολογίου),1,0)))","v":"Εβδομάδα 14/Ημέρα 91"},"Ημέρα 92","Ημέρα 93","Ημέρα 94","Ημέρα 95","Ημέρα 96","Ημέρα 97"]
[]
[null,null,{"$f":"ΗμέρεςΚαιΕβδομάδες+DATE(ΈτοςΗμερολογίου,4,1)-WEEKDAY(DATE(ΈτοςΗμερολογίου,4,1),(ΈναρξηΕβδομάδας=\"ΔΕΥ\")+1)+8","v":"2018-04-08"},"2018-04-09","2018-04-10","2018-04-11","2018-04-12","2018-04-13","2018-04-14"]
[null,null,{"$f":"IF(WEEKDAY(ΗμέραΗμερολογίου)=ΤιμήΈναρξηςΕβδομάδας,CONCATENATE(\"Εβδομάδα \",WEEKNUM(ΗμέραΗμερολογίου),\"/Ημέρα \",ΗμέραΗμερολογίου-DATE(YEAR(ΗμέραΗμερολογίου),1,0)),CONCATENATE(\"Ημέρα \",ΗμέραΗμερολογίου-DATE(YEAR(ΗμέραΗμερολογίου),1,0)))","v":"Εβδομάδα 15/Ημέρα 98"},{"$f":"IF(WEEKDAY(ΗμέραΗμερολογίου)=ΤιμήΈναρξηςΕβδομάδας,CONCATENATE(\"Εβδομάδα \",WEEKNUM(ΗμέραΗμερολογίου),\"/Ημέρα \",ΗμέραΗμερολογίου-DATE(YEAR(ΗμέραΗμερολογίου),1,0)),CONCATENATE(\"Ημέρα \",ΗμέραΗμερολογίου-DATE(YEAR(ΗμέραΗμερολογίου),1,0)))","v":"Ημέρα 99"},{"$f":"IF(WEEKDAY(ΗμέραΗμερολογίου)=ΤιμήΈναρξηςΕβδομάδας,CONCATENATE(\"Εβδομάδα \",WEEKNUM(ΗμέραΗμερολογίου),\"/Ημέρα \",ΗμέραΗμερολογίου-DATE(YEAR(ΗμέραΗμερολογίου),1,0)),CONCATENATE(\"Ημέρα \",ΗμέραΗμερολογίου-DATE(YEAR(ΗμέραΗμερολογίου),1,0)))","v":"Ημέρα 100"},{"$f":"IF(WEEKDAY(ΗμέραΗμερολογίου)=ΤιμήΈναρξηςΕβδομάδας,CONCATENATE(\"Εβδομάδα \",WEEKNUM(ΗμέραΗμερολογίου),\"/Ημέρα \",ΗμέραΗμερολογίου-DATE(YEAR(ΗμέραΗμερολογίου),1,0)),CONCATENATE(\"Ημέρα \",ΗμέραΗμερολογίου-DATE(YEAR(ΗμέραΗμερολογίου),1,0)))","v":"Ημέρα 101"},{"$f":"IF(WEEKDAY(ΗμέραΗμερολογίου)=ΤιμήΈναρξηςΕβδομάδας,CONCATENATE(\"Εβδομάδα \",WEEKNUM(ΗμέραΗμερολογίου),\"/Ημέρα \",ΗμέραΗμερολογίου-DATE(YEAR(ΗμέραΗμερολογίου),1,0)),CONCATENATE(\"Ημέρα \",ΗμέραΗμερολογίου-DATE(YEAR(ΗμέραΗμερολογίου),1,0)))","v":"Ημέρα 102"},{"$f":"IF(WEEKDAY(ΗμέραΗμερολογίου)=ΤιμήΈναρξηςΕβδομάδας,CONCATENATE(\"Εβδομάδα \",WEEKNUM(ΗμέραΗμερολογίου),\"/Ημέρα \",ΗμέραΗμερολογίου-DATE(YEAR(ΗμέραΗμερολογίου),1,0)),CONCATENATE(\"Ημέρα \",ΗμέραΗμερολογίου-DATE(YEAR(ΗμέραΗμερολογίου),1,0)))","v":"Ημέρα 103"},{"$f":"IF(WEEKDAY(ΗμέραΗμερολογίου)=ΤιμήΈναρξηςΕβδομάδας,CONCATENATE(\"Εβδομάδα \",WEEKNUM(ΗμέραΗμερολογίου),\"/Ημέρα \",ΗμέραΗμερολογίου-DATE(YEAR(ΗμέραΗμερολογίου),1,0)),CONCATENATE(\"Ημέρα \",ΗμέραΗμερολογίου-DATE(YEAR(ΗμέραΗμερολογίου),1,0)))","v":"Ημέρα 104"}]
[]
[null,null,{"$f":"ΗμέρεςΚαιΕβδομάδες+DATE(ΈτοςΗμερολογίου,4,1)-WEEKDAY(DATE(ΈτοςΗμερολογίου,4,1),(ΈναρξηΕβδομάδας=\"ΔΕΥ\")+1)+15","v":"2018-04-15"},"2018-04-16","2018-04-17","2018-04-18","2018-04-19","2018-04-20","2018-04-21"]
[null,null,{"$f":"IF(WEEKDAY(ΗμέραΗμερολογίου)=ΤιμήΈναρξηςΕβδομάδας,CONCATENATE(\"Εβδομάδα \",WEEKNUM(ΗμέραΗμερολογίου),\"/Ημέρα \",ΗμέραΗμερολογίου-DATE(YEAR(ΗμέραΗμερολογίου),1,0)),CONCATENATE(\"Ημέρα \",ΗμέραΗμερολογίου-DATE(YEAR(ΗμέραΗμερολογίου),1,0)))","v":"Εβδομάδα 16/Ημέρα 105"},{"$f":"IF(WEEKDAY(ΗμέραΗμερολογίου)=ΤιμήΈναρξηςΕβδομάδας,CONCATENATE(\"Εβδομάδα \",WEEKNUM(ΗμέραΗμερολογίου),\"/Ημέρα \",ΗμέραΗμερολογίου-DATE(YEAR(ΗμέραΗμερολογίου),1,0)),CONCATENATE(\"Ημέρα \",ΗμέραΗμερολογίου-DATE(YEAR(ΗμέραΗμερολογίου),1,0)))","v":"Ημέρα 106"},{"$f":"IF(WEEKDAY(ΗμέραΗμερολογίου)=ΤιμήΈναρξηςΕβδομάδας,CONCATENATE(\"Εβδομάδα \",WEEKNUM(ΗμέραΗμερολογίου),\"/Ημέρα \",ΗμέραΗμερολογίου-DATE(YEAR(ΗμέραΗμερολογίου),1,0)),CONCATENATE(\"Ημέρα \",ΗμέραΗμερολογίου-DATE(YEAR(ΗμέραΗμερολογίου),1,0)))","v":"Ημέρα 107"},{"$f":"IF(WEEKDAY(ΗμέραΗμερολογίου)=ΤιμήΈναρξηςΕβδομάδας,CONCATENATE(\"Εβδομάδα \",WEEKNUM(ΗμέραΗμερολογίου),\"/Ημέρα \",ΗμέραΗμερολογίου-DATE(YEAR(ΗμέραΗμερολογίου),1,0)),CONCATENATE(\"Ημέρα \",ΗμέραΗμερολογίου-DATE(YEAR(ΗμέραΗμερολογίου),1,0)))","v":"Ημέρα 108"},{"$f":"IF(WEEKDAY(ΗμέραΗμερολογίου)=ΤιμήΈναρξηςΕβδομάδας,CONCATENATE(\"Εβδομάδα \",WEEKNUM(ΗμέραΗμερολογίου),\"/Ημέρα \",ΗμέραΗμερολογίου-DATE(YEAR(ΗμέραΗμερολογίου),1,0)),CONCATENATE(\"Ημέρα \",ΗμέραΗμερολογίου-DATE(YEAR(ΗμέραΗμερολογίου),1,0)))","v":"Ημέρα 109"},{"$f":"IF(WEEKDAY(ΗμέραΗμερολογίου)=ΤιμήΈναρξηςΕβδομάδας,CONCATENATE(\"Εβδομάδα \",WEEKNUM(ΗμέραΗμερολογίου),\"/Ημέρα \",ΗμέραΗμερολογίου-DATE(YEAR(ΗμέραΗμερολογίου),1,0)),CONCATENATE(\"Ημέρα \",ΗμέραΗμερολογίου-DATE(YEAR(ΗμέραΗμερολογίου),1,0)))","v":"Ημέρα 110"},{"$f":"IF(WEEKDAY(ΗμέραΗμερολογίου)=ΤιμήΈναρξηςΕβδομάδας,CONCATENATE(\"Εβδομάδα \",WEEKNUM(ΗμέραΗμερολογίου),\"/Ημέρα \",ΗμέραΗμερολογίου-DATE(YEAR(ΗμέραΗμερολογίου),1,0)),CONCATENATE(\"Ημέρα \",ΗμέραΗμερολογίου-DATE(YEAR(ΗμέραΗμερολογίου),1,0)))","v":"Ημέρα 111"}]
[]
[null,null,{"$f":"ΗμέρεςΚαιΕβδομάδες+DATE(ΈτοςΗμερολογίου,4,1)-WEEKDAY(DATE(ΈτοςΗμερολογίου,4,1),(ΈναρξηΕβδομάδας=\"ΔΕΥ\")+1)+22","v":"2018-04-22"},"2018-04-23","2018-04-24","2018-04-25","2018-04-26","2018-04-27","2018-04-28"]
[null,null,{"$f":"IF(WEEKDAY(ΗμέραΗμερολογίου)=ΤιμήΈναρξηςΕβδομάδας,CONCATENATE(\"Εβδομάδα \",WEEKNUM(ΗμέραΗμερολογίου),\"/Ημέρα \",ΗμέραΗμερολογίου-DATE(YEAR(ΗμέραΗμερολογίου),1,0)),CONCATENATE(\"Ημέρα \",ΗμέραΗμερολογίου-DATE(YEAR(ΗμέραΗμερολογίου),1,0)))","v":"Εβδομάδα 17/Ημέρα 112"},{"$f":"IF(WEEKDAY(ΗμέραΗμερολογίου)=ΤιμήΈναρξηςΕβδομάδας,CONCATENATE(\"Εβδομάδα \",WEEKNUM(ΗμέραΗμερολογίου),\"/Ημέρα \",ΗμέραΗμερολογίου-DATE(YEAR(ΗμέραΗμερολογίου),1,0)),CONCATENATE(\"Ημέρα \",ΗμέραΗμερολογίου-DATE(YEAR(ΗμέραΗμερολογίου),1,0)))","v":"Ημέρα 113"},{"$f":"IF(WEEKDAY(ΗμέραΗμερολογίου)=ΤιμήΈναρξηςΕβδομάδας,CONCATENATE(\"Εβδομάδα \",WEEKNUM(ΗμέραΗμερολογίου),\"/Ημέρα \",ΗμέραΗμερολογίου-DATE(YEAR(ΗμέραΗμερολογίου),1,0)),CONCATENATE(\"Ημέρα \",ΗμέραΗμερολογίου-DATE(YEAR(ΗμέραΗμερολογίου),1,0)))","v":"Ημέρα 114"},{"$f":"IF(WEEKDAY(ΗμέραΗμερολογίου)=ΤιμήΈναρξηςΕβδομάδας,CONCATENATE(\"Εβδομάδα \",WEEKNUM(ΗμέραΗμερολογίου),\"/Ημέρα \",ΗμέραΗμερολογίου-DATE(YEAR(ΗμέραΗμερολογίου),1,0)),CONCATENATE(\"Ημέρα \",ΗμέραΗμερολογίου-DATE(YEAR(ΗμέραΗμερολογίου),1,0)))","v":"Ημέρα 115"},{"$f":"IF(WEEKDAY(ΗμέραΗμερολογίου)=ΤιμήΈναρξηςΕβδομάδας,CONCATENATE(\"Εβδομάδα \",WEEKNUM(ΗμέραΗμερολογίου),\"/Ημέρα \",ΗμέραΗμερολογίου-DATE(YEAR(ΗμέραΗμερολογίου),1,0)),CONCATENATE(\"Ημέρα \",ΗμέραΗμερολογίου-DATE(YEAR(ΗμέραΗμερολογίου),1,0)))","v":"Ημέρα 116"},{"$f":"IF(WEEKDAY(ΗμέραΗμερολογίου)=ΤιμήΈναρξηςΕβδομάδας,CONCATENATE(\"Εβδομάδα \",WEEKNUM(ΗμέραΗμερολογίου),\"/Ημέρα \",ΗμέραΗμερολογίου-DATE(YEAR(ΗμέραΗμερολογίου),1,0)),CONCATENATE(\"Ημέρα \",ΗμέραΗμερολογίου-DATE(YEAR(ΗμέραΗμερολογίου),1,0)))","v":"Ημέρα 117"},{"$f":"IF(WEEKDAY(ΗμέραΗμερολογίου)=ΤιμήΈναρξηςΕβδομάδας,CONCATENATE(\"Εβδομάδα \",WEEKNUM(ΗμέραΗμερολογίου),\"/Ημέρα \",ΗμέραΗμερολογίου-DATE(YEAR(ΗμέραΗμερολογίου),1,0)),CONCATENATE(\"Ημέρα \",ΗμέραΗμερολογίου-DATE(YEAR(ΗμέραΗμερολογίου),1,0)))","v":"Ημέρα 118"}]
[]
[null,null,{"$f":"ΗμέρεςΚαιΕβδομάδες+DATE(ΈτοςΗμερολογίου,4,1)-WEEKDAY(DATE(ΈτοςΗμερολογίου,4,1),(ΈναρξηΕβδομάδας=\"ΔΕΥ\")+1)+29","v":"2018-04-29"},"2018-04-30","2018-05-01","2018-05-02","2018-05-03","2018-05-04","2018-05-05"]
[null,null,{"$f":"IF(WEEKDAY(ΗμέραΗμερολογίου)=ΤιμήΈναρξηςΕβδομάδας,CONCATENATE(\"Εβδομάδα \",WEEKNUM(ΗμέραΗμερολογίου),\"/Ημέρα \",ΗμέραΗμερολογίου-DATE(YEAR(ΗμέραΗμερολογίου),1,0)),CONCATENATE(\"Ημέρα \",ΗμέραΗμερολογίου-DATE(YEAR(ΗμέραΗμερολογίου),1,0)))","v":"Εβδομάδα 18/Ημέρα 119"},{"$f":"IF(WEEKDAY(ΗμέραΗμερολογίου)=ΤιμήΈναρξηςΕβδομάδας,CONCATENATE(\"Εβδομάδα \",WEEKNUM(ΗμέραΗμερολογίου),\"/Ημέρα \",ΗμέραΗμερολογίου-DATE(YEAR(ΗμέραΗμερολογίου),1,0)),CONCATENATE(\"Ημέρα \",ΗμέραΗμερολογίου-DATE(YEAR(ΗμέραΗμερολογίου),1,0)))","v":"Ημέρα 120"},{"$f":"IF(WEEKDAY(ΗμέραΗμερολογίου)=ΤιμήΈναρξηςΕβδομάδας,CONCATENATE(\"Εβδομάδα \",WEEKNUM(ΗμέραΗμερολογίου),\"/Ημέρα \",ΗμέραΗμερολογίου-DATE(YEAR(ΗμέραΗμερολογίου),1,0)),CONCATENATE(\"Ημέρα \",ΗμέραΗμερολογίου-DATE(YEAR(ΗμέραΗμερολογίου),1,0)))","v":"Ημέρα 121"},{"$f":"IF(WEEKDAY(ΗμέραΗμερολογίου)=ΤιμήΈναρξηςΕβδομάδας,CONCATENATE(\"Εβδομάδα \",WEEKNUM(ΗμέραΗμερολογίου),\"/Ημέρα \",ΗμέραΗμερολογίου-DATE(YEAR(ΗμέραΗμερολογίου),1,0)),CONCATENATE(\"Ημέρα \",ΗμέραΗμερολογίου-DATE(YEAR(ΗμέραΗμερολογίου),1,0)))","v":"Ημέρα 122"},{"$f":"IF(WEEKDAY(ΗμέραΗμερολογίου)=ΤιμήΈναρξηςΕβδομάδας,CONCATENATE(\"Εβδομάδα \",WEEKNUM(ΗμέραΗμερολογίου),\"/Ημέρα \",ΗμέραΗμερολογίου-DATE(YEAR(ΗμέραΗμερολογίου),1,0)),CONCATENATE(\"Ημέρα \",ΗμέραΗμερολογίου-DATE(YEAR(ΗμέραΗμερολογίου),1,0)))","v":"Ημέρα 123"},{"$f":"IF(WEEKDAY(ΗμέραΗμερολογίου)=ΤιμήΈναρξηςΕβδομάδας,CONCATENATE(\"Εβδομάδα \",WEEKNUM(ΗμέραΗμερολογίου),\"/Ημέρα \",ΗμέραΗμερολογίου-DATE(YEAR(ΗμέραΗμερολογίου),1,0)),CONCATENATE(\"Ημέρα \",ΗμέραΗμερολογίου-DATE(YEAR(ΗμέραΗμερολογίου),1,0)))","v":"Ημέρα 124"},{"$f":"IF(WEEKDAY(ΗμέραΗμερολογίου)=ΤιμήΈναρξηςΕβδομάδας,CONCATENATE(\"Εβδομάδα \",WEEKNUM(ΗμέραΗμερολογίου),\"/Ημέρα \",ΗμέραΗμερολογίου-DATE(YEAR(ΗμέραΗμερολογίου),1,0)),CONCATENATE(\"Ημέρα \",ΗμέραΗμερολογίου-DATE(YEAR(ΗμέραΗμερολογίου),1,0)))","v":"Ημέρα 125"}]
[{"$nulls":4},"ΣΗΜΕΙΩΣΕΙΣ"]
[]
[null,null,{"$f":"ΗμέρεςΚαιΕβδομάδες+DATE(ΈτοςΗμερολογίου,4,1)-WEEKDAY(DATE(ΈτοςΗμερολογίου,4,1),(ΈναρξηΕβδομάδας=\"ΔΕΥ\")+1)+36","v":"2018-05-06"},"2018-05-07"]
[null,null,{"$f":"IF(WEEKDAY(ΗμέραΗμερολογίου)=ΤιμήΈναρξηςΕβδομάδας,CONCATENATE(\"Εβδομάδα \",WEEKNUM(ΗμέραΗμερολογίου),\"/Ημέρα \",ΗμέραΗμερολογίου-DATE(YEAR(ΗμέραΗμερολογίου),1,0)),CONCATENATE(\"Ημέρα \",ΗμέραΗμερολογίου-DATE(YEAR(ΗμέραΗμερολογίου),1,0)))","v":"Εβδομάδα 19/Ημέρα 126"},{"$f":"IF(WEEKDAY(ΗμέραΗμερολογίου)=ΤιμήΈναρξηςΕβδομάδας,CONCATENATE(\"Εβδομάδα \",WEEKNUM(ΗμέραΗμερολογίου),\"/Ημέρα \",ΗμέραΗμερολογίου-DATE(YEAR(ΗμέραΗμερολογίου),1,0)),CONCATENATE(\"Ημέρα \",ΗμέραΗμερολογίου-DATE(YEAR(ΗμέραΗμερολογίου),1,0)))","v":"Ημέρα 127"}]

{"sheet":"ΜΑΪΟΣ","index":4,"n_rows":20,"n_cols":9,"rows_kept":20,"merged":[[16,2,17,2],[17,4,19,8]]}
[null,"ΜΑΪΟΣ",{"$f":"UPPER(TEXT(ΈναρξηΕβδομάδας,\"ddd\"))","v":"ΚΥΡ"},{"$f":"UPPER(TEXT(D3,\"aaa\"))","v":"ΔΕΥ"},"ΤΡΙ","ΤΕΤ","ΠΕΜ","ΠΑΡ","ΣΑΒ"]
[null,{"$f":"ΈτοςΗμερολογίου","v":2018}]
[null,null,{"$f":"ΗμέρεςΚαιΕβδομάδες+DATE(ΈτοςΗμερολογίου,5,1)-WEEKDAY(DATE(ΈτοςΗμερολογίου,5,1),(ΈναρξηΕβδομάδας=\"ΔΕΥ\")+1)+1","v":"2018-04-29"},"2018-04-30","2018-05-01","2018-05-02","2018-05-03","2018-05-04","2018-05-05"]
[null,null,{"$f":"IF(DAY(ΗμέραΗμερολογίου)=1,CONCATENATE(\"Εβδομάδα \",WEEKNUM(ΗμέραΗμερολογίου),\"/Ημέρα \",ΗμέραΗμερολογίου-DATE(YEAR(ΗμέραΗμερολογίου),1,0)),CONCATENATE(\"Ημέρα \",ΗμέραΗμερολογίου-DATE(YEAR(ΗμέραΗμερολογίου),1,0)))","v":"Ημέρα 119"},"Ημέρα 120","Εβδομάδα 18/Ημέρα 121","Ημέρα 122","Ημέρα 123","Ημέρα 124","Ημέρα 125"]
[]
[null,null,{"$f":"ΗμέρεςΚαιΕβδομάδες+DATE(ΈτοςΗμερολογίου,5,1)-WEEKDAY(DATE(ΈτοςΗμερολογίου,5,1),(ΈναρξηΕβδομάδας=\"ΔΕΥ\")+1)+8","v":"2018-05-06"},"2018-05-07","2018-05-08","2018-05-09","2018-05-10","2018-05-11","2018-05-12"]
[null,null,{"$f":"IF(WEEKDAY(ΗμέραΗμερολογίου)=ΤιμήΈναρξηςΕβδομάδας,CONCATENATE(\"Εβδομάδα \",WEEKNUM(ΗμέραΗμερολογίου),\"/Ημέρα \",ΗμέραΗμερολογίου-DATE(YEAR(ΗμέραΗμερολογίου),1,0)),CONCATENATE(\"Ημέρα \",ΗμέραΗμερολογίου-DATE(YEAR(ΗμέραΗμερολογίου),1,0)))","v":"Εβδομάδα 19/Ημέρα 126"},{"$f":"IF(WEEKDAY(ΗμέραΗμερολογίου)=ΤιμήΈναρξηςΕβδομάδας,CONCATENATE(\"Εβδομάδα \",WEEKNUM(ΗμέραΗμερολογίου),\"/Ημέρα \",ΗμέραΗμερολογίου-DATE(YEAR(ΗμέραΗμερολογίου),1,0)),CONCATENATE(\"Ημέρα \",ΗμέραΗμερολογίου-DATE(YEAR(ΗμέραΗμερολογίου),1,0)))","v":"Ημέρα 127"},{"$f":"IF(WEEKDAY(ΗμέραΗμερολογίου)=ΤιμήΈναρξηςΕβδομάδας,CONCATENATE(\"Εβδομάδα \",WEEKNUM(ΗμέραΗμερολογίου),\"/Ημέρα \",ΗμέραΗμερολογίου-DATE(YEAR(ΗμέραΗμερολογίου),1,0)),CONCATENATE(\"Ημέρα \",ΗμέραΗμερολογίου-DATE(YEAR(ΗμέραΗμερολογίου),1,0)))","v":"Ημέρα 128"},{"$f":"IF(WEEKDAY(ΗμέραΗμερολογίου)=ΤιμήΈναρξηςΕβδομάδας,CONCATENATE(\"Εβδομάδα \",WEEKNUM(ΗμέραΗμερολογίου),\"/Ημέρα \",ΗμέραΗμερολογίου-DATE(YEAR(ΗμέραΗμερολογίου),1,0)),CONCATENATE(\"Ημέρα \",ΗμέραΗμερολογίου-DATE(YEAR(ΗμέραΗμερολογίου),1,0)))","v":"Ημέρα 129"},{"$f":"IF(WEEKDAY(ΗμέραΗμερολογίου)=ΤιμήΈναρξηςΕβδομάδας,CONCATENATE(\"Εβδομάδα \",WEEKNUM(ΗμέραΗμερολογίου),\"/Ημέρα \",ΗμέραΗμερολογίου-DATE(YEAR(ΗμέραΗμερολογίου),1,0)),CONCATENATE(\"Ημέρα \",ΗμέραΗμερολογίου-DATE(YEAR(ΗμέραΗμερολογίου),1,0)))","v":"Ημέρα 130"},{"$f":"IF(WEEKDAY(ΗμέραΗμερολογίου)=ΤιμήΈναρξηςΕβδομάδας,CONCATENATE(\"Εβδομάδα \",WEEKNUM(ΗμέραΗμερολογίου),\"/Ημέρα \",ΗμέραΗμερολογίου-DATE(YEAR(ΗμέραΗμερολογίου),1,0)),CONCATENATE(\"Ημέρα \",ΗμέραΗμερολογίου-DATE(YEAR(ΗμέραΗμερολογίου),1,0)))","v":"Ημέρα 131"},{"$f":"IF(WEEKDAY(ΗμέραΗμερολογίου)=ΤιμήΈναρξηςΕβδομάδας,CONCATENATE(\"Εβδομάδα \",WEEKNUM(ΗμέραΗμερολογίου),\"/Ημέρα \",ΗμέραΗμερολογίου-DATE(YEAR(ΗμέραΗμερολογίου),1,0)),CONCATENATE(\"Ημέρα \",ΗμέραΗμερολογίου-DATE(YEAR(ΗμέραΗμερολογίου),1,0)))","v":"Ημέρα 132"}]
[]
[null,null,{"$f":"ΗμέρεςΚαιΕβδομάδες+DATE(ΈτοςΗμερολογίου,5,1)-WEEKDAY(DATE(ΈτοςΗμερολογίου,5,1),(ΈναρξηΕβδομάδας=\"ΔΕΥ\")+1)+15","v":"2018-05-13"},"2018-05-14","2018-05-15","2018-05-16","2018-05-17","2018-05-18","2018-05-19"]
[null,null,{"$f":"IF(WEEKDAY(ΗμέραΗμερολογίου)=ΤιμήΈναρξηςΕβδομάδας,CONCATENATE(\"Εβδομάδα \",WEEKNUM(ΗμέραΗμερολογίου),\"/Ημέρα \",ΗμέραΗμερολογίου-DATE(YEAR(ΗμέραΗμερολογίου),1,0)),CONCATENATE(\"Ημέρα \",ΗμέραΗμερολογίου-DATE(YEAR(ΗμέραΗμερολογίου),1,0)))","v":"Εβδομάδα 20/Ημέρα 133"},{"$f":"IF(WEEKDAY(ΗμέραΗμερολογίου)=ΤιμήΈναρξηςΕβδομάδας,CONCATENATE(\"Εβδομάδα \",WEEKNUM(ΗμέραΗμερολογίου),\"/Ημέρα \",ΗμέραΗμερολογίου-DATE(YEAR(ΗμέραΗμερολογίου),1,0)),CONCATENATE(\"Ημέρα \",ΗμέραΗμερολογίου-DATE(YEAR(ΗμέραΗμερολογίου),1,0)))","v":"Ημέρα 134"},{"$f":"IF(WEEKDAY(ΗμέραΗμερολογίου)=ΤιμήΈναρξηςΕβδομάδας,CONCATENATE(\"Εβδομάδα \",WEEKNUM(ΗμέραΗμερολογίου),\"/Ημέρα \",ΗμέραΗμερολογίου-DATE(YEAR(ΗμέραΗμερολογίου),1,0)),CONCATENATE(\"Ημέρα \",ΗμέραΗμερολογίου-DATE(YEAR(ΗμέραΗμερολογίου),1,0)))","v":"Ημέρα 135"},{"$f":"IF(WEEKDAY(ΗμέραΗμερολογίου)=ΤιμήΈναρξηςΕβδομάδας,CONCATENATE(\"Εβδομάδα \",WEEKNUM(ΗμέραΗμερολογίου),\"/Ημέρα \",ΗμέραΗμερολογίου-DATE(YEAR(ΗμέραΗμερολογίου),1,0)),CONCATENATE(\"Ημέρα \",ΗμέραΗμερολογίου-DATE(YEAR(ΗμέραΗμερολογίου),1,0)))","v":"Ημέρα 136"},{"$f":"IF(WEEKDAY(ΗμέραΗμερολογίου)=ΤιμήΈναρξηςΕβδομάδας,CONCATENATE(\"Εβδομάδα \",WEEKNUM(ΗμέραΗμερολογίου),\"/Ημέρα \",ΗμέραΗμερολογίου-DATE(YEAR(ΗμέραΗμερολογίου),1,0)),CONCATENATE(\"Ημέρα \",ΗμέραΗμερολογίου-DATE(YEAR(ΗμέραΗμερολογίου),1,0)))","v":"Ημέρα 137"},{"$f":"IF(WEEKDAY(ΗμέραΗμερολογίου)=ΤιμήΈναρξηςΕβδομάδας,CONCATENATE(\"Εβδομάδα \",WEEKNUM(ΗμέραΗμερολογίου),\"/Ημέρα \",ΗμέραΗμερολογίου-DATE(YEAR(ΗμέραΗμερολογίου),1,0)),CONCATENATE(\"Ημέρα \",ΗμέραΗμερολογίου-DATE(YEAR(ΗμέραΗμερολογίου),1,0)))","v":"Ημέρα 138"},{"$f":"IF(WEEKDAY(ΗμέραΗμερολογίου)=ΤιμήΈναρξηςΕβδομάδας,CONCATENATE(\"Εβδομάδα \",WEEKNUM(ΗμέραΗμερολογίου),\"/Ημέρα \",ΗμέραΗμερολογίου-DATE(YEAR(ΗμέραΗμερολογίου),1,0)),CONCATENATE(\"Ημέρα \",ΗμέραΗμερολογίου-DATE(YEAR(ΗμέραΗμερολογίου),1,0)))","v":"Ημέρα 139"}]
[]
[null,null,{"$f":"ΗμέρεςΚαιΕβδομάδες+DATE(ΈτοςΗμερολογίου,5,1)-WEEKDAY(DATE(ΈτοςΗμερολογίου,5,1),(ΈναρξηΕβδομάδας=\"ΔΕΥ\")+1)+22","v":"2018-05-20"},"2018-05-21","2018-05-22","2018-05-23","2018-05-24","2018-05-25","2018-05-26"]
[null,null,{"$f":"IF(WEEKDAY(ΗμέραΗμερολογίου)=ΤιμήΈναρξηςΕβδομάδας,CONCATENATE(\"Εβδομάδα \",WEEKNUM(ΗμέραΗμερολογίου),\"/Ημέρα \",ΗμέραΗμερολογίου-DATE(YEAR(ΗμέραΗμερολογίου),1,0)),CONCATENATE(\"Ημέρα \",ΗμέραΗμερολογίου-DATE(YEAR(ΗμέραΗμερολογίου),1,0)))","v":"Εβδομάδα 21/Ημέρα 140"},{"$f":"IF(WEEKDAY(ΗμέραΗμερολογίου)=ΤιμήΈναρξηςΕβδομάδας,CONCATENATE(\"Εβδομάδα \",WEEKNUM(ΗμέραΗμερολογίου),\"/Ημέρα \",ΗμέραΗμερολογίου-DATE(YEAR(ΗμέραΗμερολογίου),1,0)),CONCATENATE(\"Ημέρα \",ΗμέραΗμερολογίου-DATE(YEAR(ΗμέραΗμερολογίου),1,0)))","v":"Ημέρα 141"},{"$f":"IF(WEEKDAY(ΗμέραΗμερολογίου)=ΤιμήΈναρξηςΕβδομάδας,CONCATENATE(\"Εβδομάδα \",WEEKNUM(ΗμέραΗμερολογίου),\"/Ημέρα \",ΗμέραΗμερολογίου-DATE(YEAR(ΗμέραΗμερολογίου),1,0)),CONCATENATE(\"Ημέρα \",ΗμέραΗμερολογίου-DATE(YEAR(ΗμέραΗμερολογίου),1,0)))","v":"Ημέρα 142"},{"$f":"IF(WEEKDAY(ΗμέραΗμερολογίου)=ΤιμήΈναρξηςΕβδομάδας,CONCATENATE(\"Εβδομάδα \",WEEKNUM(ΗμέραΗμερολογίου),\"/Ημέρα \",ΗμέραΗμερολογίου-DATE(YEAR(ΗμέραΗμερολογίου),1,0)),CONCATENATE(\"Ημέρα \",ΗμέραΗμερολογίου-DATE(YEAR(ΗμέραΗμερολογίου),1,0)))","v":"Ημέρα 143"},{"$f":"IF(WEEKDAY(ΗμέραΗμερολογίου)=ΤιμήΈναρξηςΕβδομάδας,CONCATENATE(\"Εβδομάδα \",WEEKNUM(ΗμέραΗμερολογίου),\"/Ημέρα \",ΗμέραΗμερολογίου-DATE(YEAR(ΗμέραΗμερολογίου),1,0)),CONCATENATE(\"Ημέρα \",ΗμέραΗμερολογίου-DATE(YEAR(ΗμέραΗμερολογίου),1,0)))","v":"Ημέρα 144"},{"$f":"IF(WEEKDAY(ΗμέραΗμερολογίου)=ΤιμήΈναρξηςΕβδομάδας,CONCATENATE(\"Εβδομάδα \",WEEKNUM(ΗμέραΗμερολογίου),\"/Ημέρα \",ΗμέραΗμερολογίου-DATE(YEAR(ΗμέραΗμερολογίου),1,0)),CONCATENATE(\"Ημέρα \",ΗμέραΗμερολογίου-DATE(YEAR(ΗμέραΗμερολογίου),1,0)))","v":"Ημέρα 145"},{"$f":"IF(WEEKDAY(ΗμέραΗμερολογίου)=ΤιμήΈναρξηςΕβδομάδας,CONCATENATE(\"Εβδομάδα \",WEEKNUM(ΗμέραΗμερολογίου),\"/Ημέρα \",ΗμέραΗμερολογίου-DATE(YEAR(ΗμέραΗμερολογίου),1,0)),CONCATENATE(\"Ημέρα \",ΗμέραΗμερολογίου-DATE(YEAR(ΗμέραΗμερολογίου),1,0)))","v":"Ημέρα 146"}]
[]
[null,null,{"$f":"ΗμέρεςΚαιΕβδομάδες+DATE(ΈτοςΗμερολογίου,5,1)-WEEKDAY(DATE(ΈτοςΗμερολογίου,5,1),(ΈναρξηΕβδομάδας=\"ΔΕΥ\")+1)+29","v":"2018-05-27"},"2018-05-28","2018-05-29","2018-05-30","2018-05-31","2018-06-01","2018-06-02"]
[null,null,{"$f":"IF(WEEKDAY(ΗμέραΗμερολογίου)=ΤιμήΈναρξηςΕβδομάδας,CONCATENATE(\"Εβδομάδα \",WEEKNUM(ΗμέραΗμερολογίου),\"/Ημέρα \",ΗμέραΗμερολογίου-DATE(YEAR(ΗμέραΗμερολογίου),1,0)),CONCATENATE(\"Ημέρα \",ΗμέραΗμερολογίου-DATE(YEAR(ΗμέραΗμερολογίου),1,0)))","v":"Εβδομάδα 22/Ημέρα 147"},{"$f":"IF(WEEKDAY(ΗμέραΗμερολογίου)=ΤιμήΈναρξηςΕβδομάδας,CONCATENATE(\"Εβδομάδα \",WEEKNUM(ΗμέραΗμερολογίου),\"/Ημέρα \",ΗμέραΗμερολογίου-DATE(YEAR(ΗμέραΗμερολογίου),1,0)),CONCATENATE(\"Ημέρα \",ΗμέραΗμερολογίου-DATE(YEAR(ΗμέραΗμερολογίου),1,0)))","v":"Ημέρα 148"},{"$f":"IF(WEEKDAY(ΗμέραΗμερολογίου)=ΤιμήΈναρξηςΕβδομάδας,CONCATENATE(\"Εβδομάδα \",WEEKNUM(ΗμέραΗμερολογίου),\"/Ημέρα \",ΗμέραΗμερολογίου-DATE(YEAR(ΗμέραΗμερολογίου),1,0)),CONCATENATE(\"Ημέρα \",ΗμέραΗμερολογίου-DATE(YEAR(ΗμέραΗμερολογίου),1,0)))","v":"Ημέρα 149"},{"$f":"IF(WEEKDAY(ΗμέραΗμερολογίου)=ΤιμήΈναρξηςΕβδομάδας,CONCATENATE(\"Εβδομάδα \",WEEKNUM(ΗμέραΗμερολογίου),\"/Ημέρα \",ΗμέραΗμερολογίου-DATE(YEAR(ΗμέραΗμερολογίου),1,0)),CONCATENATE(\"Ημέρα \",ΗμέραΗμερολογίου-DATE(YEAR(ΗμέραΗμερολογίου),1,0)))","v":"Ημέρα 150"},{"$f":"IF(WEEKDAY(ΗμέραΗμερολογίου)=ΤιμήΈναρξηςΕβδομάδας,CONCATENATE(\"Εβδομάδα \",WEEKNUM(ΗμέραΗμερολογίου),\"/Ημέρα \",ΗμέραΗμερολογίου-DATE(YEAR(ΗμέραΗμερολογίου),1,0)),CONCATENATE(\"Ημέρα \",ΗμέραΗμερολογίου-DATE(YEAR(ΗμέραΗμερολογίου),1,0)))","v":"Ημέρα 151"},{"$f":"IF(WEEKDAY(ΗμέραΗμερολογίου)=ΤιμήΈναρξηςΕβδομάδας,CONCATENATE(\"Εβδομάδα \",WEEKNUM(ΗμέραΗμερολογίου),\"/Ημέρα \",ΗμέραΗμερολογίου-DATE(YEAR(ΗμέραΗμερολογίου),1,0)),CONCATENATE(\"Ημέρα \",ΗμέραΗμερολογίου-DATE(YEAR(ΗμέραΗμερολογίου),1,0)))","v":"Ημέρα 152"},{"$f":"IF(WEEKDAY(ΗμέραΗμερολογίου)=ΤιμήΈναρξηςΕβδομάδας,CONCATENATE(\"Εβδομάδα \",WEEKNUM(ΗμέραΗμερολογίου),\"/Ημέρα \",ΗμέραΗμερολογίου-DATE(YEAR(ΗμέραΗμερολογίου),1,0)),CONCATENATE(\"Ημέρα \",ΗμέραΗμερολογίου-DATE(YEAR(ΗμέραΗμερολογίου),1,0)))","v":"Ημέρα 153"}]
[{"$nulls":4},"ΣΗΜΕΙΩΣΕΙΣ"]
[]
[null,null,{"$f":"ΗμέρεςΚαιΕβδομάδες+DATE(ΈτοςΗμερολογίου,5,1)-WEEKDAY(DATE(ΈτοςΗμερολογίου,5,1),(ΈναρξηΕβδομάδας=\"ΔΕΥ\")+1)+36","v":"2018-06-03"},"2018-06-04"]
[null,null,{"$f":"IF(WEEKDAY(ΗμέραΗμερολογίου)=ΤιμήΈναρξηςΕβδομάδας,CONCATENATE(\"Εβδομάδα \",WEEKNUM(ΗμέραΗμερολογίου),\"/Ημέρα \",ΗμέραΗμερολογίου-DATE(YEAR(ΗμέραΗμερολογίου),1,0)),CONCATENATE(\"Ημέρα \",ΗμέραΗμερολογίου-DATE(YEAR(ΗμέραΗμερολογίου),1,0)))","v":"Εβδομάδα 23/Ημέρα 154"},{"$f":"IF(WEEKDAY(ΗμέραΗμερολογίου)=ΤιμήΈναρξηςΕβδομάδας,CONCATENATE(\"Εβδομάδα \",WEEKNUM(ΗμέραΗμερολογίου),\"/Ημέρα \",ΗμέραΗμερολογίου-DATE(YEAR(ΗμέραΗμερολογίου),1,0)),CONCATENATE(\"Ημέρα \",ΗμέραΗμερολογίου-DATE(YEAR(ΗμέραΗμερολογίου),1,0)))","v":"Ημέρα 155"}]

{"sheet":"ΙΟΥΝ","index":5,"n_rows":20,"n_cols":9,"rows_kept":20,"merged":[[16,2,17,2],[17,4,19,8]]}
[null,"ΙΟΥΝ",{"$f":"UPPER(TEXT(ΈναρξηΕβδομάδας,\"ddd\"))","v":"ΚΥΡ"},{"$f":"UPPER(TEXT(D3,\"aaa\"))","v":"ΔΕΥ"},"ΤΡΙ","ΤΕΤ","ΠΕΜ","ΠΑΡ","ΣΑΒ"]
[null,{"$f":"ΈτοςΗμερολογίου","v":2018}]
[null,null,{"$f":"ΗμέρεςΚαιΕβδομάδες+DATE(ΈτοςΗμερολογίου,6,1)-WEEKDAY(DATE(ΈτοςΗμερολογίου,6,1),(ΈναρξηΕβδομάδας=\"ΔΕΥ\")+1)+1","v":"2018-05-27"},"2018-05-28","2018-05-29","2018-05-30","2018-05-31","2018-06-01","2018-06-02"]
[null,null,{"$f":"IF(DAY(ΗμέραΗμερολογίου)=1,CONCATENATE(\"Εβδομάδα \",WEEKNUM(ΗμέραΗμερολογίου),\"/Ημέρα \",ΗμέραΗμερολογίου-DATE(YEAR(ΗμέραΗμερολογίου),1,0)),CONCATENATE(\"Ημέρα \",ΗμέραΗμερολογίου-DATE(YEAR(ΗμέραΗμερολογίου),1,0)))","v":"Ημέρα 147"},"Ημέρα 148","Ημέρα 149","Ημέρα 150","Ημέρα 151","Εβδομάδα 22/Ημέρα 152","Ημέρα 153"]
[]
[null,null,{"$f":"ΗμέρεςΚαιΕβδομάδες+DATE(ΈτοςΗμερολογίου,6,1)-WEEKDAY(DATE(ΈτοςΗμερολογίου,6,1),(ΈναρξηΕβδομάδας=\"ΔΕΥ\")+1)+8","v":"2018-06-03"},"2018-06-04","2018-06-05","2018-06-06","2018-06-07","2018-06-08","2018-06-09"]
[null,null,{"$f":"IF(WEEKDAY(ΗμέραΗμερολογίου)=ΤιμήΈναρξηςΕβδομάδας,CONCATENATE(\"Εβδομάδα \",WEEKNUM(ΗμέραΗμερολογίου),\"/Ημέρα \",ΗμέραΗμερολογίου-DATE(YEAR(ΗμέραΗμερολογίου),1,0)),CONCATENATE(\"Ημέρα \",ΗμέραΗμερολογίου-DATE(YEAR(ΗμέραΗμερολογίου),1,0)))","v":"Εβδομάδα 23/Ημέρα 154"},{"$f":"IF(WEEKDAY(ΗμέραΗμερολογίου)=ΤιμήΈναρξηςΕβδομάδας,CONCATENATE(\"Εβδομάδα \",WEEKNUM(ΗμέραΗμερολογίου),\"/Ημέρα \",ΗμέραΗμερολογίου-DATE(YEAR(ΗμέραΗμερολογίου),1,0)),CONCATENATE(\"Ημέρα \",ΗμέραΗμερολογίου-DATE(YEAR(ΗμέραΗμερολογίου),1,0)))","v":"Ημέρα 155"},{"$f":"IF(WEEKDAY(ΗμέραΗμερολογίου)=ΤιμήΈναρξηςΕβδομάδας,CONCATENATE(\"Εβδομάδα \",WEEKNUM(ΗμέραΗμερολογίου),\"/Ημέρα \",ΗμέραΗμερολογίου-DATE(YEAR(ΗμέραΗμερολογίου),1,0)),CONCATENATE(\"Ημέρα \",ΗμέραΗμερολογίου-DATE(YEAR(ΗμέραΗμερολογίου),1,0)))","v":"Ημέρα 156"},{"$f":"IF(WEEKDAY(ΗμέραΗμερολογίου)=ΤιμήΈναρξηςΕβδομάδας,CONCATENATE(\"Εβδομάδα \",WEEKNUM(ΗμέραΗμερολογίου),\"/Ημέρα \",ΗμέραΗμερολογίου-DATE(YEAR(ΗμέραΗμερολογίου),1,0)),CONCATENATE(\"Ημέρα \",ΗμέραΗμερολογίου-DATE(YEAR(ΗμέραΗμερολογίου),1,0)))","v":"Ημέρα 157"},{"$f":"IF(WEEKDAY(ΗμέραΗμερολογίου)=ΤιμήΈναρξηςΕβδομάδας,CONCATENATE(\"Εβδομάδα \",WEEKNUM(ΗμέραΗμερολογίου),\"/Ημέρα \",ΗμέραΗμερολογίου-DATE(YEAR(ΗμέραΗμερολογίου),1,0)),CONCATENATE(\"Ημέρα \",ΗμέραΗμερολογίου-DATE(YEAR(ΗμέραΗμερολογίου),1,0)))","v":"Ημέρα 158"},{"$f":"IF(WEEKDAY(ΗμέραΗμερολογίου)=ΤιμήΈναρξηςΕβδομάδας,CONCATENATE(\"Εβδομάδα \",WEEKNUM(ΗμέραΗμερολογίου),\"/Ημέρα \",ΗμέραΗμερολογίου-DATE(YEAR(ΗμέραΗμερολογίου),1,0)),CONCATENATE(\"Ημέρα \",ΗμέραΗμερολογίου-DATE(YEAR(ΗμέραΗμερολογίου),1,0)))","v":"Ημέρα 159"},{"$f":"IF(WEEKDAY(ΗμέραΗμερολογίου)=ΤιμήΈναρξηςΕβδομάδας,CONCATENATE(\"Εβδομάδα \",WEEKNUM(ΗμέραΗμερολογίου),\"/Ημέρα \",ΗμέραΗμερολογίου-DATE(YEAR(ΗμέραΗμερολογίου),1,0)),CONCATENATE(\"Ημέρα \",ΗμέραΗμερολογίου-DATE(YEAR(ΗμέραΗμερολογίου),1,0)))","v":"Ημέρα 160"}]
[]
[null,null,{"$f":"ΗμέρεςΚαιΕβδομάδες+DATE(ΈτοςΗμερολογίου,6,1)-WEEKDAY(DATE(ΈτοςΗμερολογίου,6,1),(ΈναρξηΕβδομάδας=\"ΔΕΥ\")+1)+15","v":"2018-06-10"},"2018-06-11","2018-06-12","2018-06-13","2018-06-14","2018-06-15","2018-06-16"]
[null,null,{"$f":"IF(WEEKDAY(ΗμέραΗμερολογίου)=ΤιμήΈναρξηςΕβδομάδας,CONCATENATE(\"Εβδομάδα \",WEEKNUM(ΗμέραΗμερολογίου),\"/Ημέρα \",ΗμέραΗμερολογίου-DATE(YEAR(ΗμέραΗμερολογίου),1,0)),CONCATENATE(\"Ημέρα \",ΗμέραΗμερολογίου-DATE(YEAR(ΗμέραΗμερολογίου),1,0)))","v":"Εβδομάδα 24/Ημέρα 161"},{"$f":"IF(WEEKDAY(ΗμέραΗμερολογίου)=ΤιμήΈναρξηςΕβδομάδας,CONCATENATE(\"Εβδομάδα \",WEEKNUM(ΗμέραΗμερολογίου),\"/Ημέρα \",ΗμέραΗμερολογίου-DATE(YEAR(ΗμέραΗμερολογίου),1,0)),CONCATENATE(\"Ημέρα \",ΗμέραΗμερολογίου-DATE(YEAR(ΗμέραΗμερολογίου),1,0)))","v":"Ημέρα 162"},{"$f":"IF(WEEKDAY(ΗμέραΗμερολογίου)=ΤιμήΈναρξηςΕβδομάδας,CONCATENATE(\"Εβδομάδα \",WEEKNUM(ΗμέραΗμερολογίου),\"/Ημέρα \",ΗμέραΗμερολογίου-DATE(YEAR(ΗμέραΗμερολογίου),1,0)),CONCATENATE(\"Ημέρα \",ΗμέραΗμερολογίου-DATE(YEAR(ΗμέραΗμερολογίου),1,0)))","v":"Ημέρα 163"},{"$f":"IF(WEEKDAY(ΗμέραΗμερολογίου)=ΤιμήΈναρξηςΕβδομάδας,CONCATENATE(\"Εβδομάδα \",WEEKNUM(ΗμέραΗμερολογίου),\"/Ημέρα \",ΗμέραΗμερολογίου-DATE(YEAR(ΗμέραΗμερολογίου),1,0)),CONCATENATE(\"Ημέρα \",ΗμέραΗμερολογίου-DATE(YEAR(ΗμέραΗμερολογίου),1,0)))","v":"Ημέρα 164"},{"$f":"IF(WEEKDAY(ΗμέραΗμερολογίου)=ΤιμήΈναρξηςΕβδομάδας,CONCATENATE(\"Εβδομάδα \",WEEKNUM(ΗμέραΗμερολογίου),\"/Ημέρα \",ΗμέραΗμερολογίου-DATE(YEAR(ΗμέραΗμερολογίου),1,0)),CONCATENATE(\"Ημέρα \",ΗμέραΗμερολογίου-DATE(YEAR(ΗμέραΗμερολογίου),1,0)))","v":"Ημέρα 165"},{"$f":"IF(WEEKDAY(ΗμέραΗμερολογίου)=ΤιμήΈναρξηςΕβδομάδας,CONCATENATE(\"Εβδομάδα \",WEEKNUM(ΗμέραΗμερολογίου),\"/Ημέρα \",ΗμέραΗμερολογίου-DATE(YEAR(ΗμέραΗμερολογίου),1,0)),CONCATENATE(\"Ημέρα \",ΗμέραΗμερολογίου-DATE(YEAR(ΗμέραΗμερολογίου),1,0)))","v":"Ημέρα 166"},{"$f":"IF(WEEKDAY(ΗμέραΗμερολογίου)=ΤιμήΈναρξηςΕβδομάδας,CONCATENATE(\"Εβδομάδα \",WEEKNUM(ΗμέραΗμερολογίου),\"/Ημέρα \",ΗμέραΗμερολογίου-DATE(YEAR(ΗμέραΗμερολογίου),1,0)),CONCATENATE(\"Ημέρα \",ΗμέραΗμερολογίου-DATE(YEAR(ΗμέραΗμερολογίου),1,0)))","v":"Ημέρα 167"}]
[]
[null,null,{"$f":"ΗμέρεςΚαιΕβδομάδες+DATE(ΈτοςΗμερολογίου,6,1)-WEEKDAY(DATE(ΈτοςΗμερολογίου,6,1),(ΈναρξηΕβδομάδας=\"ΔΕΥ\")+1)+22","v":"2018-06-17"},"2018-06-18","2018-06-19","2018-06-20","2018-06-21","2018-06-22","2018-06-23"]
[null,null,{"$f":"IF(WEEKDAY(ΗμέραΗμερολογίου)=ΤιμήΈναρξηςΕβδομάδας,CONCATENATE(\"Εβδομάδα \",WEEKNUM(ΗμέραΗμερολογίου),\"/Ημέρα \",ΗμέραΗμερολογίου-DATE(YEAR(ΗμέραΗμερολογίου),1,0)),CONCATENATE(\"Ημέρα \",ΗμέραΗμερολογίου-DATE(YEAR(ΗμέραΗμερολογίου),1,0)))","v":"Εβδομάδα 25/Ημέρα 168"},{"$f":"IF(WEEKDAY(ΗμέραΗμερολογίου)=ΤιμήΈναρξηςΕβδομάδας,CONCATENATE(\"Εβδομάδα \",WEEKNUM(ΗμέραΗμερολογίου),\"/Ημέρα \",ΗμέραΗμερολογίου-DATE(YEAR(ΗμέραΗμερολογίου),1,0)),CONCATENATE(\"Ημέρα \",ΗμέραΗμερολογίου-DATE(YEAR(ΗμέραΗμερολογίου),1,0)))","v":"Ημέρα 169"},{"$f":"IF(WEEKDAY(ΗμέραΗμερολογίου)=ΤιμήΈναρξηςΕβδομάδας,CONCATENATE(\"Εβδομάδα \",WEEKNUM(ΗμέραΗμερολογίου),\"/Ημέρα \",ΗμέραΗμερολογίου-DATE(YEAR(ΗμέραΗμερολογίου),1,0)),CONCATENATE(\"Ημέρα \",ΗμέραΗμερολογίου-DATE(YEAR(ΗμέραΗμερολογίου),1,0)))","v":"Ημέρα 170"},{"$f":"IF(WEEKDAY(ΗμέραΗμερολογίου)=ΤιμήΈναρξηςΕβδομάδας,CONCATENATE(\"Εβδομάδα \",WEEKNUM(ΗμέραΗμερολογίου),\"/Ημέρα \",ΗμέραΗμερολογίου-DATE(YEAR(ΗμέραΗμερολογίου),1,0)),CONCATENATE(\"Ημέρα \",ΗμέραΗμερολογίου-DATE(YEAR(ΗμέραΗμερολογίου),1,0)))","v":"Ημέρα 171"},{"$f":"IF(WEEKDAY(ΗμέραΗμερολογίου)=ΤιμήΈναρξηςΕβδομάδας,CONCATENATE(\"Εβδομάδα \",WEEKNUM(ΗμέραΗμερολογίου),\"/Ημέρα \",ΗμέραΗμερολογίου-DATE(YEAR(ΗμέραΗμερολογίου),1,0)),CONCATENATE(\"Ημέρα \",ΗμέραΗμερολογίου-DATE(YEAR(ΗμέραΗμερολογίου),1,0)))","v":"Ημέρα 172"},{"$f":"IF(WEEKDAY(ΗμέραΗμερολογίου)=ΤιμήΈναρξηςΕβδομάδας,CONCATENATE(\"Εβδομάδα \",WEEKNUM(ΗμέραΗμερολογίου),\"/Ημέρα \",ΗμέραΗμερολογίου-DATE(YEAR(ΗμέραΗμερολογίου),1,0)),CONCATENATE(\"Ημέρα \",ΗμέραΗμερολογίου-DATE(YEAR(ΗμέραΗμερολογίου),1,0)))","v":"Ημέρα 173"},{"$f":"IF(WEEKDAY(ΗμέραΗμερολογίου)=ΤιμήΈναρξηςΕβδομάδας,CONCATENATE(\"Εβδομάδα \",WEEKNUM(ΗμέραΗμερολογίου),\"/Ημέρα \",ΗμέραΗμερολογίου-DATE(YEAR(ΗμέραΗμερολογίου),1,0)),CONCATENATE(\"Ημέρα \",ΗμέραΗμερολογίου-DATE(YEAR(ΗμέραΗμερολογίου),1,0)))","v":"Ημέρα 174"}]
[]
[null,null,{"$f":"ΗμέρεςΚαιΕβδομάδες+DATE(ΈτοςΗμερολογίου,6,1)-WEEKDAY(DATE(ΈτοςΗμερολογίου,6,1),(ΈναρξηΕβδομάδας=\"ΔΕΥ\")+1)+29","v":"2018-06-24"},"2018-06-25","2018-06-26","2018-06-27","2018-06-28","2018-06-29","2018-06-30"]
[null,null,{"$f":"IF(WEEKDAY(ΗμέραΗμερολογίου)=ΤιμήΈναρξηςΕβδομάδας,CONCATENATE(\"Εβδομάδα \",WEEKNUM(ΗμέραΗμερολογίου),\"/Ημέρα \",ΗμέραΗμερολογίου-DATE(YEAR(ΗμέραΗμερολογίου),1,0)),CONCATENATE(\"Ημέρα \",ΗμέραΗμερολογίου-DATE(YEAR(ΗμέραΗμερολογίου),1,0)))","v":"Εβδομάδα 26/Ημέρα 175"},{"$f":"IF(WEEKDAY(ΗμέραΗμερολογίου)=ΤιμήΈναρξηςΕβδομάδας,CONCATENATE(\"Εβδομάδα \",WEEKNUM(ΗμέραΗμερολογίου),\"/Ημέρα \",ΗμέραΗμερολογίου-DATE(YEAR(ΗμέραΗμερολογίου),1,0)),CONCATENATE(\"Ημέρα \",ΗμέραΗμερολογίου-DATE(YEAR(ΗμέραΗμερολογίου),1,0)))","v":"Ημέρα 176"},{"$f":"IF(WEEKDAY(ΗμέραΗμερολογίου)=ΤιμήΈναρξηςΕβδομάδας,CONCATENATE(\"Εβδομάδα \",WEEKNUM(ΗμέραΗμερολογίου),\"/Ημέρα \",ΗμέραΗμερολογίου-DATE(YEAR(ΗμέραΗμερολογίου),1,0)),CONCATENATE(\"Ημέρα \",ΗμέραΗμερολογίου-DATE(YEAR(ΗμέραΗμερολογίου),1,0)))","v":"Ημέρα 177"},{"$f":"IF(WEEKDAY(ΗμέραΗμερολογίου)=ΤιμήΈναρξηςΕβδομάδας,CONCATENATE(\"Εβδομάδα \",WEEKNUM(ΗμέραΗμερολογίου),\"/Ημέρα \",ΗμέραΗμερολογίου-DATE(YEAR(ΗμέραΗμερολογίου),1,0)),CONCATENATE(\"Ημέρα \",ΗμέραΗμερολογίου-DATE(YEAR(ΗμέραΗμερολογίου),1,0)))","v":"Ημέρα 178"},{"$f":"IF(WEEKDAY(ΗμέραΗμερολογίου)=ΤιμήΈναρξηςΕβδομάδας,CONCATENATE(\"Εβδομάδα \",WEEKNUM(ΗμέραΗμερολογίου),\"/Ημέρα \",ΗμέραΗμερολογίου-DATE(YEAR(ΗμέραΗμερολογίου),1,0)),CONCATENATE(\"Ημέρα \",ΗμέραΗμερολογίου-DATE(YEAR(ΗμέραΗμερολογίου),1,0)))","v":"Ημέρα 179"},{"$f":"IF(WEEKDAY(ΗμέραΗμερολογίου)=ΤιμήΈναρξηςΕβδομάδας,CONCATENATE(\"Εβδομάδα \",WEEKNUM(ΗμέραΗμερολογίου),\"/Ημέρα \",ΗμέραΗμερολογίου-DATE(YEAR(ΗμέραΗμερολογίου),1,0)),CONCATENATE(\"Ημέρα \",ΗμέραΗμερολογίου-DATE(YEAR(ΗμέραΗμερολογίου),1,0)))","v":"Ημέρα 180"},{"$f":"IF(WEEKDAY(ΗμέραΗμερολογίου)=ΤιμήΈναρξηςΕβδομάδας,CONCATENATE(\"Εβδομάδα \",WEEKNUM(ΗμέραΗμερολογίου),\"/Ημέρα \",ΗμέραΗμερολογίου-DATE(YEAR(ΗμέραΗμερολογίου),1,0)),CONCATENATE(\"Ημέρα \",ΗμέραΗμερολογίου-DATE(YEAR(ΗμέραΗμερολογίου),1,0)))","v":"Ημέρα 181"}]
[{"$nulls":4},"ΣΗΜΕΙΩΣΕΙΣ"]
[]
[null,null,{"$f":"ΗμέρεςΚαιΕβδομάδες+DATE(ΈτοςΗμερολογίου,6,1)-WEEKDAY(DATE(ΈτοςΗμερολογίου,6,1),(ΈναρξηΕβδομάδας=\"ΔΕΥ\")+1)+36","v":"2018-07-01"},"2018-07-02"]
[null,null,{"$f":"IF(WEEKDAY(ΗμέραΗμερολογίου)=ΤιμήΈναρξηςΕβδομάδας,CONCATENATE(\"Εβδομάδα \",WEEKNUM(ΗμέραΗμερολογίου),\"/Ημέρα \",ΗμέραΗμερολογίου-DATE(YEAR(ΗμέραΗμερολογίου),1,0)),CONCATENATE(\"Ημέρα \",ΗμέραΗμερολογίου-DATE(YEAR(ΗμέραΗμερολογίου),1,0)))","v":"Εβδομάδα 27/Ημέρα 182"},{"$f":"IF(WEEKDAY(ΗμέραΗμερολογίου)=ΤιμήΈναρξηςΕβδομάδας,CONCATENATE(\"Εβδομάδα \",WEEKNUM(ΗμέραΗμερολογίου),\"/Ημέρα \",ΗμέραΗμερολογίου-DATE(YEAR(ΗμέραΗμερολογίου),1,0)),CONCATENATE(\"Ημέρα \",ΗμέραΗμερολογίου-DATE(YEAR(ΗμέραΗμερολογίου),1,0)))","v":"Ημέρα 183"}]

{"sheet":"ΙΟΥΛ","index":6,"n_rows":20,"n_cols":9,"rows_kept":20,"merged":[[16,2,17,2],[17,4,19,8]]}
[null,"ΙΟΥΛ",{"$f":"UPPER(TEXT(ΈναρξηΕβδομάδας,\"ddd\"))","v":"ΚΥΡ"},{"$f":"UPPER(TEXT(D3,\"aaa\"))","v":"ΔΕΥ"},"ΤΡΙ","ΤΕΤ","ΠΕΜ","ΠΑΡ","ΣΑΒ"]
[null,{"$f":"ΈτοςΗμερολογίου","v":2018}]
[null,null,{"$f":"ΗμέρεςΚαιΕβδομάδες+DATE(ΈτοςΗμερολογίου,7,1)-WEEKDAY(DATE(ΈτοςΗμερολογίου,7,1),(ΈναρξηΕβδομάδας=\"ΔΕΥ\")+1)+1","v":"2018-07-01"},"2018-07-02","2018-07-03","2018-07-04","2018-07-05","2018-07-06","2018-07-07"]
[null,null,{"$f":"IF(DAY(ΗμέραΗμερολογίου)=1,CONCATENATE(\"Εβδομάδα \",WEEKNUM(ΗμέραΗμερολογίου),\"/Ημέρα \",ΗμέραΗμερολογίου-DATE(YEAR(ΗμέραΗμερολογίου),1,0)),CONCATENATE(\"Ημέρα \",ΗμέραΗμερολογίου-DATE(YEAR(ΗμέραΗμερολογίου),1,0)))","v":"Εβδομάδα 27/Ημέρα 182"},"Ημέρα 183","Ημέρα 184","Ημέρα 185","Ημέρα 186","Ημέρα 187","Ημέρα 188"]
[]
[null,null,{"$f":"ΗμέρεςΚαιΕβδομάδες+DATE(ΈτοςΗμερολογίου,7,1)-WEEKDAY(DATE(ΈτοςΗμερολογίου,7,1),(ΈναρξηΕβδομάδας=\"ΔΕΥ\")+1)+8","v":"2018-07-08"},"2018-07-09","2018-07-10","2018-07-11","2018-07-12","2018-07-13","2018-07-14"]
[null,null,{"$f":"IF(WEEKDAY(ΗμέραΗμερολογίου)=ΤιμήΈναρξηςΕβδομάδας,CONCATENATE(\"Εβδομάδα \",WEEKNUM(ΗμέραΗμερολογίου),\"/Ημέρα \",ΗμέραΗμερολογίου-DATE(YEAR(ΗμέραΗμερολογίου),1,0)),CONCATENATE(\"Ημέρα \",ΗμέραΗμερολογίου-DATE(YEAR(ΗμέραΗμερολογίου),1,0)))","v":"Εβδομάδα 28/Ημέρα 189"},{"$f":"IF(WEEKDAY(ΗμέραΗμερολογίου)=ΤιμήΈναρξηςΕβδομάδας,CONCATENATE(\"Εβδομάδα \",WEEKNUM(ΗμέραΗμερολογίου),\"/Ημέρα \",ΗμέραΗμερολογίου-DATE(YEAR(ΗμέραΗμερολογίου),1,0)),CONCATENATE(\"Ημέρα \",ΗμέραΗμερολογίου-DATE(YEAR(ΗμέραΗμερολογίου),1,0)))","v":"Ημέρα 190"},{"$f":"IF(WEEKDAY(ΗμέραΗμερολογίου)=ΤιμήΈναρξηςΕβδομάδας,CONCATENATE(\"Εβδομάδα \",WEEKNUM(ΗμέραΗμερολογίου),\"/Ημέρα \",ΗμέραΗμερολογίου-DATE(YEAR(ΗμέραΗμερολογίου),1,0)),CONCATENATE(\"Ημέρα \",ΗμέραΗμερολογίου-DATE(YEAR(ΗμέραΗμερολογίου),1,0)))","v":"Ημέρα 191"},{"$f":"IF(WEEKDAY(ΗμέραΗμερολογίου)=ΤιμήΈναρξηςΕβδομάδας,CONCATENATE(\"Εβδομάδα \",WEEKNUM(ΗμέραΗμερολογίου),\"/Ημέρα \",ΗμέραΗμερολογίου-DATE(YEAR(ΗμέραΗμερολογίου),1,0)),CONCATENATE(\"Ημέρα \",ΗμέραΗμερολογίου-DATE(YEAR(ΗμέραΗμερολογίου),1,0)))","v":"Ημέρα 192"},{"$f":"IF(WEEKDAY(ΗμέραΗμερολογίου)=ΤιμήΈναρξηςΕβδομάδας,CONCATENATE(\"Εβδομάδα \",WEEKNUM(ΗμέραΗμερολογίου),\"/Ημέρα \",ΗμέραΗμερολογίου-DATE(YEAR(ΗμέραΗμερολογίου),1,0)),CONCATENATE(\"Ημέρα \",ΗμέραΗμερολογίου-DATE(YEAR(ΗμέραΗμερολογίου),1,0)))","v":"Ημέρα 193"},{"$f":"IF(WEEKDAY(ΗμέραΗμερολογίου)=ΤιμήΈναρξηςΕβδομάδας,CONCATENATE(\"Εβδομάδα \",WEEKNUM(ΗμέραΗμερολογίου),\"/Ημέρα \",ΗμέραΗμερολογίου-DATE(YEAR(ΗμέραΗμερολογίου),1,0)),CONCATENATE(\"Ημέρα \",ΗμέραΗμερολογίου-DATE(YEAR(ΗμέραΗμερολογίου),1,0)))","v":"Ημέρα 194"},{"$f":"IF(WEEKDAY(ΗμέραΗμερολογίου)=ΤιμήΈναρξηςΕβδομάδας,CONCATENATE(\"Εβδομάδα \",WEEKNUM(ΗμέραΗμερολογίου),\"/Ημέρα \",ΗμέραΗμερολογίου-DATE(YEAR(ΗμέραΗμερολογίου),1,0)),CONCATENATE(\"Ημέρα \",ΗμέραΗμερολογίου-DATE(YEAR(ΗμέραΗμερολογίου),1,0)))","v":"Ημέρα 195"}]
[]
[null,null,{"$f":"ΗμέρεςΚαιΕβδομάδες+DATE(ΈτοςΗμερολογίου,7,1)-WEEKDAY(DATE(ΈτοςΗμερολογίου,7,1),(ΈναρξηΕβδομάδας=\"ΔΕΥ\")+1)+15","v":"2018-07-15"},"2018-07-16","2018-07-17","2018-07-18","2018-07-19","2018-07-20","2018-07-21"]
[null,null,{"$f":"IF(WEEKDAY(ΗμέραΗμερολογίου)=ΤιμήΈναρξηςΕβδομάδας,CONCATENATE(\"Εβδομάδα \",WEEKNUM(ΗμέραΗμερολογίου),\"/Ημέρα \",ΗμέραΗμερολογίου-DATE(YEAR(ΗμέραΗμερολογίου),1,0)),CONCATENATE(\"Ημέρα \",ΗμέραΗμερολογίου-DATE(YEAR(ΗμέραΗμερολογίου),1,0)))","v":"Εβδομάδα 29/Ημέρα 196"},{"$f":"IF(WEEKDAY(ΗμέραΗμερολογίου)=ΤιμήΈναρξηςΕβδομάδας,CONCATENATE(\"Εβδομάδα \",WEEKNUM(ΗμέραΗμερολογίου),\"/Ημέρα \",ΗμέραΗμερολογίου-DATE(YEAR(ΗμέραΗμερολογίου),1,0)),CONCATENATE(\"Ημέρα \",ΗμέραΗμερολογίου-DATE(YEAR(ΗμέραΗμερολογίου),1,0)))","v":"Ημέρα 197"},{"$f":"IF(WEEKDAY(ΗμέραΗμερολογίου)=ΤιμήΈναρξηςΕβδομάδας,CONCATENATE(\"Εβδομάδα \",WEEKNUM(ΗμέραΗμερολογίου),\"/Ημέρα \",ΗμέραΗμερολογίου-DATE(YEAR(ΗμέραΗμερολογίου),1,0)),CONCATENATE(\"Ημέρα \",ΗμέραΗμερολογίου-DATE(YEAR(ΗμέραΗμερολογίου),1,0)))","v":"Ημέρα 198"},{"$f":"IF(WEEKDAY(ΗμέραΗμερολογίου)=ΤιμήΈναρξηςΕβδομάδας,CONCATENATE(\"Εβδομάδα \",WEEKNUM(ΗμέραΗμερολογίου),\"/Ημέρα \",ΗμέραΗμερολογίου-DATE(YEAR(ΗμέραΗμερολογίου),1,0)),CONCATENATE(\"Ημέρα \",ΗμέραΗμερολογίου-DATE(YEAR(ΗμέραΗμερολογίου),1,0)))","v":"Ημέρα 199"},{"$f":"IF(WEEKDAY(ΗμέραΗμερολογίου)=ΤιμήΈναρξηςΕβδομάδας,CONCATENATE(\"Εβδομάδα \",WEEKNUM(ΗμέραΗμερολογίου),\"/Ημέρα \",ΗμέραΗμερολογίου-DATE(YEAR(ΗμέραΗμερολογίου),1,0)),CONCATENATE(\"Ημέρα \",ΗμέραΗμερολογίου-DATE(YEAR(ΗμέραΗμερολογίου),1,0)))","v":"Ημέρα 200"},{"$f":"IF(WEEKDAY(ΗμέραΗμερολογίου)=ΤιμήΈναρξηςΕβδομάδας,CONCATENATE(\"Εβδομάδα \",WEEKNUM(ΗμέραΗμερολογίου),\"/Ημέρα \",ΗμέραΗμερολογίου-DATE(YEAR(ΗμέραΗμερολογίου),1,0)),CONCATENATE(\"Ημέρα \",ΗμέραΗμερολογίου-DATE(YEAR(ΗμέραΗμερολογίου),1,0)))","v":"Ημέρα 201"},{"$f":"IF(WEEKDAY(ΗμέραΗμερολογίου)=ΤιμήΈναρξηςΕβδομάδας,CONCATENATE(\"Εβδομάδα \",WEEKNUM(ΗμέραΗμερολογίου),\"/Ημέρα \",ΗμέραΗμερολογίου-DATE(YEAR(ΗμέραΗμερολογίου),1,0)),CONCATENATE(\"Ημέρα \",ΗμέραΗμερολογίου-DATE(YEAR(ΗμέραΗμερολογίου),1,0)))","v":"Ημέρα 202"}]
[]
[null,null,{"$f":"ΗμέρεςΚαιΕβδομάδες+DATE(ΈτοςΗμερολογίου,7,1)-WEEKDAY(DATE(ΈτοςΗμερολογίου,7,1),(ΈναρξηΕβδομάδας=\"ΔΕΥ\")+1)+22","v":"2018-07-22"},"2018-07-23","2018-07-24","2018-07-25","2018-07-26","2018-07-27","2018-07-28"]
[null,null,{"$f":"IF(WEEKDAY(ΗμέραΗμερολογίου)=ΤιμήΈναρξηςΕβδομάδας,CONCATENATE(\"Εβδομάδα \",WEEKNUM(ΗμέραΗμερολογίου),\"/Ημέρα \",ΗμέραΗμερολογίου-DATE(YEAR(ΗμέραΗμερολογίου),1,0)),CONCATENATE(\"Ημέρα \",ΗμέραΗμερολογίου-DATE(YEAR(ΗμέραΗμερολογίου),1,0)))","v":"Εβδομάδα 30/Ημέρα 203"},{"$f":"IF(WEEKDAY(ΗμέραΗμερολογίου)=ΤιμήΈναρξηςΕβδομάδας,CONCATENATE(\"Εβδομάδα \",WEEKNUM(ΗμέραΗμερολογίου),\"/Ημέρα \",ΗμέραΗμερολογίου-DATE(YEAR(ΗμέραΗμερολογίου),1,0)),CONCATENATE(\"Ημέρα \",ΗμέραΗμερολογίου-DATE(YEAR(ΗμέραΗμερολογίου),1,0)))","v":"Ημέρα 204"},{"$f":"IF(WEEKDAY(ΗμέραΗμερολογίου)=ΤιμήΈναρξηςΕβδομάδας,CONCATENATE(\"Εβδομάδα \",WEEKNUM(ΗμέραΗμερολογίου),\"/Ημέρα \",ΗμέραΗμερολογίου-DATE(YEAR(ΗμέραΗμερολογίου),1,0)),CONCATENATE(\"Ημέρα \",ΗμέραΗμερολογίου-DATE(YEAR(ΗμέραΗμερολογίου),1,0)))","v":"Ημέρα 205"},{"$f":"IF(WEEKDAY(ΗμέραΗμερολογίου)=ΤιμήΈναρξηςΕβδομάδας,CONCATENATE(\"Εβδομάδα \",WEEKNUM(ΗμέραΗμερολογίου),\"/Ημέρα \",ΗμέραΗμερολογίου-DATE(YEAR(ΗμέραΗμερολογίου),1,0)),CONCATENATE(\"Ημέρα \",ΗμέραΗμερολογίου-DATE(YEAR(ΗμέραΗμερολογίου),1,0)))","v":"Ημέρα 206"},{"$f":"IF(WEEKDAY(ΗμέραΗμερολογίου)=ΤιμήΈναρξηςΕβδομάδας,CONCATENATE(\"Εβδομάδα \",WEEKNUM(ΗμέραΗμερολογίου),\"/Ημέρα \",ΗμέραΗμερολογίου-DATE(YEAR(ΗμέραΗμερολογίου),1,0)),CONCATENATE(\"Ημέρα \",ΗμέραΗμερολογίου-DATE(YEAR(ΗμέραΗμερολογίου),1,0)))","v":"Ημέρα 207"},{"$f":"IF(WEEKDAY(ΗμέραΗμερολογίου)=ΤιμήΈναρξηςΕβδομάδας,CONCATENATE(\"Εβδομάδα \",WEEKNUM(ΗμέραΗμερολογίου),\"/Ημέρα \",ΗμέραΗμερολογίου-DATE(YEAR(ΗμέραΗμερολογίου),1,0)),CONCATENATE(\"Ημέρα \",ΗμέραΗμερολογίου-DATE(YEAR(ΗμέραΗμερολογίου),1,0)))","v":"Ημέρα 208"},{"$f":"IF(WEEKDAY(ΗμέραΗμερολογίου)=ΤιμήΈναρξηςΕβδομάδας,CONCATENATE(\"Εβδομάδα \",WEEKNUM(ΗμέραΗμερολογίου),\"/Ημέρα \",ΗμέραΗμερολογίου-DATE(YEAR(ΗμέραΗμερολογίου),1,0)),CONCATENATE(\"Ημέρα \",ΗμέραΗμερολογίου-DATE(YEAR(ΗμέραΗμερολογίου),1,0)))","v":"Ημέρα 209"}]
[]
[null,null,{"$f":"ΗμέρεςΚαιΕβδομάδες+DATE(ΈτοςΗμερολογίου,7,1)-WEEKDAY(DATE(ΈτοςΗμερολογίου,7,1),(ΈναρξηΕβδομάδας=\"ΔΕΥ\")+1)+29","v":"2018-07-29"},"2018-07-30","2018-07-31","2018-08-01","2018-08-02","2018-08-03","2018-08-04"]
[null,null,{"$f":"IF(WEEKDAY(ΗμέραΗμερολογίου)=ΤιμήΈναρξηςΕβδομάδας,CONCATENATE(\"Εβδομάδα \",WEEKNUM(ΗμέραΗμερολογίου),\"/Ημέρα \",ΗμέραΗμερολογίου-DATE(YEAR(ΗμέραΗμερολογίου),1,0)),CONCATENATE(\"Ημέρα \",ΗμέραΗμερολογίου-DATE(YEAR(ΗμέραΗμερολογίου),1,0)))","v":"Εβδομάδα 31/Ημέρα 210"},{"$f":"IF(WEEKDAY(ΗμέραΗμερολογίου)=ΤιμήΈναρξηςΕβδομάδας,CONCATENATE(\"Εβδομάδα \",WEEKNUM(ΗμέραΗμερολογίου),\"/Ημέρα \",ΗμέραΗμερολογίου-DATE(YEAR(ΗμέραΗμερολογίου),1,0)),CONCATENATE(\"Ημέρα \",ΗμέραΗμερολογίου-DATE(YEAR(ΗμέραΗμερολογίου),1,0)))","v":"Ημέρα 211"},{"$f":"IF(WEEKDAY(ΗμέραΗμερολογίου)=ΤιμήΈναρξηςΕβδομάδας,CONCATENATE(\"Εβδομάδα \",WEEKNUM(ΗμέραΗμερολογίου),\"/Ημέρα \",ΗμέραΗμερολογίου-DATE(YEAR(ΗμέραΗμερολογίου),1,0)),CONCATENATE(\"Ημέρα \",ΗμέραΗμερολογίου-DATE(YEAR(ΗμέραΗμερολογίου),1,0)))","v":"Ημέρα 212"},{"$f":"IF(WEEKDAY(ΗμέραΗμερολογίου)=ΤιμήΈναρξηςΕβδομάδας,CONCATENATE(\"Εβδομάδα \",WEEKNUM(ΗμέραΗμερολογίου),\"/Ημέρα \",ΗμέραΗμερολογίου-DATE(YEAR(ΗμέραΗμερολογίου),1,0)),CONCATENATE(\"Ημέρα \",ΗμέραΗμερολογίου-DATE(YEAR(ΗμέραΗμερολογίου),1,0)))","v":"Ημέρα 213"},{"$f":"IF(WEEKDAY(ΗμέραΗμερολογίου)=ΤιμήΈναρξηςΕβδομάδας,CONCATENATE(\"Εβδομάδα \",WEEKNUM(ΗμέραΗμερολογίου),\"/Ημέρα \",ΗμέραΗμερολογίου-DATE(YEAR(ΗμέραΗμερολογίου),1,0)),CONCATENATE(\"Ημέρα \",ΗμέραΗμερολογίου-DATE(YEAR(ΗμέραΗμερολογίου),1,0)))","v":"Ημέρα 214"},{"$f":"IF(WEEKDAY(ΗμέραΗμερολογίου)=ΤιμήΈναρξηςΕβδομάδας,CONCATENATE(\"Εβδομάδα \",WEEKNUM(ΗμέραΗμερολογίου),\"/Ημέρα \",ΗμέραΗμερολογίου-DATE(YEAR(ΗμέραΗμερολογίου),1,0)),CONCATENATE(\"Ημέρα \",ΗμέραΗμερολογίου-DATE(YEAR(ΗμέραΗμερολογίου),1,0)))","v":"Ημέρα 215"},{"$f":"IF(WEEKDAY(ΗμέραΗμερολογίου)=ΤιμήΈναρξηςΕβδομάδας,CONCATENATE(\"Εβδομάδα \",WEEKNUM(ΗμέραΗμερολογίου),\"/Ημέρα \",ΗμέραΗμερολογίου-DATE(YEAR(ΗμέραΗμερολογίου),1,0)),CONCATENATE(\"Ημέρα \",ΗμέραΗμερολογίου-DATE(YEAR(ΗμέραΗμερολογίου),1,0)))","v":"Ημέρα 216"}]
[{"$nulls":4},"ΣΗΜΕΙΩΣΕΙΣ"]
[]
[null,null,{"$f":"ΗμέρεςΚαιΕβδομάδες+DATE(ΈτοςΗμερολογίου,7,1)-WEEKDAY(DATE(ΈτοςΗμερολογίου,7,1),(ΈναρξηΕβδομάδας=\"ΔΕΥ\")+1)+36","v":"2018-08-05"},"2018-08-06"]
[null,null,{"$f":"IF(WEEKDAY(ΗμέραΗμερολογίου)=ΤιμήΈναρξηςΕβδομάδας,CONCATENATE(\"Εβδομάδα \",WEEKNUM(ΗμέραΗμερολογίου),\"/Ημέρα \",ΗμέραΗμερολογίου-DATE(YEAR(ΗμέραΗμερολογίου),1,0)),CONCATENATE(\"Ημέρα \",ΗμέραΗμερολογίου-DATE(YEAR(ΗμέραΗμερολογίου),1,0)))","v":"Εβδομάδα 32/Ημέρα 217"},{"$f":"IF(WEEKDAY(ΗμέραΗμερολογίου)=ΤιμήΈναρξηςΕβδομάδας,CONCATENATE(\"Εβδομάδα \",WEEKNUM(ΗμέραΗμερολογίου),\"/Ημέρα \",ΗμέραΗμερολογίου-DATE(YEAR(ΗμέραΗμερολογίου),1,0)),CONCATENATE(\"Ημέρα \",ΗμέραΗμερολογίου-DATE(YEAR(ΗμέραΗμερολογίου),1,0)))","v":"Ημέρα 218"}]

{"sheet":"ΑΥΓ","index":7,"n_rows":20,"n_cols":9,"rows_kept":20,"merged":[[16,2,17,2],[17,4,19,8]]}
[null,"ΑΥΓ",{"$f":"UPPER(TEXT(ΈναρξηΕβδομάδας,\"ddd\"))","v":"ΚΥΡ"},{"$f":"UPPER(TEXT(D3,\"aaa\"))","v":"ΔΕΥ"},"ΤΡΙ","ΤΕΤ","ΠΕΜ","ΠΑΡ","ΣΑΒ"]
[null,{"$f":"ΈτοςΗμερολογίου","v":2018}]
[null,null,{"$f":"ΗμέρεςΚαιΕβδομάδες+DATE(ΈτοςΗμερολογίου,8,1)-WEEKDAY(DATE(ΈτοςΗμερολογίου,8,1),(ΈναρξηΕβδομάδας=\"ΔΕΥ\")+1)+1","v":"2018-07-29"},"2018-07-30","2018-07-31","2018-08-01","2018-08-02","2018-08-03","2018-08-04"]
[null,null,{"$f":"IF(DAY(ΗμέραΗμερολογίου)=1,CONCATENATE(\"Εβδομάδα \",WEEKNUM(ΗμέραΗμερολογίου),\"/Ημέρα \",ΗμέραΗμερολογίου-DATE(YEAR(ΗμέραΗμερολογίου),1,0)),CONCATENATE(\"Ημέρα \",ΗμέραΗμερολογίου-DATE(YEAR(ΗμέραΗμερολογίου),1,0)))","v":"Ημέρα 210"},"Ημέρα 211","Ημέρα 212","Εβδομάδα 31/Ημέρα 213","Ημέρα 214","Ημέρα 215","Ημέρα 216"]
[]
[null,null,{"$f":"ΗμέρεςΚαιΕβδομάδες+DATE(ΈτοςΗμερολογίου,8,1)-WEEKDAY(DATE(ΈτοςΗμερολογίου,8,1),(ΈναρξηΕβδομάδας=\"ΔΕΥ\")+1)+8","v":"2018-08-05"},"2018-08-06","2018-08-07","2018-08-08","2018-08-09","2018-08-10","2018-08-11"]
[null,null,{"$f":"IF(WEEKDAY(ΗμέραΗμερολογίου)=ΤιμήΈναρξηςΕβδομάδας,CONCATENATE(\"Εβδομάδα \",WEEKNUM(ΗμέραΗμερολογίου),\"/Ημέρα \",ΗμέραΗμερολογίου-DATE(YEAR(ΗμέραΗμερολογίου),1,0)),CONCATENATE(\"Ημέρα \",ΗμέραΗμερολογίου-DATE(YEAR(ΗμέραΗμερολογίου),1,0)))","v":"Εβδομάδα 32/Ημέρα 217"},{"$f":"IF(WEEKDAY(ΗμέραΗμερολογίου)=ΤιμήΈναρξηςΕβδομάδας,CONCATENATE(\"Εβδομάδα \",WEEKNUM(ΗμέραΗμερολογίου),\"/Ημέρα \",ΗμέραΗμερολογίου-DATE(YEAR(ΗμέραΗμερολογίου),1,0)),CONCATENATE(\"Ημέρα \",ΗμέραΗμερολογίου-DATE(YEAR(ΗμέραΗμερολογίου),1,0)))","v":"Ημέρα 218"},{"$f":"IF(WEEKDAY(ΗμέραΗμερολογίου)=ΤιμήΈναρξηςΕβδομάδας,CONCATENATE(\"Εβδομάδα \",WEEKNUM(ΗμέραΗμερολογίου),\"/Ημέρα \",ΗμέραΗμερολογίου-DATE(YEAR(ΗμέραΗμερολογίου),1,0)),CONCATENATE(\"Ημέρα \",ΗμέραΗμερολογίου-DATE(YEAR(ΗμέραΗμερολογίου),1,0)))","v":"Ημέρα 219"},{"$f":"IF(WEEKDAY(ΗμέραΗμερολογίου)=ΤιμήΈναρξηςΕβδομάδας,CONCATENATE(\"Εβδομάδα \",WEEKNUM(ΗμέραΗμερολογίου),\"/Ημέρα \",ΗμέραΗμερολογίου-DATE(YEAR(ΗμέραΗμερολογίου),1,0)),CONCATENATE(\"Ημέρα \",ΗμέραΗμερολογίου-DATE(YEAR(ΗμέραΗμερολογίου),1,0)))","v":"Ημέρα 220"},{"$f":"IF(WEEKDAY(ΗμέραΗμερολογίου)=ΤιμήΈναρξηςΕβδομάδας,CONCATENATE(\"Εβδομάδα \",WEEKNUM(ΗμέραΗμερολογίου),\"/Ημέρα \",ΗμέραΗμερολογίου-DATE(YEAR(ΗμέραΗμερολογίου),1,0)),CONCATENATE(\"Ημέρα \",ΗμέραΗμερολογίου-DATE(YEAR(ΗμέραΗμερολογίου),1,0)))","v":"Ημέρα 221"},{"$f":"IF(WEEKDAY(ΗμέραΗμερολογίου)=ΤιμήΈναρξηςΕβδομάδας,CONCATENATE(\"Εβδομάδα \",WEEKNUM(ΗμέραΗμερολογίου),\"/Ημέρα \",ΗμέραΗμερολογίου-DATE(YEAR(ΗμέραΗμερολογίου),1,0)),CONCATENATE(\"Ημέρα \",ΗμέραΗμερολογίου-DATE(YEAR(ΗμέραΗμερολογίου),1,0)))","v":"Ημέρα 222"},{"$f":"IF(WEEKDAY(ΗμέραΗμερολογίου)=ΤιμήΈναρξηςΕβδομάδας,CONCATENATE(\"Εβδομάδα \",WEEKNUM(ΗμέραΗμερολογίου),\"/Ημέρα \",ΗμέραΗμερολογίου-DATE(YEAR(ΗμέραΗμερολογίου),1,0)),CONCATENATE(\"Ημέρα \",ΗμέραΗμερολογίου-DATE(YEAR(ΗμέραΗμερολογίου),1,0)))","v":"Ημέρα 223"}]
[]
[null,null,{"$f":"ΗμέρεςΚαιΕβδομάδες+DATE(ΈτοςΗμερολογίου,8,1)-WEEKDAY(DATE(ΈτοςΗμερολογίου,8,1),(ΈναρξηΕβδομάδας=\"ΔΕΥ\")+1)+15","v":"2018-08-12"},"2018-08-13","2018-08-14","2018-08-15","2018-08-16","2018-08-17","2018-08-18"]
[null,null,{"$f":"IF(WEEKDAY(ΗμέραΗμερολογίου)=ΤιμήΈναρξηςΕβδομάδας,CONCATENATE(\"Εβδομάδα \",WEEKNUM(ΗμέραΗμερολογίου),\"/Ημέρα \",ΗμέραΗμερολογίου-DATE(YEAR(ΗμέραΗμερολογίου),1,0)),CONCATENATE(\"Ημέρα \",ΗμέραΗμερολογίου-DATE(YEAR(ΗμέραΗμερολογίου),1,0)))","v":"Εβδομάδα 33/Ημέρα 224"},{"$f":"IF(WEEKDAY(ΗμέραΗμερολογίου)=ΤιμήΈναρξηςΕβδομάδας,CONCATENATE(\"Εβδομάδα \",WEEKNUM(ΗμέραΗμερολογίου),\"/Ημέρα \",ΗμέραΗμερολογίου-DATE(YEAR(ΗμέραΗμερολογίου),1,0)),CONCATENATE(\"Ημέρα \",ΗμέραΗμερολογίου-DATE(YEAR(ΗμέραΗμερολογίου),1,0)))","v":"Ημέρα 225"},{"$f":"IF(WEEKDAY(ΗμέραΗμερολογίου)=ΤιμήΈναρξηςΕβδομάδας,CONCATENATE(\"Εβδομάδα \",WEEKNUM(ΗμέραΗμερολογίου),\"/Ημέρα \",ΗμέραΗμερολογίου-DATE(YEAR(ΗμέραΗμερολογίου),1,0)),CONCATENATE(\"Ημέρα \",ΗμέραΗμερολογίου-DATE(YEAR(ΗμέραΗμερολογίου),1,0)))","v":"Ημέρα 226"},{"$f":"IF(WEEKDAY(ΗμέραΗμερολογίου)=ΤιμήΈναρξηςΕβδομάδας,CONCATENATE(\"Εβδομάδα \",WEEKNUM(ΗμέραΗμερολογίου),\"/Ημέρα \",ΗμέραΗμερολογίου-DATE(YEAR(ΗμέραΗμερολογίου),1,0)),CONCATENATE(\"Ημέρα \",ΗμέραΗμερολογίου-DATE(YEAR(ΗμέραΗμερολογίου),1,0)))","v":"Ημέρα 227"},{"$f":"IF(WEEKDAY(ΗμέραΗμερολογίου)=ΤιμήΈναρξηςΕβδομάδας,CONCATENATE(\"Εβδομάδα \",WEEKNUM(ΗμέραΗμερολογίου),\"/Ημέρα \",ΗμέραΗμερολογίου-DATE(YEAR(ΗμέραΗμερολογίου),1,0)),CONCATENATE(\"Ημέρα \",ΗμέραΗμερολογίου-DATE(YEAR(ΗμέραΗμερολογίου),1,0)))","v":"Ημέρα 228"},{"$f":"IF(WEEKDAY(ΗμέραΗμερολογίου)=ΤιμήΈναρξηςΕβδομάδας,CONCATENATE(\"Εβδομάδα \",WEEKNUM(ΗμέραΗμερολογίου),\"/Ημέρα \",ΗμέραΗμερολογίου-DATE(YEAR(ΗμέραΗμερολογίου),1,0)),CONCATENATE(\"Ημέρα \",ΗμέραΗμερολογίου-DATE(YEAR(ΗμέραΗμερολογίου),1,0)))","v":"Ημέρα 229"},{"$f":"IF(WEEKDAY(ΗμέραΗμερολογίου)=ΤιμήΈναρξηςΕβδομάδας,CONCATENATE(\"Εβδομάδα \",WEEKNUM(ΗμέραΗμερολογίου),\"/Ημέρα \",ΗμέραΗμερολογίου-DATE(YEAR(ΗμέραΗμερολογίου),1,0)),CONCATENATE(\"Ημέρα \",ΗμέραΗμερολογίου-DATE(YEAR(ΗμέραΗμερολογίου),1,0)))","v":"Ημέρα 230"}]
[]
[null,null,{"$f":"ΗμέρεςΚαιΕβδομάδες+DATE(ΈτοςΗμερολογίου,8,1)-WEEKDAY(DATE(ΈτοςΗμερολογίου,8,1),(ΈναρξηΕβδομάδας=\"ΔΕΥ\")+1)+22","v":"2018-08-19"},"2018-08-20","2018-08-21","2018-08-22","2018-08-23","2018-08-24","2018-08-25"]
[null,null,{"$f":"IF(WEEKDAY(ΗμέραΗμερολογίου)=ΤιμήΈναρξηςΕβδομάδας,CONCATENATE(\"Εβδομάδα \",WEEKNUM(ΗμέραΗμερολογίου),\"/Ημέρα \",ΗμέραΗμερολογίου-DATE(YEAR(ΗμέραΗμερολογίου),1,0)),CONCATENATE(\"Ημέρα \",ΗμέραΗμερολογίου-DATE(YEAR(ΗμέραΗμερολογίου),1,0)))","v":"Εβδομάδα 34/Ημέρα 231"},{"$f":"IF(WEEKDAY(ΗμέραΗμερολογίου)=ΤιμήΈναρξηςΕβδομάδας,CONCATENATE(\"Εβδομάδα \",WEEKNUM(ΗμέραΗμερολογίου),\"/Ημέρα \",ΗμέραΗμερολογίου-DATE(YEAR(ΗμέραΗμερολογίου),1,0)),CONCATENATE(\"Ημέρα \",ΗμέραΗμερολογίου-DATE(YEAR(ΗμέραΗμερολογίου),1,0)))","v":"Ημέρα 232"},{"$f":"IF(WEEKDAY(ΗμέραΗμερολογίου)=ΤιμήΈναρξηςΕβδομάδας,CONCATENATE(\"Εβδομάδα \",WEEKNUM(ΗμέραΗμερολογίου),\"/Ημέρα \",ΗμέραΗμερολογίου-DATE(YEAR(ΗμέραΗμερολογίου),1,0)),CONCATENATE(\"Ημέρα \",ΗμέραΗμερολογίου-DATE(YEAR(ΗμέραΗμερολογίου),1,0)))","v":"Ημέρα 233"},{"$f":"IF(WEEKDAY(ΗμέραΗμερολογίου)=ΤιμήΈναρξηςΕβδομάδας,CONCATENATE(\"Εβδομάδα \",WEEKNUM(ΗμέραΗμερολογίου),\"/Ημέρα \",ΗμέραΗμερολογίου-DATE(YEAR(ΗμέραΗμερολογίου),1,0)),CONCATENATE(\"Ημέρα \",ΗμέραΗμερολογίου-DATE(YEAR(ΗμέραΗμερολογίου),1,0)))","v":"Ημέρα 234"},{"$f":"IF(WEEKDAY(ΗμέραΗμερολογίου)=ΤιμήΈναρξηςΕβδομάδας,CONCATENATE(\"Εβδομάδα \",WEEKNUM(ΗμέραΗμερολογίου),\"/Ημέρα \",ΗμέραΗμερολογίου-DATE(YEAR(ΗμέραΗμερολογίου),1,0)),CONCATENATE(\"Ημέρα \",ΗμέραΗμερολογίου-DATE(YEAR(ΗμέραΗμερολογίου),1,0)))","v":"Ημέρα 235"},{"$f":"IF(WEEKDAY(ΗμέραΗμερολογίου)=ΤιμήΈναρξηςΕβδομάδας,CONCATENATE(\"Εβδομάδα \",WEEKNUM(ΗμέραΗμερολογίου),\"/Ημέρα \",ΗμέραΗμερολογίου-DATE(YEAR(ΗμέραΗμερολογίου),1,0)),CONCATENATE(\"Ημέρα \",ΗμέραΗμερολογίου-DATE(YEAR(ΗμέραΗμερολογίου),1,0)))","v":"Ημέρα 236"},{"$f":"IF(WEEKDAY(ΗμέραΗμερολογίου)=ΤιμήΈναρξηςΕβδομάδας,CONCATENATE(\"Εβδομάδα \",WEEKNUM(ΗμέραΗμερολογίου),\"/Ημέρα \",ΗμέραΗμερολογίου-DATE(YEAR(ΗμέραΗμερολογίου),1,0)),CONCATENATE(\"Ημέρα \",ΗμέραΗμερολογίου-DATE(YEAR(ΗμέραΗμερολογίου),1,0)))","v":"Ημέρα 237"}]
[]
[null,null,{"$f":"ΗμέρεςΚαιΕβδομάδες+DATE(ΈτοςΗμερολογίου,8,1)-WEEKDAY(DATE(ΈτοςΗμερολογίου,8,1),(ΈναρξηΕβδομάδας=\"ΔΕΥ\")+1)+29","v":"2018-08-26"},"2018-08-27","2018-08-28","2018-08-29","2018-08-30","2018-08-31","2018-09-01"]
[null,null,{"$f":"IF(WEEKDAY(ΗμέραΗμερολογίου)=ΤιμήΈναρξηςΕβδομάδας,CONCATENATE(\"Εβδομάδα \",WEEKNUM(ΗμέραΗμερολογίου),\"/Ημέρα \",ΗμέραΗμερολογίου-DATE(YEAR(ΗμέραΗμερολογίου),1,0)),CONCATENATE(\"Ημέρα \",ΗμέραΗμερολογίου-DATE(YEAR(ΗμέραΗμερολογίου),1,0)))","v":"Εβδομάδα 35/Ημέρα 238"},{"$f":"IF(WEEKDAY(ΗμέραΗμερολογίου)=ΤιμήΈναρξηςΕβδομάδας,CONCATENATE(\"Εβδομάδα \",WEEKNUM(ΗμέραΗμερολογίου),\"/Ημέρα \",ΗμέραΗμερολογίου-DATE(YEAR(ΗμέραΗμερολογίου),1,0)),CONCATENATE(\"Ημέρα \",ΗμέραΗμερολογίου-DATE(YEAR(ΗμέραΗμερολογίου),1,0)))","v":"Ημέρα 239"},{"$f":"IF(WEEKDAY(ΗμέραΗμερολογίου)=ΤιμήΈναρξηςΕβδομάδας,CONCATENATE(\"Εβδομάδα \",WEEKNUM(ΗμέραΗμερολογίου),\"/Ημέρα \",ΗμέραΗμερολογίου-DATE(YEAR(ΗμέραΗμερολογίου),1,0)),CONCATENATE(\"Ημέρα \",ΗμέραΗμερολογίου-DATE(YEAR(ΗμέραΗμερολογίου),1,0)))","v":"Ημέρα 240"},{"$f":"IF(WEEKDAY(ΗμέραΗμερολογίου)=ΤιμήΈναρξηςΕβδομάδας,CONCATENATE(\"Εβδομάδα \",WEEKNUM(ΗμέραΗμερολογίου),\"/Ημέρα \",ΗμέραΗμερολογίου-DATE(YEAR(ΗμέραΗμερολογίου),1,0)),CONCATENATE(\"Ημέρα \",ΗμέραΗμερολογίου-DATE(YEAR(ΗμέραΗμερολογίου),1,0)))","v":"Ημέρα 241"},{"$f":"IF(WEEKDAY(ΗμέραΗμερολογίου)=ΤιμήΈναρξηςΕβδομάδας,CONCATENATE(\"Εβδομάδα \",WEEKNUM(ΗμέραΗμερολογίου),\"/Ημέρα \",ΗμέραΗμερολογίου-DATE(YEAR(ΗμέραΗμερολογίου),1,0)),CONCATENATE(\"Ημέρα \",ΗμέραΗμερολογίου-DATE(YEAR(ΗμέραΗμερολογίου),1,0)))","v":"Ημέρα 242"},{"$f":"IF(WEEKDAY(ΗμέραΗμερολογίου)=ΤιμήΈναρξηςΕβδομάδας,CONCATENATE(\"Εβδομάδα \",WEEKNUM(ΗμέραΗμερολογίου),\"/Ημέρα \",ΗμέραΗμερολογίου-DATE(YEAR(ΗμέραΗμερολογίου),1,0)),CONCATENATE(\"Ημέρα \",ΗμέραΗμερολογίου-DATE(YEAR(ΗμέραΗμερολογίου),1,0)))","v":"Ημέρα 243"},{"$f":"IF(WEEKDAY(ΗμέραΗμερολογίου)=ΤιμήΈναρξηςΕβδομάδας,CONCATENATE(\"Εβδομάδα \",WEEKNUM(ΗμέραΗμερολογίου),\"/Ημέρα \",ΗμέραΗμερολογίου-DATE(YEAR(ΗμέραΗμερολογίου),1,0)),CONCATENATE(\"Ημέρα \",ΗμέραΗμερολογίου-DATE(YEAR(ΗμέραΗμερολογίου),1,0)))","v":"Ημέρα 244"}]
[{"$nulls":4},"ΣΗΜΕΙΩΣΕΙΣ"]
[]
[null,null,{"$f":"ΗμέρεςΚαιΕβδομάδες+DATE(ΈτοςΗμερολογίου,8,1)-WEEKDAY(DATE(ΈτοςΗμερολογίου,8,1),(ΈναρξηΕβδομάδας=\"ΔΕΥ\")+1)+36","v":"2018-09-02"},"2018-09-03"]
[null,null,{"$f":"IF(WEEKDAY(ΗμέραΗμερολογίου)=ΤιμήΈναρξηςΕβδομάδας,CONCATENATE(\"Εβδομάδα \",WEEKNUM(ΗμέραΗμερολογίου),\"/Ημέρα \",ΗμέραΗμερολογίου-DATE(YEAR(ΗμέραΗμερολογίου),1,0)),CONCATENATE(\"Ημέρα \",ΗμέραΗμερολογίου-DATE(YEAR(ΗμέραΗμερολογίου),1,0)))","v":"Εβδομάδα 36/Ημέρα 245"},{"$f":"IF(WEEKDAY(ΗμέραΗμερολογίου)=ΤιμήΈναρξηςΕβδομάδας,CONCATENATE(\"Εβδομάδα \",WEEKNUM(ΗμέραΗμερολογίου),\"/Ημέρα \",ΗμέραΗμερολογίου-DATE(YEAR(ΗμέραΗμερολογίου),1,0)),CONCATENATE(\"Ημέρα \",ΗμέραΗμερολογίου-DATE(YEAR(ΗμέραΗμερολογίου),1,0)))","v":"Ημέρα 246"}]

{"sheet":"ΣΕΠ","index":8,"n_rows":20,"n_cols":9,"rows_kept":20,"merged":[[16,2,17,2],[17,4,19,8]]}
[null,"ΣΕΠ",{"$f":"UPPER(TEXT(ΈναρξηΕβδομάδας,\"ddd\"))","v":"ΚΥΡ"},{"$f":"UPPER(TEXT(D3,\"aaa\"))","v":"ΔΕΥ"},"ΤΡΙ","ΤΕΤ","ΠΕΜ","ΠΑΡ","ΣΑΒ"]
[null,{"$f":"ΈτοςΗμερολογίου","v":2018}]
[null,null,{"$f":"ΗμέρεςΚαιΕβδομάδες+DATE(ΈτοςΗμερολογίου,9,1)-WEEKDAY(DATE(ΈτοςΗμερολογίου,9,1),(ΈναρξηΕβδομάδας=\"ΔΕΥ\")+1)+1","v":"2018-08-26"},"2018-08-27","2018-08-28","2018-08-29","2018-08-30","2018-08-31","2018-09-01"]
[null,null,{"$f":"IF(DAY(ΗμέραΗμερολογίου)=1,CONCATENATE(\"Εβδομάδα \",WEEKNUM(ΗμέραΗμερολογίου),\"/Ημέρα \",ΗμέραΗμερολογίου-DATE(YEAR(ΗμέραΗμερολογίου),1,0)),CONCATENATE(\"Ημέρα \",ΗμέραΗμερολογίου-DATE(YEAR(ΗμέραΗμερολογίου),1,0)))","v":"Ημέρα 238"},"Ημέρα 239","Ημέρα 240","Ημέρα 241","Ημέρα 242","Ημέρα 243","Εβδομάδα 35/Ημέρα 244"]
[]
[null,null,{"$f":"ΗμέρεςΚαιΕβδομάδες+DATE(ΈτοςΗμερολογίου,9,1)-WEEKDAY(DATE(ΈτοςΗμερολογίου,9,1),(ΈναρξηΕβδομάδας=\"ΔΕΥ\")+1)+8","v":"2018-09-02"},"2018-09-03","2018-09-04","2018-09-05","2018-09-06","2018-09-07","2018-09-08"]
[null,null,{"$f":"IF(WEEKDAY(ΗμέραΗμερολογίου)=ΤιμήΈναρξηςΕβδομάδας,CONCATENATE(\"Εβδομάδα \",WEEKNUM(ΗμέραΗμερολογίου),\"/Ημέρα \",ΗμέραΗμερολογίου-DATE(YEAR(ΗμέραΗμερολογίου),1,0)),CONCATENATE(\"Ημέρα \",ΗμέραΗμερολογίου-DATE(YEAR(ΗμέραΗμερολογίου),1,0)))","v":"Εβδομάδα 36/Ημέρα 245"},{"$f":"IF(WEEKDAY(ΗμέραΗμερολογίου)=ΤιμήΈναρξηςΕβδομάδας,CONCATENATE(\"Εβδομάδα \",WEEKNUM(ΗμέραΗμερολογίου),\"/Ημέρα \",ΗμέραΗμερολογίου-DATE(YEAR(ΗμέραΗμερολογίου),1,0)),CONCATENATE(\"Ημέρα \",ΗμέραΗμερολογίου-DATE(YEAR(ΗμέραΗμερολογίου),1,0)))","v":"Ημέρα 246"},{"$f":"IF(WEEKDAY(ΗμέραΗμερολογίου)=ΤιμήΈναρξηςΕβδομάδας,CONCATENATE(\"Εβδομάδα \",WEEKNUM(ΗμέραΗμερολογίου),\"/Ημέρα \",ΗμέραΗμερολογίου-DATE(YEAR(ΗμέραΗμερολογίου),1,0)),CONCATENATE(\"Ημέρα \",ΗμέραΗμερολογίου-DATE(YEAR(ΗμέραΗμερολογίου),1,0)))","v":"Ημέρα 247"},{"$f":"IF(WEEKDAY(ΗμέραΗμερολογίου)=ΤιμήΈναρξηςΕβδομάδας,CONCATENATE(\"Εβδομάδα \",WEEKNUM(ΗμέραΗμερολογίου),\"/Ημέρα \",ΗμέραΗμερολογίου-DATE(YEAR(ΗμέραΗμερολογίου),1,0)),CONCATENATE(\"Ημέρα \",ΗμέραΗμερολογίου-DATE(YEAR(ΗμέραΗμερολογίου),1,0)))","v":"Ημέρα 248"},{"$f":"IF(WEEKDAY(ΗμέραΗμερολογίου)=ΤιμήΈναρξηςΕβδομάδας,CONCATENATE(\"Εβδομάδα \",WEEKNUM(ΗμέραΗμερολογίου),\"/Ημέρα \",ΗμέραΗμερολογίου-DATE(YEAR(ΗμέραΗμερολογίου),1,0)),CONCATENATE(\"Ημέρα \",ΗμέραΗμερολογίου-DATE(YEAR(ΗμέραΗμερολογίου),1,0)))","v":"Ημέρα 249"},{"$f":"IF(WEEKDAY(ΗμέραΗμερολογίου)=ΤιμήΈναρξηςΕβδομάδας,CONCATENATE(\"Εβδομάδα \",WEEKNUM(ΗμέραΗμερολογίου),\"/Ημέρα \",ΗμέραΗμερολογίου-DATE(YEAR(ΗμέραΗμερολογίου),1,0)),CONCATENATE(\"Ημέρα \",ΗμέραΗμερολογίου-DATE(YEAR(ΗμέραΗμερολογίου),1,0)))","v":"Ημέρα 250"},{"$f":"IF(WEEKDAY(ΗμέραΗμερολογίου)=ΤιμήΈναρξηςΕβδομάδας,CONCATENATE(\"Εβδομάδα \",WEEKNUM(ΗμέραΗμερολογίου),\"/Ημέρα \",ΗμέραΗμερολογίου-DATE(YEAR(ΗμέραΗμερολογίου),1,0)),CONCATENATE(\"Ημέρα \",ΗμέραΗμερολογίου-DATE(YEAR(ΗμέραΗμερολογίου),1,0)))","v":"Ημέρα 251"}]
[]
[null,null,{"$f":"ΗμέρεςΚαιΕβδομάδες+DATE(ΈτοςΗμερολογίου,9,1)-WEEKDAY(DATE(ΈτοςΗμερολογίου,9,1),(ΈναρξηΕβδομάδας=\"ΔΕΥ\")+1)+15","v":"2018-09-09"},"2018-09-10","2018-09-11","2018-09-12","2018-09-13","2018-09-14","2018-09-15"]
[null,null,{"$f":"IF(WEEKDAY(ΗμέραΗμερολογίου)=ΤιμήΈναρξηςΕβδομάδας,CONCATENATE(\"Εβδομάδα \",WEEKNUM(ΗμέραΗμερολογίου),\"/Ημέρα \",ΗμέραΗμερολογίου-DATE(YEAR(ΗμέραΗμερολογίου),1,0)),CONCATENATE(\"Ημέρα \",ΗμέραΗμερολογίου-DATE(YEAR(ΗμέραΗμερολογίου),1,0)))","v":"Εβδομάδα 37/Ημέρα 252"},{"$f":"IF(WEEKDAY(ΗμέραΗμερολογίου)=ΤιμήΈναρξηςΕβδομάδας,CONCATENATE(\"Εβδομάδα \",WEEKNUM(ΗμέραΗμερολογίου),\"/Ημέρα \",ΗμέραΗμερολογίου-DATE(YEAR(ΗμέραΗμερολογίου),1,0)),CONCATENATE(\"Ημέρα \",ΗμέραΗμερολογίου-DATE(YEAR(ΗμέραΗμερολογίου),1,0)))","v":"Ημέρα 253"},{"$f":"IF(WEEKDAY(ΗμέραΗμερολογίου)=ΤιμήΈναρξηςΕβδομάδας,CONCATENATE(\"Εβδομάδα \",WEEKNUM(ΗμέραΗμερολογίου),\"/Ημέρα \",ΗμέραΗμερολογίου-DATE(YEAR(ΗμέραΗμερολογίου),1,0)),CONCATENATE(\"Ημέρα \",ΗμέραΗμερολογίου-DATE(YEAR(ΗμέραΗμερολογίου),1,0)))","v":"Ημέρα 254"},{"$f":"IF(WEEKDAY(ΗμέραΗμερολογίου)=ΤιμήΈναρξηςΕβδομάδας,CONCATENATE(\"Εβδομάδα \",WEEKNUM(ΗμέραΗμερολογίου),\"/Ημέρα \",ΗμέραΗμερολογίου-DATE(YEAR(ΗμέραΗμερολογίου),1,0)),CONCATENATE(\"Ημέρα \",ΗμέραΗμερολογίου-DATE(YEAR(ΗμέραΗμερολογίου),1,0)))","v":"Ημέρα 255"},{"$f":"IF(WEEKDAY(ΗμέραΗμερολογίου)=ΤιμήΈναρξηςΕβδομάδας,CONCATENATE(\"Εβδομάδα \",WEEKNUM(ΗμέραΗμερολογίου),\"/Ημέρα \",ΗμέραΗμερολογίου-DATE(YEAR(ΗμέραΗμερολογίου),1,0)),CONCATENATE(\"Ημέρα \",ΗμέραΗμερολογίου-DATE(YEAR(ΗμέραΗμερολογίου),1,0)))","v":"Ημέρα 256"},{"$f":"IF(WEEKDAY(ΗμέραΗμερολογίου)=ΤιμήΈναρξηςΕβδομάδας,CONCATENATE(\"Εβδομάδα \",WEEKNUM(ΗμέραΗμερολογίου),\"/Ημέρα \",ΗμέραΗμερολογίου-DATE(YEAR(ΗμέραΗμερολογίου),1,0)),CONCATENATE(\"Ημέρα \",ΗμέραΗμερολογίου-DATE(YEAR(ΗμέραΗμερολογίου),1,0)))","v":"Ημέρα 257"},{"$f":"IF(WEEKDAY(ΗμέραΗμερολογίου)=ΤιμήΈναρξηςΕβδομάδας,CONCATENATE(\"Εβδομάδα \",WEEKNUM(ΗμέραΗμερολογίου),\"/Ημέρα \",ΗμέραΗμερολογίου-DATE(YEAR(ΗμέραΗμερολογίου),1,0)),CONCATENATE(\"Ημέρα \",ΗμέραΗμερολογίου-DATE(YEAR(ΗμέραΗμερολογίου),1,0)))","v":"Ημέρα 258"}]
[]
[null,null,{"$f":"ΗμέρεςΚαιΕβδομάδες+DATE(ΈτοςΗμερολογίου,9,1)-WEEKDAY(DATE(ΈτοςΗμερολογίου,9,1),(ΈναρξηΕβδομάδας=\"ΔΕΥ\")+1)+22","v":"2018-09-16"},"2018-09-17","2018-09-18","2018-09-19","2018-09-20","2018-09-21","2018-09-22"]
[null,null,{"$f":"IF(WEEKDAY(ΗμέραΗμερολογίου)=ΤιμήΈναρξηςΕβδομάδας,CONCATENATE(\"Εβδομάδα \",WEEKNUM(ΗμέραΗμερολογίου),\"/Ημέρα \",ΗμέραΗμερολογίου-DATE(YEAR(ΗμέραΗμερολογίου),1,0)),CONCATENATE(\"Ημέρα \",ΗμέραΗμερολογίου-DATE(YEAR(ΗμέραΗμερολογίου),1,0)))","v":"Εβδομάδα 38/Ημέρα 259"},{"$f":"IF(WEEKDAY(ΗμέραΗμερολογίου)=ΤιμήΈναρξηςΕβδομάδας,CONCATENATE(\"Εβδομάδα \",WEEKNUM(ΗμέραΗμερολογίου),\"/Ημέρα \",ΗμέραΗμερολογίου-DATE(YEAR(ΗμέραΗμερολογίου),1,0)),CONCATENATE(\"Ημέρα \",ΗμέραΗμερολογίου-DATE(YEAR(ΗμέραΗμερολογίου),1,0)))","v":"Ημέρα 260"},{"$f":"IF(WEEKDAY(ΗμέραΗμερολογίου)=ΤιμήΈναρξηςΕβδομάδας,CONCATENATE(\"Εβδομάδα \",WEEKNUM(ΗμέραΗμερολογίου),\"/Ημέρα \",ΗμέραΗμερολογίου-DATE(YEAR(ΗμέραΗμερολογίου),1,0)),CONCATENATE(\"Ημέρα \",ΗμέραΗμερολογίου-DATE(YEAR(ΗμέραΗμερολογίου),1,0)))","v":"Ημέρα 261"},{"$f":"IF(WEEKDAY(ΗμέραΗμερολογίου)=ΤιμήΈναρξηςΕβδομάδας,CONCATENATE(\"Εβδομάδα \",WEEKNUM(ΗμέραΗμερολογίου),\"/Ημέρα \",ΗμέραΗμερολογίου-DATE(YEAR(ΗμέραΗμερολογίου),1,0)),CONCATENATE(\"Ημέρα \",ΗμέραΗμερολογίου-DATE(YEAR(ΗμέραΗμερολογίου),1,0)))","v":"Ημέρα 262"},{"$f":"IF(WEEKDAY(ΗμέραΗμερολογίου)=ΤιμήΈναρξηςΕβδομάδας,CONCATENATE(\"Εβδομάδα \",WEEKNUM(ΗμέραΗμερολογίου),\"/Ημέρα \",ΗμέραΗμερολογίου-DATE(YEAR(ΗμέραΗμερολογίου),1,0)),CONCATENATE(\"Ημέρα \",ΗμέραΗμερολογίου-DATE(YEAR(ΗμέραΗμερολογίου),1,0)))","v":"Ημέρα 263"},{"$f":"IF(WEEKDAY(ΗμέραΗμερολογίου)=ΤιμήΈναρξηςΕβδομάδας,CONCATENATE(\"Εβδομάδα \",WEEKNUM(ΗμέραΗμερολογίου),\"/Ημέρα \",ΗμέραΗμερολογίου-DATE(YEAR(ΗμέραΗμερολογίου),1,0)),CONCATENATE(\"Ημέρα \",ΗμέραΗμερολογίου-DATE(YEAR(ΗμέραΗμερολογίου),1,0)))","v":"Ημέρα 264"},{"$f":"IF(WEEKDAY(ΗμέραΗμερολογίου)=ΤιμήΈναρξηςΕβδομάδας,CONCATENATE(\"Εβδομάδα \",WEEKNUM(ΗμέραΗμερολογίου),\"/Ημέρα \",ΗμέραΗμερολογίου-DATE(YEAR(ΗμέραΗμερολογίου),1,0)),CONCATENATE(\"Ημέρα \",ΗμέραΗμερολογίου-DATE(YEAR(ΗμέραΗμερολογίου),1,0)))","v":"Ημέρα 265"}]
[]
[null,null,{"$f":"ΗμέρεςΚαιΕβδομάδες+DATE(ΈτοςΗμερολογίου,9,1)-WEEKDAY(DATE(ΈτοςΗμερολογίου,9,1),(ΈναρξηΕβδομάδας=\"ΔΕΥ\")+1)+29","v":"2018-09-23"},"2018-09-24","2018-09-25","2018-09-26","2018-09-27","2018-09-28","2018-09-29"]
[null,null,{"$f":"IF(WEEKDAY(ΗμέραΗμερολογίου)=ΤιμήΈναρξηςΕβδομάδας,CONCATENATE(\"Εβδομάδα \",WEEKNUM(ΗμέραΗμερολογίου),\"/Ημέρα \",ΗμέραΗμερολογίου-DATE(YEAR(ΗμέραΗμερολογίου),1,0)),CONCATENATE(\"Ημέρα \",ΗμέραΗμερολογίου-DATE(YEAR(ΗμέραΗμερολογίου),1,0)))","v":"Εβδομάδα 39/Ημέρα 266"},{"$f":"IF(WEEKDAY(ΗμέραΗμερολογίου)=ΤιμήΈναρξηςΕβδομάδας,CONCATENATE(\"Εβδομάδα \",WEEKNUM(ΗμέραΗμερολογίου),\"/Ημέρα \",ΗμέραΗμερολογίου-DATE(YEAR(ΗμέραΗμερολογίου),1,0)),CONCATENATE(\"Ημέρα \",ΗμέραΗμερολογίου-DATE(YEAR(ΗμέραΗμερολογίου),1,0)))","v":"Ημέρα 267"},{"$f":"IF(WEEKDAY(ΗμέραΗμερολογίου)=ΤιμήΈναρξηςΕβδομάδας,CONCATENATE(\"Εβδομάδα \",WEEKNUM(ΗμέραΗμερολογίου),\"/Ημέρα \",ΗμέραΗμερολογίου-DATE(YEAR(ΗμέραΗμερολογίου),1,0)),CONCATENATE(\"Ημέρα \",ΗμέραΗμερολογίου-DATE(YEAR(ΗμέραΗμερολογίου),1,0)))","v":"Ημέρα 268"},{"$f":"IF(WEEKDAY(ΗμέραΗμερολογίου)=ΤιμήΈναρξηςΕβδομάδας,CONCATENATE(\"Εβδομάδα \",WEEKNUM(ΗμέραΗμερολογίου),\"/Ημέρα \",ΗμέραΗμερολογίου-DATE(YEAR(ΗμέραΗμερολογίου),1,0)),CONCATENATE(\"Ημέρα \",ΗμέραΗμερολογίου-DATE(YEAR(ΗμέραΗμερολογίου),1,0)))","v":"Ημέρα 269"},{"$f":"IF(WEEKDAY(ΗμέραΗμερολογίου)=ΤιμήΈναρξηςΕβδομάδας,CONCATENATE(\"Εβδομάδα \",WEEKNUM(ΗμέραΗμερολογίου),\"/Ημέρα \",ΗμέραΗμερολογίου-DATE(YEAR(ΗμέραΗμερολογίου),1,0)),CONCATENATE(\"Ημέρα \",ΗμέραΗμερολογίου-DATE(YEAR(ΗμέραΗμερολογίου),1,0)))","v":"Ημέρα 270"},{"$f":"IF(WEEKDAY(ΗμέραΗμερολογίου)=ΤιμήΈναρξηςΕβδομάδας,CONCATENATE(\"Εβδομάδα \",WEEKNUM(ΗμέραΗμερολογίου),\"/Ημέρα \",ΗμέραΗμερολογίου-DATE(YEAR(ΗμέραΗμερολογίου),1,0)),CONCATENATE(\"Ημέρα \",ΗμέραΗμερολογίου-DATE(YEAR(ΗμέραΗμερολογίου),1,0)))","v":"Ημέρα 271"},{"$f":"IF(WEEKDAY(ΗμέραΗμερολογίου)=ΤιμήΈναρξηςΕβδομάδας,CONCATENATE(\"Εβδομάδα \",WEEKNUM(ΗμέραΗμερολογίου),\"/Ημέρα \",ΗμέραΗμερολογίου-DATE(YEAR(ΗμέραΗμερολογίου),1,0)),CONCATENATE(\"Ημέρα \",ΗμέραΗμερολογίου-DATE(YEAR(ΗμέραΗμερολογίου),1,0)))","v":"Ημέρα 272"}]
[{"$nulls":4},"ΣΗΜΕΙΩΣΕΙΣ"]
[]
[null,null,{"$f":"ΗμέρεςΚαιΕβδομάδες+DATE(ΈτοςΗμερολογίου,9,1)-WEEKDAY(DATE(ΈτοςΗμερολογίου,9,1),(ΈναρξηΕβδομάδας=\"ΔΕΥ\")+1)+36","v":"2018-09-30"},"2018-10-01"]
[null,null,{"$f":"IF(WEEKDAY(ΗμέραΗμερολογίου)=ΤιμήΈναρξηςΕβδομάδας,CONCATENATE(\"Εβδομάδα \",WEEKNUM(ΗμέραΗμερολογίου),\"/Ημέρα \",ΗμέραΗμερολογίου-DATE(YEAR(ΗμέραΗμερολογίου),1,0)),CONCATENATE(\"Ημέρα \",ΗμέραΗμερολογίου-DATE(YEAR(ΗμέραΗμερολογίου),1,0)))","v":"Εβδομάδα 40/Ημέρα 273"},{"$f":"IF(WEEKDAY(ΗμέραΗμερολογίου)=ΤιμήΈναρξηςΕβδομάδας,CONCATENATE(\"Εβδομάδα \",WEEKNUM(ΗμέραΗμερολογίου),\"/Ημέρα \",ΗμέραΗμερολογίου-DATE(YEAR(ΗμέραΗμερολογίου),1,0)),CONCATENATE(\"Ημέρα \",ΗμέραΗμερολογίου-DATE(YEAR(ΗμέραΗμερολογίου),1,0)))","v":"Ημέρα 274"}]

{"sheet":"ΟΚΤ","index":9,"n_rows":20,"n_cols":9,"rows_kept":20,"merged":[[16,2,17,2],[17,4,19,8]]}
[null,"ΟΚΤ",{"$f":"UPPER(TEXT(ΈναρξηΕβδομάδας,\"ddd\"))","v":"ΚΥΡ"},{"$f":"UPPER(TEXT(D3,\"aaa\"))","v":"ΔΕΥ"},"ΤΡΙ","ΤΕΤ","ΠΕΜ","ΠΑΡ","ΣΑΒ"]
[null,{"$f":"ΈτοςΗμερολογίου","v":2018}]
[null,null,{"$f":"ΗμέρεςΚαιΕβδομάδες+DATE(ΈτοςΗμερολογίου,10,1)-WEEKDAY(DATE(ΈτοςΗμερολογίου,10,1),(ΈναρξηΕβδομάδας=\"ΔΕΥ\")+1)+1","v":"2018-09-30"},"2018-10-01","2018-10-02","2018-10-03","2018-10-04","2018-10-05","2018-10-06"]
[null,null,{"$f":"IF(DAY(ΗμέραΗμερολογίου)=1,CONCATENATE(\"Εβδομάδα \",WEEKNUM(ΗμέραΗμερολογίου),\"/Ημέρα \",ΗμέραΗμερολογίου-DATE(YEAR(ΗμέραΗμερολογίου),1,0)),CONCATENATE(\"Ημέρα \",ΗμέραΗμερολογίου-DATE(YEAR(ΗμέραΗμερολογίου),1,0)))","v":"Ημέρα 273"},"Εβδομάδα 40/Ημέρα 274","Ημέρα 275","Ημέρα 276","Ημέρα 277","Ημέρα 278","Ημέρα 279"]
[]
[null,null,{"$f":"ΗμέρεςΚαιΕβδομάδες+DATE(ΈτοςΗμερολογίου,10,1)-WEEKDAY(DATE(ΈτοςΗμερολογίου,10,1),(ΈναρξηΕβδομάδας=\"ΔΕΥ\")+1)+8","v":"2018-10-07"},"2018-10-08","2018-10-09","2018-10-10","2018-10-11","2018-10-12","2018-10-13"]
[null,null,{"$f":"IF(WEEKDAY(ΗμέραΗμερολογίου)=ΤιμήΈναρξηςΕβδομάδας,CONCATENATE(\"Εβδομάδα \",WEEKNUM(ΗμέραΗμερολογίου),\"/Ημέρα \",ΗμέραΗμερολογίου-DATE(YEAR(ΗμέραΗμερολογίου),1,0)),CONCATENATE(\"Ημέρα \",ΗμέραΗμερολογίου-DATE(YEAR(ΗμέραΗμερολογίου),1,0)))","v":"Εβδομάδα 41/Ημέρα 280"},{"$f":"IF(WEEKDAY(ΗμέραΗμερολογίου)=ΤιμήΈναρξηςΕβδομάδας,CONCATENATE(\"Εβδομάδα \",WEEKNUM(ΗμέραΗμερολογίου),\"/Ημέρα \",ΗμέραΗμερολογίου-DATE(YEAR(ΗμέραΗμερολογίου),1,0)),CONCATENATE(\"Ημέρα \",ΗμέραΗμερολογίου-DATE(YEAR(ΗμέραΗμερολογίου),1,0)))","v":"Ημέρα 281"},{"$f":"IF(WEEKDAY(ΗμέραΗμερολογίου)=ΤιμήΈναρξηςΕβδομάδας,CONCATENATE(\"Εβδομάδα \",WEEKNUM(ΗμέραΗμερολογίου),\"/Ημέρα \",ΗμέραΗμερολογίου-DATE(YEAR(ΗμέραΗμερολογίου),1,0)),CONCATENATE(\"Ημέρα \",ΗμέραΗμερολογίου-DATE(YEAR(ΗμέραΗμερολογίου),1,0)))","v":"Ημέρα 282"},{"$f":"IF(WEEKDAY(ΗμέραΗμερολογίου)=ΤιμήΈναρξηςΕβδομάδας,CONCATENATE(\"Εβδομάδα \",WEEKNUM(ΗμέραΗμερολογίου),\"/Ημέρα \",ΗμέραΗμερολογίου-DATE(YEAR(ΗμέραΗμερολογίου),1,0)),CONCATENATE(\"Ημέρα \",ΗμέραΗμερολογίου-DATE(YEAR(ΗμέραΗμερολογίου),1,0)))","v":"Ημέρα 283"},{"$f":"IF(WEEKDAY(ΗμέραΗμερολογίου)=ΤιμήΈναρξηςΕβδομάδας,CONCATENATE(\"Εβδομάδα \",WEEKNUM(ΗμέραΗμερολογίου),\"/Ημέρα \",ΗμέραΗμερολογίου-DATE(YEAR(ΗμέραΗμερολογίου),1,0)),CONCATENATE(\"Ημέρα \",ΗμέραΗμερολογίου-DATE(YEAR(ΗμέραΗμερολογίου),1,0)))","v":"Ημέρα 284"},{"$f":"IF(WEEKDAY(ΗμέραΗμερολογίου)=ΤιμήΈναρξηςΕβδομάδας,CONCATENATE(\"Εβδομάδα \",WEEKNUM(ΗμέραΗμερολογίου),\"/Ημέρα \",ΗμέραΗμερολογίου-DATE(YEAR(ΗμέραΗμερολογίου),1,0)),CONCATENATE(\"Ημέρα \",ΗμέραΗμερολογίου-DATE(YEAR(ΗμέραΗμερολογίου),1,0)))","v":"Ημέρα 285"},{"$f":"IF(WEEKDAY(ΗμέραΗμερολογίου)=ΤιμήΈναρξηςΕβδομάδας,CONCATENATE(\"Εβδομάδα \",WEEKNUM(ΗμέραΗμερολογίου),\"/Ημέρα \",ΗμέραΗμερολογίου-DATE(YEAR(ΗμέραΗμερολογίου),1,0)),CONCATENATE(\"Ημέρα \",ΗμέραΗμερολογίου-DATE(YEAR(ΗμέραΗμερολογίου),1,0)))","v":"Ημέρα 286"}]
[]
[null,null,{"$f":"ΗμέρεςΚαιΕβδομάδες+DATE(ΈτοςΗμερολογίου,10,1)-WEEKDAY(DATE(ΈτοςΗμερολογίου,10,1),(ΈναρξηΕβδομάδας=\"ΔΕΥ\")+1)+15","v":"2018-10-14"},"2018-10-15","2018-10-16","2018-10-17","2018-10-18","2018-10-19","2018-10-20"]
[null,null,{"$f":"IF(WEEKDAY(ΗμέραΗμερολογίου)=ΤιμήΈναρξηςΕβδομάδας,CONCATENATE(\"Εβδομάδα \",WEEKNUM(ΗμέραΗμερολογίου),\"/Ημέρα \",ΗμέραΗμερολογίου-DATE(YEAR(ΗμέραΗμερολογίου),1,0)),CONCATENATE(\"Ημέρα \",ΗμέραΗμερολογίου-DATE(YEAR(ΗμέραΗμερολογίου),1,0)))","v":"Εβδομάδα 42/Ημέρα 287"},{"$f":"IF(WEEKDAY(ΗμέραΗμερολογίου)=ΤιμήΈναρξηςΕβδομάδας,CONCATENATE(\"Εβδομάδα \",WEEKNUM(ΗμέραΗμερολογίου),\"/Ημέρα \",ΗμέραΗμερολογίου-DATE(YEAR(ΗμέραΗμερολογίου),1,0)),CONCATENATE(\"Ημέρα \",ΗμέραΗμερολογίου-DATE(YEAR(ΗμέραΗμερολογίου),1,0)))","v":"Ημέρα 288"},{"$f":"IF(WEEKDAY(ΗμέραΗμερολογίου)=ΤιμήΈναρξηςΕβδομάδας,CONCATENATE(\"Εβδομάδα \",WEEKNUM(ΗμέραΗμερολογίου),\"/Ημέρα \",ΗμέραΗμερολογίου-DATE(YEAR(ΗμέραΗμερολογίου),1,0)),CONCATENATE(\"Ημέρα \",ΗμέραΗμερολογίου-DATE(YEAR(ΗμέραΗμερολογίου),1,0)))","v":"Ημέρα 289"},{"$f":"IF(WEEKDAY(ΗμέραΗμερολογίου)=ΤιμήΈναρξηςΕβδομάδας,CONCATENATE(\"Εβδομάδα \",WEEKNUM(ΗμέραΗμερολογίου),\"/Ημέρα \",ΗμέραΗμερολογίου-DATE(YEAR(ΗμέραΗμερολογίου),1,0)),CONCATENATE(\"Ημέρα \",ΗμέραΗμερολογίου-DATE(YEAR(ΗμέραΗμερολογίου),1,0)))","v":"Ημέρα 290"},{"$f":"IF(WEEKDAY(ΗμέραΗμερολογίου)=ΤιμήΈναρξηςΕβδομάδας,CONCATENATE(\"Εβδομάδα \",WEEKNUM(ΗμέραΗμερολογίου),\"/Ημέρα \",ΗμέραΗμερολογίου-DATE(YEAR(ΗμέραΗμερολογίου),1,0)),CONCATENATE(\"Ημέρα \",ΗμέραΗμερολογίου-DATE(YEAR(ΗμέραΗμερολογίου),1,0)))","v":"Ημέρα 291"},{"$f":"IF(WEEKDAY(ΗμέραΗμερολογίου)=ΤιμήΈναρξηςΕβδομάδας,CONCATENATE(\"Εβδομάδα \",WEEKNUM(ΗμέραΗμερολογίου),\"/Ημέρα \",ΗμέραΗμερολογίου-DATE(YEAR(ΗμέραΗμερολογίου),1,0)),CONCATENATE(\"Ημέρα \",ΗμέραΗμερολογίου-DATE(YEAR(ΗμέραΗμερολογίου),1,0)))","v":"Ημέρα 292"},{"$f":"IF(WEEKDAY(ΗμέραΗμερολογίου)=ΤιμήΈναρξηςΕβδομάδας,CONCATENATE(\"Εβδομάδα \",WEEKNUM(ΗμέραΗμερολογίου),\"/Ημέρα \",ΗμέραΗμερολογίου-DATE(YEAR(ΗμέραΗμερολογίου),1,0)),CONCATENATE(\"Ημέρα \",ΗμέραΗμερολογίου-DATE(YEAR(ΗμέραΗμερολογίου),1,0)))","v":"Ημέρα 293"}]
[]
[null,null,{"$f":"ΗμέρεςΚαιΕβδομάδες+DATE(ΈτοςΗμερολογίου,10,1)-WEEKDAY(DATE(ΈτοςΗμερολογίου,10,1),(ΈναρξηΕβδομάδας=\"ΔΕΥ\")+1)+22","v":"2018-10-21"},"2018-10-22","2018-10-23","2018-10-24","2018-10-25","2018-10-26","2018-10-27"]
[null,null,{"$f":"IF(WEEKDAY(ΗμέραΗμερολογίου)=ΤιμήΈναρξηςΕβδομάδας,CONCATENATE(\"Εβδομάδα \",WEEKNUM(ΗμέραΗμερολογίου),\"/Ημέρα \",ΗμέραΗμερολογίου-DATE(YEAR(ΗμέραΗμερολογίου),1,0)),CONCATENATE(\"Ημέρα \",ΗμέραΗμερολογίου-DATE(YEAR(ΗμέραΗμερολογίου),1,0)))","v":"Εβδομάδα 43/Ημέρα 294"},{"$f":"IF(WEEKDAY(ΗμέραΗμερολογίου)=ΤιμήΈναρξηςΕβδομάδας,CONCATENATE(\"Εβδομάδα \",WEEKNUM(ΗμέραΗμερολογίου),\"/Ημέρα \",ΗμέραΗμερολογίου-DATE(YEAR(ΗμέραΗμερολογίου),1,0)),CONCATENATE(\"Ημέρα \",ΗμέραΗμερολογίου-DATE(YEAR(ΗμέραΗμερολογίου),1,0)))","v":"Ημέρα 295"},{"$f":"IF(WEEKDAY(ΗμέραΗμερολογίου)=ΤιμήΈναρξηςΕβδομάδας,CONCATENATE(\"Εβδομάδα \",WEEKNUM(ΗμέραΗμερολογίου),\"/Ημέρα \",ΗμέραΗμερολογίου-DATE(YEAR(ΗμέραΗμερολογίου),1,0)),CONCATENATE(\"Ημέρα \",ΗμέραΗμερολογίου-DATE(YEAR(ΗμέραΗμερολογίου),1,0)))","v":"Ημέρα 296"},{"$f":"IF(WEEKDAY(ΗμέραΗμερολογίου)=ΤιμήΈναρξηςΕβδομάδας,CONCATENATE(\"Εβδομάδα \",WEEKNUM(ΗμέραΗμερολογίου),\"/Ημέρα \",ΗμέραΗμερολογίου-DATE(YEAR(ΗμέραΗμερολογίου),1,0)),CONCATENATE(\"Ημέρα \",ΗμέραΗμερολογίου-DATE(YEAR(ΗμέραΗμερολογίου),1,0)))","v":"Ημέρα 297"},{"$f":"IF(WEEKDAY(ΗμέραΗμερολογίου)=ΤιμήΈναρξηςΕβδομάδας,CONCATENATE(\"Εβδομάδα \",WEEKNUM(ΗμέραΗμερολογίου),\"/Ημέρα \",ΗμέραΗμερολογίου-DATE(YEAR(ΗμέραΗμερολογίου),1,0)),CONCATENATE(\"Ημέρα \",ΗμέραΗμερολογίου-DATE(YEAR(ΗμέραΗμερολογίου),1,0)))","v":"Ημέρα 298"},{"$f":"IF(WEEKDAY(ΗμέραΗμερολογίου)=ΤιμήΈναρξηςΕβδομάδας,CONCATENATE(\"Εβδομάδα \",WEEKNUM(ΗμέραΗμερολογίου),\"/Ημέρα \",ΗμέραΗμερολογίου-DATE(YEAR(ΗμέραΗμερολογίου),1,0)),CONCATENATE(\"Ημέρα \",ΗμέραΗμερολογίου-DATE(YEAR(ΗμέραΗμερολογίου),1,0)))","v":"Ημέρα 299"},{"$f":"IF(WEEKDAY(ΗμέραΗμερολογίου)=ΤιμήΈναρξηςΕβδομάδας,CONCATENATE(\"Εβδομάδα \",WEEKNUM(ΗμέραΗμερολογίου),\"/Ημέρα \",ΗμέραΗμερολογίου-DATE(YEAR(ΗμέραΗμερολογίου),1,0)),CONCATENATE(\"Ημέρα \",ΗμέραΗμερολογίου-DATE(YEAR(ΗμέραΗμερολογίου),1,0)))","v":"Ημέρα 300"}]
[]
[null,null,{"$f":"ΗμέρεςΚαιΕβδομάδες+DATE(ΈτοςΗμερολογίου,10,1)-WEEKDAY(DATE(ΈτοςΗμερολογίου,10,1),(ΈναρξηΕβδομάδας=\"ΔΕΥ\")+1)+29","v":"2018-10-28"},"2018-10-29","2018-10-30","2018-10-31","2018-11-01","2018-11-02","2018-11-03"]
[null,null,{"$f":"IF(WEEKDAY(ΗμέραΗμερολογίου)=ΤιμήΈναρξηςΕβδομάδας,CONCATENATE(\"Εβδομάδα \",WEEKNUM(ΗμέραΗμερολογίου),\"/Ημέρα \",ΗμέραΗμερολογίου-DATE(YEAR(ΗμέραΗμερολογίου),1,0)),CONCATENATE(\"Ημέρα \",ΗμέραΗμερολογίου-DATE(YEAR(ΗμέραΗμερολογίου),1,0)))","v":"Εβδομάδα 44/Ημέρα 301"},{"$f":"IF(WEEKDAY(ΗμέραΗμερολογίου)=ΤιμήΈναρξηςΕβδομάδας,CONCATENATE(\"Εβδομάδα \",WEEKNUM(ΗμέραΗμερολογίου),\"/Ημέρα \",ΗμέραΗμερολογίου-DATE(YEAR(ΗμέραΗμερολογίου),1,0)),CONCATENATE(\"Ημέρα \",ΗμέραΗμερολογίου-DATE(YEAR(ΗμέραΗμερολογίου),1,0)))","v":"Ημέρα 302"},{"$f":"IF(WEEKDAY(ΗμέραΗμερολογίου)=ΤιμήΈναρξηςΕβδομάδας,CONCATENATE(\"Εβδομάδα \",WEEKNUM(ΗμέραΗμερολογίου),\"/Ημέρα \",ΗμέραΗμερολογίου-DATE(YEAR(ΗμέραΗμερολογίου),1,0)),CONCATENATE(\"Ημέρα \",ΗμέραΗμερολογίου-DATE(YEAR(ΗμέραΗμερολογίου),1,0)))","v":"Ημέρα 303"},{"$f":"IF(WEEKDAY(ΗμέραΗμερολογίου)=ΤιμήΈναρξηςΕβδομάδας,CONCATENATE(\"Εβδομάδα \",WEEKNUM(ΗμέραΗμερολογίου),\"/Ημέρα \",ΗμέραΗμερολογίου-DATE(YEAR(ΗμέραΗμερολογίου),1,0)),CONCATENATE(\"Ημέρα \",ΗμέραΗμερολογίου-DATE(YEAR(ΗμέραΗμερολογίου),1,0)))","v":"Ημέρα 304"},{"$f":"IF(WEEKDAY(ΗμέραΗμερολογίου)=ΤιμήΈναρξηςΕβδομάδας,CONCATENATE(\"Εβδομάδα \",WEEKNUM(ΗμέραΗμερολογίου),\"/Ημέρα \",ΗμέραΗμερολογίου-DATE(YEAR(ΗμέραΗμερολογίου),1,0)),CONCATENATE(\"Ημέρα \",ΗμέραΗμερολογίου-DATE(YEAR(ΗμέραΗμερολογίου),1,0)))","v":"Ημέρα 305"},{"$f":"IF(WEEKDAY(ΗμέραΗμερολογίου)=ΤιμήΈναρξηςΕβδομάδας,CONCATENATE(\"Εβδομάδα \",WEEKNUM(ΗμέραΗμερολογίου),\"/Ημέρα \",ΗμέραΗμερολογίου-DATE(YEAR(ΗμέραΗμερολογίου),1,0)),CONCATENATE(\"Ημέρα \",ΗμέραΗμερολογίου-DATE(YEAR(ΗμέραΗμερολογίου),1,0)))","v":"Ημέρα 306"},{"$f":"IF(WEEKDAY(ΗμέραΗμερολογίου)=ΤιμήΈναρξηςΕβδομάδας,CONCATENATE(\"Εβδομάδα \",WEEKNUM(ΗμέραΗμερολογίου),\"/Ημέρα \",ΗμέραΗμερολογίου-DATE(YEAR(ΗμέραΗμερολογίου),1,0)),CONCATENATE(\"Ημέρα \",ΗμέραΗμερολογίου-DATE(YEAR(ΗμέραΗμερολογίου),1,0)))","v":"Ημέρα 307"}]
[{"$nulls":4},"ΣΗΜΕΙΩΣΕΙΣ"]
[]
[null,null,{"$f":"ΗμέρεςΚαιΕβδομάδες+DATE(ΈτοςΗμερολογίου,10,1)-WEEKDAY(DATE(ΈτοςΗμερολογίου,10,1),(ΈναρξηΕβδομάδας=\"ΔΕΥ\")+1)+36","v":"2018-11-04"},"2018-11-05"]
[null,null,{"$f":"IF(WEEKDAY(ΗμέραΗμερολογίου)=ΤιμήΈναρξηςΕβδομάδας,CONCATENATE(\"Εβδομάδα \",WEEKNUM(ΗμέραΗμερολογίου),\"/Ημέρα \",ΗμέραΗμερολογίου-DATE(YEAR(ΗμέραΗμερολογίου),1,0)),CONCATENATE(\"Ημέρα \",ΗμέραΗμερολογίου-DATE(YEAR(ΗμέραΗμερολογίου),1,0)))","v":"Εβδομάδα 45/Ημέρα 308"},{"$f":"IF(WEEKDAY(ΗμέραΗμερολογίου)=ΤιμήΈναρξηςΕβδομάδας,CONCATENATE(\"Εβδομάδα \",WEEKNUM(ΗμέραΗμερολογίου),\"/Ημέρα \",ΗμέραΗμερολογίου-DATE(YEAR(ΗμέραΗμερολογίου),1,0)),CONCATENATE(\"Ημέρα \",ΗμέραΗμερολογίου-DATE(YEAR(ΗμέραΗμερολογίου),1,0)))","v":"Ημέρα 309"}]

{"sheet":"ΝΟΕ","index":10,"n_rows":20,"n_cols":9,"rows_kept":20,"merged":[[16,2,17,2],[17,4,19,8]]}
[null,"ΝΟΕ",{"$f":"UPPER(TEXT(ΈναρξηΕβδομάδας,\"ddd\"))","v":"ΚΥΡ"},{"$f":"UPPER(TEXT(D3,\"aaa\"))","v":"ΔΕΥ"},"ΤΡΙ","ΤΕΤ","ΠΕΜ","ΠΑΡ","ΣΑΒ"]
[null,{"$f":"ΈτοςΗμερολογίου","v":2018}]
[null,null,{"$f":"ΗμέρεςΚαιΕβδομάδες+DATE(ΈτοςΗμερολογίου,11,1)-WEEKDAY(DATE(ΈτοςΗμερολογίου,11,1),(ΈναρξηΕβδομάδας=\"ΔΕΥ\")+1)+1","v":"2018-10-28"},"2018-10-29","2018-10-30","2018-10-31","2018-11-01","2018-11-02","2018-11-03"]
[null,null,{"$f":"IF(DAY(ΗμέραΗμερολογίου)=1,CONCATENATE(\"Εβδομάδα \",WEEKNUM(ΗμέραΗμερολογίου),\"/Ημέρα \",ΗμέραΗμερολογίου-DATE(YEAR(ΗμέραΗμερολογίου),1,0)),CONCATENATE(\"Ημέρα \",ΗμέραΗμερολογίου-DATE(YEAR(ΗμέραΗμερολογίου),1,0)))","v":"Ημέρα 301"},"Ημέρα 302","Ημέρα 303","Ημέρα 304","Εβδομάδα 44/Ημέρα 305","Ημέρα 306","Ημέρα 307"]
[]
[null,null,{"$f":"ΗμέρεςΚαιΕβδομάδες+DATE(ΈτοςΗμερολογίου,11,1)-WEEKDAY(DATE(ΈτοςΗμερολογίου,11,1),(ΈναρξηΕβδομάδας=\"ΔΕΥ\")+1)+8","v":"2018-11-04"},"2018-11-05","2018-11-06","2018-11-07","2018-11-08","2018-11-09","2018-11-10"]
[null,null,{"$f":"IF(WEEKDAY(ΗμέραΗμερολογίου)=ΤιμήΈναρξηςΕβδομάδας,CONCATENATE(\"Εβδομάδα \",WEEKNUM(ΗμέραΗμερολογίου),\"/Ημέρα \",ΗμέραΗμερολογίου-DATE(YEAR(ΗμέραΗμερολογίου),1,0)),CONCATENATE(\"Ημέρα \",ΗμέραΗμερολογίου-DATE(YEAR(ΗμέραΗμερολογίου),1,0)))","v":"Εβδομάδα 45/Ημέρα 308"},{"$f":"IF(WEEKDAY(ΗμέραΗμερολογίου)=ΤιμήΈναρξηςΕβδομάδας,CONCATENATE(\"Εβδομάδα \",WEEKNUM(ΗμέραΗμερολογίου),\"/Ημέρα \",ΗμέραΗμερολογίου-DATE(YEAR(ΗμέραΗμερολογίου),1,0)),CONCATENATE(\"Ημέρα \",ΗμέραΗμερολογίου-DATE(YEAR(ΗμέραΗμερολογίου),1,0)))","v":"Ημέρα 309"},{"$f":"IF(WEEKDAY(ΗμέραΗμερολογίου)=ΤιμήΈναρξηςΕβδομάδας,CONCATENATE(\"Εβδομάδα \",WEEKNUM(ΗμέραΗμερολογίου),\"/Ημέρα \",ΗμέραΗμερολογίου-DATE(YEAR(ΗμέραΗμερολογίου),1,0)),CONCATENATE(\"Ημέρα \",ΗμέραΗμερολογίου-DATE(YEAR(ΗμέραΗμερολογίου),1,0)))","v":"Ημέρα 310"},{"$f":"IF(WEEKDAY(ΗμέραΗμερολογίου)=ΤιμήΈναρξηςΕβδομάδας,CONCATENATE(\"Εβδομάδα \",WEEKNUM(ΗμέραΗμερολογίου),\"/Ημέρα \",ΗμέραΗμερολογίου-DATE(YEAR(ΗμέραΗμερολογίου),1,0)),CONCATENATE(\"Ημέρα \",ΗμέραΗμερολογίου-DATE(YEAR(ΗμέραΗμερολογίου),1,0)))","v":"Ημέρα 311"},{"$f":"IF(WEEKDAY(ΗμέραΗμερολογίου)=ΤιμήΈναρξηςΕβδομάδας,CONCATENATE(\"Εβδομάδα \",WEEKNUM(ΗμέραΗμερολογίου),\"/Ημέρα \",ΗμέραΗμερολογίου-DATE(YEAR(ΗμέραΗμερολογίου),1,0)),CONCATENATE(\"Ημέρα \",ΗμέραΗμερολογίου-DATE(YEAR(ΗμέραΗμερολογίου),1,0)))","v":"Ημέρα 312"},{"$f":"IF(WEEKDAY(ΗμέραΗμερολογίου)=ΤιμήΈναρξηςΕβδομάδας,CONCATENATE(\"Εβδομάδα \",WEEKNUM(ΗμέραΗμερολογίου),\"/Ημέρα \",ΗμέραΗμερολογίου-DATE(YEAR(ΗμέραΗμερολογίου),1,0)),CONCATENATE(\"Ημέρα \",ΗμέραΗμερολογίου-DATE(YEAR(ΗμέραΗμερολογίου),1,0)))","v":"Ημέρα 313"},{"$f":"IF(WEEKDAY(ΗμέραΗμερολογίου)=ΤιμήΈναρξηςΕβδομάδας,CONCATENATE(\"Εβδομάδα \",WEEKNUM(ΗμέραΗμερολογίου),\"/Ημέρα \",ΗμέραΗμερολογίου-DATE(YEAR(ΗμέραΗμερολογίου),1,0)),CONCATENATE(\"Ημέρα \",ΗμέραΗμερολογίου-DATE(YEAR(ΗμέραΗμερολογίου),1,0)))","v":"Ημέρα 314"}]
[]
[null,null,{"$f":"ΗμέρεςΚαιΕβδομάδες+DATE(ΈτοςΗμερολογίου,11,1)-WEEKDAY(DATE(ΈτοςΗμερολογίου,11,1),(ΈναρξηΕβδομάδας=\"ΔΕΥ\")+1)+15","v":"2018-11-11"},"2018-11-12","2018-11-13","2018-11-14","2018-11-15","2018-11-16","2018-11-17"]
[null,null,{"$f":"IF(WEEKDAY(ΗμέραΗμερολογίου)=ΤιμήΈναρξηςΕβδομάδας,CONCATENATE(\"Εβδομάδα \",WEEKNUM(ΗμέραΗμερολογίου),\"/Ημέρα \",ΗμέραΗμερολογίου-DATE(YEAR(ΗμέραΗμερολογίου),1,0)),CONCATENATE(\"Ημέρα \",ΗμέραΗμερολογίου-DATE(YEAR(ΗμέραΗμερολογίου),1,0)))","v":"Εβδομάδα 46/Ημέρα 315"},{"$f":"IF(WEEKDAY(ΗμέραΗμερολογίου)=ΤιμήΈναρξηςΕβδομάδας,CONCATENATE(\"Εβδομάδα \",WEEKNUM(ΗμέραΗμερολογίου),\"/Ημέρα \",ΗμέραΗμερολογίου-DATE(YEAR(ΗμέραΗμερολογίου),1,0)),CONCATENATE(\"Ημέρα \",ΗμέραΗμερολογίου-DATE(YEAR(ΗμέραΗμερολογίου),1,0)))","v":"Ημέρα 316"},{"$f":"IF(WEEKDAY(ΗμέραΗμερολογίου)=ΤιμήΈναρξηςΕβδομάδας,CONCATENATE(\"Εβδομάδα \",WEEKNUM(ΗμέραΗμερολογίου),\"/Ημέρα \",ΗμέραΗμερολογίου-DATE(YEAR(ΗμέραΗμερολογίου),1,0)),CONCATENATE(\"Ημέρα \",ΗμέραΗμερολογίου-DATE(YEAR(ΗμέραΗμερολογίου),1,0)))","v":"Ημέρα 317"},{"$f":"IF(WEEKDAY(ΗμέραΗμερολογίου)=ΤιμήΈναρξηςΕβδομάδας,CONCATENATE(\"Εβδομάδα \",WEEKNUM(ΗμέραΗμερολογίου),\"/Ημέρα \",ΗμέραΗμερολογίου-DATE(YEAR(ΗμέραΗμερολογίου),1,0)),CONCATENATE(\"Ημέρα \",ΗμέραΗμερολογίου-DATE(YEAR(ΗμέραΗμερολογίου),1,0)))","v":"Ημέρα 318"},{"$f":"IF(WEEKDAY(ΗμέραΗμερολογίου)=ΤιμήΈναρξηςΕβδομάδας,CONCATENATE(\"Εβδομάδα \",WEEKNUM(ΗμέραΗμερολογίου),\"/Ημέρα \",ΗμέραΗμερολογίου-DATE(YEAR(ΗμέραΗμερολογίου),1,0)),CONCATENATE(\"Ημέρα \",ΗμέραΗμερολογίου-DATE(YEAR(ΗμέραΗμερολογίου),1,0)))","v":"Ημέρα 319"},{"$f":"IF(WEEKDAY(ΗμέραΗμερολογίου)=ΤιμήΈναρξηςΕβδομάδας,CONCATENATE(\"Εβδομάδα \",WEEKNUM(ΗμέραΗμερολογίου),\"/Ημέρα \",ΗμέραΗμερολογίου-DATE(YEAR(ΗμέραΗμερολογίου),1,0)),CONCATENATE(\"Ημέρα \",ΗμέραΗμερολογίου-DATE(YEAR(ΗμέραΗμερολογίου),1,0)))","v":"Ημέρα 320"},{"$f":"IF(WEEKDAY(ΗμέραΗμερολογίου)=ΤιμήΈναρξηςΕβδομάδας,CONCATENATE(\"Εβδομάδα \",WEEKNUM(ΗμέραΗμερολογίου),\"/Ημέρα \",ΗμέραΗμερολογίου-DATE(YEAR(ΗμέραΗμερολογίου),1,0)),CONCATENATE(\"Ημέρα \",ΗμέραΗμερολογίου-DATE(YEAR(ΗμέραΗμερολογίου),1,0)))","v":"Ημέρα 321"}]
[]
[null,null,{"$f":"ΗμέρεςΚαιΕβδομάδες+DATE(ΈτοςΗμερολογίου,11,1)-WEEKDAY(DATE(ΈτοςΗμερολογίου,11,1),(ΈναρξηΕβδομάδας=\"ΔΕΥ\")+1)+22","v":"2018-11-18"},"2018-11-19","2018-11-20","2018-11-21","2018-11-22","2018-11-23","2018-11-24"]
[null,null,{"$f":"IF(WEEKDAY(ΗμέραΗμερολογίου)=ΤιμήΈναρξηςΕβδομάδας,CONCATENATE(\"Εβδομάδα \",WEEKNUM(ΗμέραΗμερολογίου),\"/Ημέρα \",ΗμέραΗμερολογίου-DATE(YEAR(ΗμέραΗμερολογίου),1,0)),CONCATENATE(\"Ημέρα \",ΗμέραΗμερολογίου-DATE(YEAR(ΗμέραΗμερολογίου),1,0)))","v":"Εβδομάδα 47/Ημέρα 322"},{"$f":"IF(WEEKDAY(ΗμέραΗμερολογίου)=ΤιμήΈναρξηςΕβδομάδας,CONCATENATE(\"Εβδομάδα \",WEEKNUM(ΗμέραΗμερολογίου),\"/Ημέρα \",ΗμέραΗμερολογίου-DATE(YEAR(ΗμέραΗμερολογίου),1,0)),CONCATENATE(\"Ημέρα \",ΗμέραΗμερολογίου-DATE(YEAR(ΗμέραΗμερολογίου),1,0)))","v":"Ημέρα 323"},{"$f":"IF(WEEKDAY(ΗμέραΗμερολογίου)=ΤιμήΈναρξηςΕβδομάδας,CONCATENATE(\"Εβδομάδα \",WEEKNUM(ΗμέραΗμερολογίου),\"/Ημέρα \",ΗμέραΗμερολογίου-DATE(YEAR(ΗμέραΗμερολογίου),1,0)),CONCATENATE(\"Ημέρα \",ΗμέραΗμερολογίου-DATE(YEAR(ΗμέραΗμερολογίου),1,0)))","v":"Ημέρα 324"},{"$f":"IF(WEEKDAY(ΗμέραΗμερολογίου)=ΤιμήΈναρξηςΕβδομάδας,CONCATENATE(\"Εβδομάδα \",WEEKNUM(ΗμέραΗμερολογίου),\"/Ημέρα \",ΗμέραΗμερολογίου-DATE(YEAR(ΗμέραΗμερολογίου),1,0)),CONCATENATE(\"Ημέρα \",ΗμέραΗμερολογίου-DATE(YEAR(ΗμέραΗμερολογίου),1,0)))","v":"Ημέρα 325"},{"$f":"IF(WEEKDAY(ΗμέραΗμερολογίου)=ΤιμήΈναρξηςΕβδομάδας,CONCATENATE(\"Εβδομάδα \",WEEKNUM(ΗμέραΗμερολογίου),\"/Ημέρα \",ΗμέραΗμερολογίου-DATE(YEAR(ΗμέραΗμερολογίου),1,0)),CONCATENATE(\"Ημέρα \",ΗμέραΗμερολογίου-DATE(YEAR(ΗμέραΗμερολογίου),1,0)))","v":"Ημέρα 326"},{"$f":"IF(WEEKDAY(ΗμέραΗμερολογίου)=ΤιμήΈναρξηςΕβδομάδας,CONCATENATE(\"Εβδομάδα \",WEEKNUM(ΗμέραΗμερολογίου),\"/Ημέρα \",ΗμέραΗμερολογίου-DATE(YEAR(ΗμέραΗμερολογίου),1,0)),CONCATENATE(\"Ημέρα \",ΗμέραΗμερολογίου-DATE(YEAR(ΗμέραΗμερολογίου),1,0)))","v":"Ημέρα 327"},{"$f":"IF(WEEKDAY(ΗμέραΗμερολογίου)=ΤιμήΈναρξηςΕβδομάδας,CONCATENATE(\"Εβδομάδα \",WEEKNUM(ΗμέραΗμερολογίου),\"/Ημέρα \",ΗμέραΗμερολογίου-DATE(YEAR(ΗμέραΗμερολογίου),1,0)),CONCATENATE(\"Ημέρα \",ΗμέραΗμερολογίου-DATE(YEAR(ΗμέραΗμερολογίου),1,0)))","v":"Ημέρα 328"}]
[]
[null,null,{"$f":"ΗμέρεςΚαιΕβδομάδες+DATE(ΈτοςΗμερολογίου,11,1)-WEEKDAY(DATE(ΈτοςΗμερολογίου,11,1),(ΈναρξηΕβδομάδας=\"ΔΕΥ\")+1)+29","v":"2018-11-25"},"2018-11-26","2018-11-27","2018-11-28","2018-11-29","2018-11-30","2018-12-01"]
[null,null,{"$f":"IF(WEEKDAY(ΗμέραΗμερολογίου)=ΤιμήΈναρξηςΕβδομάδας,CONCATENATE(\"Εβδομάδα \",WEEKNUM(ΗμέραΗμερολογίου),\"/Ημέρα \",ΗμέραΗμερολογίου-DATE(YEAR(ΗμέραΗμερολογίου),1,0)),CONCATENATE(\"Ημέρα \",ΗμέραΗμερολογίου-DATE(YEAR(ΗμέραΗμερολογίου),1,0)))","v":"Εβδομάδα 48/Ημέρα 329"},{"$f":"IF(WEEKDAY(ΗμέραΗμερολογίου)=ΤιμήΈναρξηςΕβδομάδας,CONCATENATE(\"Εβδομάδα \",WEEKNUM(ΗμέραΗμερολογίου),\"/Ημέρα \",ΗμέραΗμερολογίου-DATE(YEAR(ΗμέραΗμερολογίου),1,0)),CONCATENATE(\"Ημέρα \",ΗμέραΗμερολογίου-DATE(YEAR(ΗμέραΗμερολογίου),1,0)))","v":"Ημέρα 330"},{"$f":"IF(WEEKDAY(ΗμέραΗμερολογίου)=ΤιμήΈναρξηςΕβδομάδας,CONCATENATE(\"Εβδομάδα \",WEEKNUM(ΗμέραΗμερολογίου),\"/Ημέρα \",ΗμέραΗμερολογίου-DATE(YEAR(ΗμέραΗμερολογίου),1,0)),CONCATENATE(\"Ημέρα \",ΗμέραΗμερολογίου-DATE(YEAR(ΗμέραΗμερολογίου),1,0)))","v":"Ημέρα 331"},{"$f":"IF(WEEKDAY(ΗμέραΗμερολογίου)=ΤιμήΈναρξηςΕβδομάδας,CONCATENATE(\"Εβδομάδα \",WEEKNUM(ΗμέραΗμερολογίου),\"/Ημέρα \",ΗμέραΗμερολογίου-DATE(YEAR(ΗμέραΗμερολογίου),1,0)),CONCATENATE(\"Ημέρα \",ΗμέραΗμερολογίου-DATE(YEAR(ΗμέραΗμερολογίου),1,0)))","v":"Ημέρα 332"},{"$f":"IF(WEEKDAY(ΗμέραΗμερολογίου)=ΤιμήΈναρξηςΕβδομάδας,CONCATENATE(\"Εβδομάδα \",WEEKNUM(ΗμέραΗμερολογίου),\"/Ημέρα \",ΗμέραΗμερολογίου-DATE(YEAR(ΗμέραΗμερολογίου),1,0)),CONCATENATE(\"Ημέρα \",ΗμέραΗμερολογίου-DATE(YEAR(ΗμέραΗμερολογίου),1,0)))","v":"Ημέρα 333"},{"$f":"IF(WEEKDAY(ΗμέραΗμερολογίου)=ΤιμήΈναρξηςΕβδομάδας,CONCATENATE(\"Εβδομάδα \",WEEKNUM(ΗμέραΗμερολογίου),\"/Ημέρα \",ΗμέραΗμερολογίου-DATE(YEAR(ΗμέραΗμερολογίου),1,0)),CONCATENATE(\"Ημέρα \",ΗμέραΗμερολογίου-DATE(YEAR(ΗμέραΗμερολογίου),1,0)))","v":"Ημέρα 334"},{"$f":"IF(WEEKDAY(ΗμέραΗμερολογίου)=ΤιμήΈναρξηςΕβδομάδας,CONCATENATE(\"Εβδομάδα \",WEEKNUM(ΗμέραΗμερολογίου),\"/Ημέρα \",ΗμέραΗμερολογίου-DATE(YEAR(ΗμέραΗμερολογίου),1,0)),CONCATENATE(\"Ημέρα \",ΗμέραΗμερολογίου-DATE(YEAR(ΗμέραΗμερολογίου),1,0)))","v":"Ημέρα 335"}]
[{"$nulls":4},"ΣΗΜΕΙΩΣΕΙΣ"]
[]
[null,null,{"$f":"ΗμέρεςΚαιΕβδομάδες+DATE(ΈτοςΗμερολογίου,11,1)-WEEKDAY(DATE(ΈτοςΗμερολογίου,11,1),(ΈναρξηΕβδομάδας=\"ΔΕΥ\")+1)+36","v":"2018-12-02"},"2018-12-03"]
[null,null,{"$f":"IF(WEEKDAY(ΗμέραΗμερολογίου)=ΤιμήΈναρξηςΕβδομάδας,CONCATENATE(\"Εβδομάδα \",WEEKNUM(ΗμέραΗμερολογίου),\"/Ημέρα \",ΗμέραΗμερολογίου-DATE(YEAR(ΗμέραΗμερολογίου),1,0)),CONCATENATE(\"Ημέρα \",ΗμέραΗμερολογίου-DATE(YEAR(ΗμέραΗμερολογίου),1,0)))","v":"Εβδομάδα 49/Ημέρα 336"},{"$f":"IF(WEEKDAY(ΗμέραΗμερολογίου)=ΤιμήΈναρξηςΕβδομάδας,CONCATENATE(\"Εβδομάδα \",WEEKNUM(ΗμέραΗμερολογίου),\"/Ημέρα \",ΗμέραΗμερολογίου-DATE(YEAR(ΗμέραΗμερολογίου),1,0)),CONCATENATE(\"Ημέρα \",ΗμέραΗμερολογίου-DATE(YEAR(ΗμέραΗμερολογίου),1,0)))","v":"Ημέρα 337"}]

{"sheet":"ΔΕΚ","index":11,"n_rows":20,"n_cols":9,"rows_kept":20,"merged":[[16,2,17,2],[17,4,19,8]]}
[null,"ΔΕΚ",{"$f":"UPPER(TEXT(ΈναρξηΕβδομάδας,\"ddd\"))","v":"ΚΥΡ"},{"$f":"UPPER(TEXT(D3,\"aaa\"))","v":"ΔΕΥ"},"ΤΡΙ","ΤΕΤ","ΠΕΜ","ΠΑΡ","ΣΑΒ"]
[null,{"$f":"ΈτοςΗμερολογίου","v":2018}]
[null,null,{"$f":"ΗμέρεςΚαιΕβδομάδες+DATE(ΈτοςΗμερολογίου,12,1)-WEEKDAY(DATE(ΈτοςΗμερολογίου,12,1),(ΈναρξηΕβδομάδας=\"ΔΕΥ\")+1)+1","v":"2018-11-25"},"2018-11-26","2018-11-27","2018-11-28","2018-11-29","2018-11-30","2018-12-01"]
[null,null,{"$f":"IF(DAY(ΗμέραΗμερολογίου)=1,CONCATENATE(\"Εβδομάδα \",WEEKNUM(ΗμέραΗμερολογίου),\"/Ημέρα \",ΗμέραΗμερολογίου-DATE(YEAR(ΗμέραΗμερολογίου),1,0)),CONCATENATE(\"Ημέρα \",ΗμέραΗμερολογίου-DATE(YEAR(ΗμέραΗμερολογίου),1,0)))","v":"Ημέρα 329"},"Ημέρα 330","Ημέρα 331","Ημέρα 332","Ημέρα 333","Ημέρα 334","Εβδομάδα 48/Ημέρα 335"]
[]
[null,null,{"$f":"ΗμέρεςΚαιΕβδομάδες+DATE(ΈτοςΗμερολογίου,12,1)-WEEKDAY(DATE(ΈτοςΗμερολογίου,12,1),(ΈναρξηΕβδομάδας=\"ΔΕΥ\")+1)+8","v":"2018-12-02"},"2018-12-03","2018-12-04","2018-12-05","2018-12-06","2018-12-07","2018-12-08"]
[null,null,{"$f":"IF(WEEKDAY(ΗμέραΗμερολογίου)=ΤιμήΈναρξηςΕβδομάδας,CONCATENATE(\"Εβδομάδα \",WEEKNUM(ΗμέραΗμερολογίου),\"/Ημέρα \",ΗμέραΗμερολογίου-DATE(YEAR(ΗμέραΗμερολογίου),1,0)),CONCATENATE(\"Ημέρα \",ΗμέραΗμερολογίου-DATE(YEAR(ΗμέραΗμερολογίου),1,0)))","v":"Εβδομάδα 49/Ημέρα 336"},{"$f":"IF(WEEKDAY(ΗμέραΗμερολογίου)=ΤιμήΈναρξηςΕβδομάδας,CONCATENATE(\"Εβδομάδα \",WEEKNUM(ΗμέραΗμερολογίου),\"/Ημέρα \",ΗμέραΗμερολογίου-DATE(YEAR(ΗμέραΗμερολογίου),1,0)),CONCATENATE(\"Ημέρα \",ΗμέραΗμερολογίου-DATE(YEAR(ΗμέραΗμερολογίου),1,0)))","v":"Ημέρα 337"},{"$f":"IF(WEEKDAY(ΗμέραΗμερολογίου)=ΤιμήΈναρξηςΕβδομάδας,CONCATENATE(\"Εβδομάδα \",WEEKNUM(ΗμέραΗμερολογίου),\"/Ημέρα \",ΗμέραΗμερολογίου-DATE(YEAR(ΗμέραΗμερολογίου),1,0)),CONCATENATE(\"Ημέρα \",ΗμέραΗμερολογίου-DATE(YEAR(ΗμέραΗμερολογίου),1,0)))","v":"Ημέρα 338"},{"$f":"IF(WEEKDAY(ΗμέραΗμερολογίου)=ΤιμήΈναρξηςΕβδομάδας,CONCATENATE(\"Εβδομάδα \",WEEKNUM(ΗμέραΗμερολογίου),\"/Ημέρα \",ΗμέραΗμερολογίου-DATE(YEAR(ΗμέραΗμερολογίου),1,0)),CONCATENATE(\"Ημέρα \",ΗμέραΗμερολογίου-DATE(YEAR(ΗμέραΗμερολογίου),1,0)))","v":"Ημέρα 339"},{"$f":"IF(WEEKDAY(ΗμέραΗμερολογίου)=ΤιμήΈναρξηςΕβδομάδας,CONCATENATE(\"Εβδομάδα \",WEEKNUM(ΗμέραΗμερολογίου),\"/Ημέρα \",ΗμέραΗμερολογίου-DATE(YEAR(ΗμέραΗμερολογίου),1,0)),CONCATENATE(\"Ημέρα \",ΗμέραΗμερολογίου-DATE(YEAR(ΗμέραΗμερολογίου),1,0)))","v":"Ημέρα 340"},{"$f":"IF(WEEKDAY(ΗμέραΗμερολογίου)=ΤιμήΈναρξηςΕβδομάδας,CONCATENATE(\"Εβδομάδα \",WEEKNUM(ΗμέραΗμερολογίου),\"/Ημέρα \",ΗμέραΗμερολογίου-DATE(YEAR(ΗμέραΗμερολογίου),1,0)),CONCATENATE(\"Ημέρα \",ΗμέραΗμερολογίου-DATE(YEAR(ΗμέραΗμερολογίου),1,0)))","v":"Ημέρα 341"},{"$f":"IF(WEEKDAY(ΗμέραΗμερολογίου)=ΤιμήΈναρξηςΕβδομάδας,CONCATENATE(\"Εβδομάδα \",WEEKNUM(ΗμέραΗμερολογίου),\"/Ημέρα \",ΗμέραΗμερολογίου-DATE(YEAR(ΗμέραΗμερολογίου),1,0)),CONCATENATE(\"Ημέρα \",ΗμέραΗμερολογίου-DATE(YEAR(ΗμέραΗμερολογίου),1,0)))","v":"Ημέρα 342"}]
[]
[null,null,{"$f":"ΗμέρεςΚαιΕβδομάδες+DATE(ΈτοςΗμερολογίου,12,1)-WEEKDAY(DATE(ΈτοςΗμερολογίου,12,1),(ΈναρξηΕβδομάδας=\"ΔΕΥ\")+1)+15","v":"2018-12-09"},"2018-12-10","2018-12-11","2018-12-12","2018-12-13","2018-12-14","2018-12-15"]
[null,null,{"$f":"IF(WEEKDAY(ΗμέραΗμερολογίου)=ΤιμήΈναρξηςΕβδομάδας,CONCATENATE(\"Εβδομάδα \",WEEKNUM(ΗμέραΗμερολογίου),\"/Ημέρα \",ΗμέραΗμερολογίου-DATE(YEAR(ΗμέραΗμερολογίου),1,0)),CONCATENATE(\"Ημέρα \",ΗμέραΗμερολογίου-DATE(YEAR(ΗμέραΗμερολογίου),1,0)))","v":"Εβδομάδα 50/Ημέρα 343"},{"$f":"IF(WEEKDAY(ΗμέραΗμερολογίου)=ΤιμήΈναρξηςΕβδομάδας,CONCATENATE(\"Εβδομάδα \",WEEKNUM(ΗμέραΗμερολογίου),\"/Ημέρα \",ΗμέραΗμερολογίου-DATE(YEAR(ΗμέραΗμερολογίου),1,0)),CONCATENATE(\"Ημέρα \",ΗμέραΗμερολογίου-DATE(YEAR(ΗμέραΗμερολογίου),1,0)))","v":"Ημέρα 344"},{"$f":"IF(WEEKDAY(ΗμέραΗμερολογίου)=ΤιμήΈναρξηςΕβδομάδας,CONCATENATE(\"Εβδομάδα \",WEEKNUM(ΗμέραΗμερολογίου),\"/Ημέρα \",ΗμέραΗμερολογίου-DATE(YEAR(ΗμέραΗμερολογίου),1,0)),CONCATENATE(\"Ημέρα \",ΗμέραΗμερολογίου-DATE(YEAR(ΗμέραΗμερολογίου),1,0)))","v":"Ημέρα 345"},{"$f":"IF(WEEKDAY(ΗμέραΗμερολογίου)=ΤιμήΈναρξηςΕβδομάδας,CONCATENATE(\"Εβδομάδα \",WEEKNUM(ΗμέραΗμερολογίου),\"/Ημέρα \",ΗμέραΗμερολογίου-DATE(YEAR(ΗμέραΗμερολογίου),1,0)),CONCATENATE(\"Ημέρα \",ΗμέραΗμερολογίου-DATE(YEAR(ΗμέραΗμερολογίου),1,0)))","v":"Ημέρα 346"},{"$f":"IF(WEEKDAY(ΗμέραΗμερολογίου)=ΤιμήΈναρξηςΕβδομάδας,CONCATENATE(\"Εβδομάδα \",WEEKNUM(ΗμέραΗμερολογίου),\"/Ημέρα \",ΗμέραΗμερολογίου-DATE(YEAR(ΗμέραΗμερολογίου),1,0)),CONCATENATE(\"Ημέρα \",ΗμέραΗμερολογίου-DATE(YEAR(ΗμέραΗμερολογίου),1,0)))","v":"Ημέρα 347"},{"$f":"IF(WEEKDAY(ΗμέραΗμερολογίου)=ΤιμήΈναρξηςΕβδομάδας,CONCATENATE(\"Εβδομάδα \",WEEKNUM(ΗμέραΗμερολογίου),\"/Ημέρα \",ΗμέραΗμερολογίου-DATE(YEAR(ΗμέραΗμερολογίου),1,0)),CONCATENATE(\"Ημέρα \",ΗμέραΗμερολογίου-DATE(YEAR(ΗμέραΗμερολογίου),1,0)))","v":"Ημέρα 348"},{"$f":"IF(WEEKDAY(ΗμέραΗμερολογίου)=ΤιμήΈναρξηςΕβδομάδας,CONCATENATE(\"Εβδομάδα \",WEEKNUM(ΗμέραΗμερολογίου),\"/Ημέρα \",ΗμέραΗμερολογίου-DATE(YEAR(ΗμέραΗμερολογίου),1,0)),CONCATENATE(\"Ημέρα \",ΗμέραΗμερολογίου-DATE(YEAR(ΗμέραΗμερολογίου),1,0)))","v":"Ημέρα 349"}]
[]
[null,null,{"$f":"ΗμέρεςΚαιΕβδομάδες+DATE(ΈτοςΗμερολογίου,12,1)-WEEKDAY(DATE(ΈτοςΗμερολογίου,12,1),(ΈναρξηΕβδομάδας=\"ΔΕΥ\")+1)+22","v":"2018-12-16"},"2018-12-17","2018-12-18","2018-12-19","2018-12-20","2018-12-21","2018-12-22"]
[null,null,{"$f":"IF(WEEKDAY(ΗμέραΗμερολογίου)=ΤιμήΈναρξηςΕβδομάδας,CONCATENATE(\"Εβδομάδα \",WEEKNUM(ΗμέραΗμερολογίου),\"/Ημέρα \",ΗμέραΗμερολογίου-DATE(YEAR(ΗμέραΗμερολογίου),1,0)),CONCATENATE(\"Ημέρα \",ΗμέραΗμερολογίου-DATE(YEAR(ΗμέραΗμερολογίου),1,0)))","v":"Εβδομάδα 51/Ημέρα 350"},{"$f":"IF(WEEKDAY(ΗμέραΗμερολογίου)=ΤιμήΈναρξηςΕβδομάδας,CONCATENATE(\"Εβδομάδα \",WEEKNUM(ΗμέραΗμερολογίου),\"/Ημέρα \",ΗμέραΗμερολογίου-DATE(YEAR(ΗμέραΗμερολογίου),1,0)),CONCATENATE(\"Ημέρα \",ΗμέραΗμερολογίου-DATE(YEAR(ΗμέραΗμερολογίου),1,0)))","v":"Ημέρα 351"},{"$f":"IF(WEEKDAY(ΗμέραΗμερολογίου)=ΤιμήΈναρξηςΕβδομάδας,CONCATENATE(\"Εβδομάδα \",WEEKNUM(ΗμέραΗμερολογίου),\"/Ημέρα \",ΗμέραΗμερολογίου-DATE(YEAR(ΗμέραΗμερολογίου),1,0)),CONCATENATE(\"Ημέρα \",ΗμέραΗμερολογίου-DATE(YEAR(ΗμέραΗμερολογίου),1,0)))","v":"Ημέρα 352"},{"$f":"IF(WEEKDAY(ΗμέραΗμερολογίου)=ΤιμήΈναρξηςΕβδομάδας,CONCATENATE(\"Εβδομάδα \",WEEKNUM(ΗμέραΗμερολογίου),\"/Ημέρα \",ΗμέραΗμερολογίου-DATE(YEAR(ΗμέραΗμερολογίου),1,0)),CONCATENATE(\"Ημέρα \",ΗμέραΗμερολογίου-DATE(YEAR(ΗμέραΗμερολογίου),1,0)))","v":"Ημέρα 353"},{"$f":"IF(WEEKDAY(ΗμέραΗμερολογίου)=ΤιμήΈναρξηςΕβδομάδας,CONCATENATE(\"Εβδομάδα \",WEEKNUM(ΗμέραΗμερολογίου),\"/Ημέρα \",ΗμέραΗμερολογίου-DATE(YEAR(ΗμέραΗμερολογίου),1,0)),CONCATENATE(\"Ημέρα \",ΗμέραΗμερολογίου-DATE(YEAR(ΗμέραΗμερολογίου),1,0)))","v":"Ημέρα 354"},{"$f":"IF(WEEKDAY(ΗμέραΗμερολογίου)=ΤιμήΈναρξηςΕβδομάδας,CONCATENATE(\"Εβδομάδα \",WEEKNUM(ΗμέραΗμερολογίου),\"/Ημέρα \",ΗμέραΗμερολογίου-DATE(YEAR(ΗμέραΗμερολογίου),1,0)),CONCATENATE(\"Ημέρα \",ΗμέραΗμερολογίου-DATE(YEAR(ΗμέραΗμερολογίου),1,0)))","v":"Ημέρα 355"},{"$f":"IF(WEEKDAY(ΗμέραΗμερολογίου)=ΤιμήΈναρξηςΕβδομάδας,CONCATENATE(\"Εβδομάδα \",WEEKNUM(ΗμέραΗμερολογίου),\"/Ημέρα \",ΗμέραΗμερολογίου-DATE(YEAR(ΗμέραΗμερολογίου),1,0)),CONCATENATE(\"Ημέρα \",ΗμέραΗμερολογίου-DATE(YEAR(ΗμέραΗμερολογίου),1,0)))","v":"Ημέρα 356"}]
[]
[null,null,{"$f":"ΗμέρεςΚαιΕβδομάδες+DATE(ΈτοςΗμερολογίου,12,1)-WEEKDAY(DATE(ΈτοςΗμερολογίου,12,1),(ΈναρξηΕβδομάδας=\"ΔΕΥ\")+1)+29","v":"2018-12-23"},"2018-12-24","2018-12-25","2018-12-26","2018-12-27","2018-12-28","2018-12-29"]
[null,null,{"$f":"IF(WEEKDAY(ΗμέραΗμερολογίου)=ΤιμήΈναρξηςΕβδομάδας,CONCATENATE(\"Εβδομάδα \",WEEKNUM(ΗμέραΗμερολογίου),\"/Ημέρα \",ΗμέραΗμερολογίου-DATE(YEAR(ΗμέραΗμερολογίου),1,0)),CONCATENATE(\"Ημέρα \",ΗμέραΗμερολογίου-DATE(YEAR(ΗμέραΗμερολογίου),1,0)))","v":"Εβδομάδα 52/Ημέρα 357"},{"$f":"IF(WEEKDAY(ΗμέραΗμερολογίου)=ΤιμήΈναρξηςΕβδομάδας,CONCATENATE(\"Εβδομάδα \",WEEKNUM(ΗμέραΗμερολογίου),\"/Ημέρα \",ΗμέραΗμερολογίου-DATE(YEAR(ΗμέραΗμερολογίου),1,0)),CONCATENATE(\"Ημέρα \",ΗμέραΗμερολογίου-DATE(YEAR(ΗμέραΗμερολογίου),1,0)))","v":"Ημέρα 358"},{"$f":"IF(WEEKDAY(ΗμέραΗμερολογίου)=ΤιμήΈναρξηςΕβδομάδας,CONCATENATE(\"Εβδομάδα \",WEEKNUM(ΗμέραΗμερολογίου),\"/Ημέρα \",ΗμέραΗμερολογίου-DATE(YEAR(ΗμέραΗμερολογίου),1,0)),CONCATENATE(\"Ημέρα \",ΗμέραΗμερολογίου-DATE(YEAR(ΗμέραΗμερολογίου),1,0)))","v":"Ημέρα 359"},{"$f":"IF(WEEKDAY(ΗμέραΗμερολογίου)=ΤιμήΈναρξηςΕβδομάδας,CONCATENATE(\"Εβδομάδα \",WEEKNUM(ΗμέραΗμερολογίου),\"/Ημέρα \",ΗμέραΗμερολογίου-DATE(YEAR(ΗμέραΗμερολογίου),1,0)),CONCATENATE(\"Ημέρα \",ΗμέραΗμερολογίου-DATE(YEAR(ΗμέραΗμερολογίου),1,0)))","v":"Ημέρα 360"},{"$f":"IF(WEEKDAY(ΗμέραΗμερολογίου)=ΤιμήΈναρξηςΕβδομάδας,CONCATENATE(\"Εβδομάδα \",WEEKNUM(ΗμέραΗμερολογίου),\"/Ημέρα \",ΗμέραΗμερολογίου-DATE(YEAR(ΗμέραΗμερολογίου),1,0)),CONCATENATE(\"Ημέρα \",ΗμέραΗμερολογίου-DATE(YEAR(ΗμέραΗμερολογίου),1,0)))","v":"Ημέρα 361"},{"$f":"IF(WEEKDAY(ΗμέραΗμερολογίου)=ΤιμήΈναρξηςΕβδομάδας,CONCATENATE(\"Εβδομάδα \",WEEKNUM(ΗμέραΗμερολογίου),\"/Ημέρα \",ΗμέραΗμερολογίου-DATE(YEAR(ΗμέραΗμερολογίου),1,0)),CONCATENATE(\"Ημέρα \",ΗμέραΗμερολογίου-DATE(YEAR(ΗμέραΗμερολογίου),1,0)))","v":"Ημέρα 362"},{"$f":"IF(WEEKDAY(ΗμέραΗμερολογίου)=ΤιμήΈναρξηςΕβδομάδας,CONCATENATE(\"Εβδομάδα \",WEEKNUM(ΗμέραΗμερολογίου),\"/Ημέρα \",ΗμέραΗμερολογίου-DATE(YEAR(ΗμέραΗμερολογίου),1,0)),CONCATENATE(\"Ημέρα \",ΗμέραΗμερολογίου-DATE(YEAR(ΗμέραΗμερολογίου),1,0)))","v":"Ημέρα 363"}]
[{"$nulls":4},"ΣΗΜΕΙΩΣΕΙΣ"]
[]
[null,null,{"$f":"ΗμέρεςΚαιΕβδομάδες+DATE(ΈτοςΗμερολογίου,12,1)-WEEKDAY(DATE(ΈτοςΗμερολογίου,12,1),(ΈναρξηΕβδομάδας=\"ΔΕΥ\")+1)+36","v":"2018-12-30"},"2018-12-31"]
[null,null,{"$f":"IF(WEEKDAY(ΗμέραΗμερολογίου)=ΤιμήΈναρξηςΕβδομάδας,CONCATENATE(\"Εβδομάδα \",WEEKNUM(ΗμέραΗμερολογίου),\"/Ημέρα \",ΗμέραΗμερολογίου-DATE(YEAR(ΗμέραΗμερολογίου),1,0)),CONCATENATE(\"Ημέρα \",ΗμέραΗμερολογίου-DATE(YEAR(ΗμέραΗμερολογίου),1,0)))","v":"Εβδομάδα 53/Ημέρα 364"},{"$f":"IF(WEEKDAY(ΗμέραΗμερολογίου)=ΤιμήΈναρξηςΕβδομάδας,CONCATENATE(\"Εβδομάδα \",WEEKNUM(ΗμέραΗμερολογίου),\"/Ημέρα \",ΗμέραΗμερολογίου-DATE(YEAR(ΗμέραΗμερολογίου),1,0)),CONCATENATE(\"Ημέρα \",ΗμέραΗμερολογίου-DATE(YEAR(ΗμέραΗμερολογίου),1,0)))","v":"Ημέρα 365"}]